Workbook

Sheet Sheet1 (hidden)
B1: Plan | C1: Fund Number | D1: Computed 2024 Contribution Rate | E1: Total | F1: Curr Serv% | G1: UAL | H1: Retirement | I1: Disability | J1: Death | K1: 13th Check | L1: ERI | M1: SB 1693 | N1: Amort Years | O1: Employer | P1: Line 1 | Q1: Line 2 | R1: Line 3 | S1: City | T1: State/Province | U1: ZIP/Postal Code | V1: Primary Contact (Parent) (Account)
A2: =IF(C2=Entry!$B$7,INT(A1)+1,A1+0.00001) -> 1e-05 | B2: RG01 | C2: 2 | D2: 9.37 | E2: 9.79 | F2: 4.82 | G2: 4.22 | H2: 9.04 | I2: 0.04 | J2: 0.09 | K2: 0.62 | L2: 0 | N2: 18 | O2: =VLOOKUP($C2,Sheet2!$A$2:$O$3886,10,FALSE) -> Village Of Chatham | P2: =VLOOKUP($C2,Sheet2!$A$2:$O$3886,2,FALSE) -> 116 E Mulberry St | Q2: =VLOOKUP($C2,Sheet2!$A$2:$O$3886,3,FALSE) ->  | R2: =VLOOKUP($C2,Sheet2!$A$2:$O$3886,4,FALSE) ->  | S2: =VLOOKUP($C2,Sheet2!$A$2:$O$3886,5,FALSE) -> Chatham | T2: =VLOOKUP($C2,Sheet2!$A$2:$O$3886,6,FALSE) -> Illinois | U2: =VLOOKUP($C2,Sheet2!$A$2:$O$3886,7,FALSE) -> 62629-1358 | V2: =VLOOKUP($C2,Sheet2!$A$2:$O$3886,11,FALSE) -> Jill Butler
A3: =IF(C3=Entry!$B$7,INT(A2)+1,A2+0.00001) -> 2e-05 | B3: RG01 | C3: 10 | D3: 0.84 | E3: 1.65 | F3: 4.92 | G3: -4.09 | H3: 0.83 | I3: 0.04 | J3: 0.16 | K3: 0.62 | L3: 0 | N3: 18 | O3: =VLOOKUP($C3,Sheet2!$A$2:$O$3886,10,FALSE) -> City Of Aledo | P3: =VLOOKUP($C3,Sheet2!$A$2:$O$3886,2,FALSE) -> 120 N College Ave | Q3: =VLOOKUP($C3,Sheet2!$A$2:$O$3886,3,FALSE) ->  | R3: =VLOOKUP($C3,Sheet2!$A$2:$O$3886,4,FALSE) ->  | S3: =VLOOKUP($C3,Sheet2!$A$2:$O$3886,5,FALSE) -> Aledo | T3: =VLOOKUP($C3,Sheet2!$A$2:$O$3886,6,FALSE) -> Illinois | U3: =VLOOKUP($C3,Sheet2!$A$2:$O$3886,7,FALSE) -> 61231-1519 | V3: =VLOOKUP($C3,Sheet2!$A$2:$O$3886,11,FALSE) -> Jarod Dale
A4: =IF(C4=Entry!$B$7,INT(A3)+1,A3+0.00001) -> 3e-05 | B4: RG01 | C4: 12 | D4: 3.92 | E4: 4.17 | F4: 4.62 | G4: -1.23 | H4: 3.39 | I4: 0.04 | J4: 0.12 | K4: 0.62 | L4: 0 | N4: 18 | O4: =VLOOKUP($C4,Sheet2!$A$2:$O$3886,10,FALSE) -> City Of Columbia | P4: =VLOOKUP($C4,Sheet2!$A$2:$O$3886,2,FALSE) -> Po Box 467 | Q4: =VLOOKUP($C4,Sheet2!$A$2:$O$3886,3,FALSE) -> 208 South Rapp Avenue | R4: =VLOOKUP($C4,Sheet2!$A$2:$O$3886,4,FALSE) ->  | S4: =VLOOKUP($C4,Sheet2!$A$2:$O$3886,5,FALSE) -> Columbia | T4: =VLOOKUP($C4,Sheet2!$A$2:$O$3886,6,FALSE) -> Illinois | U4: =VLOOKUP($C4,Sheet2!$A$2:$O$3886,7,FALSE) -> 62236-0467 | V4: =VLOOKUP($C4,Sheet2!$A$2:$O$3886,11,FALSE) -> Emily Voellinger
A5: =IF(C5=Entry!$B$7,INT(A4)+1,A4+0.00001) -> 4e-05 | B5: RG01 | C5: 16 | D5: 5.93 | E5: 6.25 | F5: 4.37 | G5: 1.11 | H5: 5.48 | I5: 0.04 | J5: 0.11 | K5: 0.62 | L5: 0 | N5: 18 | O5: =VLOOKUP($C5,Sheet2!$A$2:$O$3886,10,FALSE) -> Schuyler Co Hospital Dist | P5: =VLOOKUP($C5,Sheet2!$A$2:$O$3886,2,FALSE) -> 238 S Congress St | Q5: =VLOOKUP($C5,Sheet2!$A$2:$O$3886,3,FALSE) ->  | R5: =VLOOKUP($C5,Sheet2!$A$2:$O$3886,4,FALSE) ->  | S5: =VLOOKUP($C5,Sheet2!$A$2:$O$3886,5,FALSE) -> Rushville | T5: =VLOOKUP($C5,Sheet2!$A$2:$O$3886,6,FALSE) -> Illinois | U5: =VLOOKUP($C5,Sheet2!$A$2:$O$3886,7,FALSE) -> 62681-1465 | V5: =VLOOKUP($C5,Sheet2!$A$2:$O$3886,11,FALSE) -> Tiffany Maxwell
A6: =IF(C6=Entry!$B$7,INT(A5)+1,A5+0.00001) -> 5e-05 | B6: RG01 | C6: 17 | D6: 5.05 | E6: 5.4 | F6: 4.94 | G6: -0.31 | H6: 4.63 | I6: 0.04 | J6: 0.11 | K6: 0.62 | L6: 0 | N6: 18 | O6: =VLOOKUP($C6,Sheet2!$A$2:$O$3886,10,FALSE) -> City Of Waterloo | P6: =VLOOKUP($C6,Sheet2!$A$2:$O$3886,2,FALSE) -> 100 W 4Th St | Q6: =VLOOKUP($C6,Sheet2!$A$2:$O$3886,3,FALSE) ->  | R6: =VLOOKUP($C6,Sheet2!$A$2:$O$3886,4,FALSE) ->  | S6: =VLOOKUP($C6,Sheet2!$A$2:$O$3886,5,FALSE) -> Waterloo | T6: =VLOOKUP($C6,Sheet2!$A$2:$O$3886,6,FALSE) -> Illinois | U6: =VLOOKUP($C6,Sheet2!$A$2:$O$3886,7,FALSE) -> 62298 | V6: =VLOOKUP($C6,Sheet2!$A$2:$O$3886,11,FALSE) -> Sarah Craig
A7: =IF(C7=Entry!$B$7,INT(A6)+1,A6+0.00001) -> 6e-05 | B7: RG01 | C7: 19 | D7: 10.59 | E7: 12.73 | F7: 4.05 | G7: 7.73 | H7: 11.78 | I7: 0.04 | J7: 0.29 | K7: 0.62 | L7: 0 | N7: 18 | O7: =VLOOKUP($C7,Sheet2!$A$2:$O$3886,10,FALSE) -> Village Of Island Lake | P7: =VLOOKUP($C7,Sheet2!$A$2:$O$3886,2,FALSE) -> 3720 Greenleaf Ave | Q7: =VLOOKUP($C7,Sheet2!$A$2:$O$3886,3,FALSE) ->  | R7: =VLOOKUP($C7,Sheet2!$A$2:$O$3886,4,FALSE) ->  | S7: =VLOOKUP($C7,Sheet2!$A$2:$O$3886,5,FALSE) -> Island Lake | T7: =VLOOKUP($C7,Sheet2!$A$2:$O$3886,6,FALSE) -> Illinois | U7: =VLOOKUP($C7,Sheet2!$A$2:$O$3886,7,FALSE) -> 60042-9506 | V7: =VLOOKUP($C7,Sheet2!$A$2:$O$3886,11,FALSE) -> Dennis Murray
A8: =IF(C8=Entry!$B$7,INT(A7)+1,A7+0.00001) -> 7e-05 | B8: SL01 | C8: 19 | D8: 12.48 | E8: 11.76 | F8: 10.97 | G8: 0 | H8: 10.97 | I8: 0.04 | J8: 0.13 | K8: 0.62 | L8: 0 | M8: 0 | N8: 18 | O8: =VLOOKUP($C8,Sheet2!$A$2:$O$3886,10,FALSE) -> Village Of Island Lake | P8: =VLOOKUP($C8,Sheet2!$A$2:$O$3886,2,FALSE) -> 3720 Greenleaf Ave | Q8: =VLOOKUP($C8,Sheet2!$A$2:$O$3886,3,FALSE) ->  | R8: =VLOOKUP($C8,Sheet2!$A$2:$O$3886,4,FALSE) ->  | S8: =VLOOKUP($C8,Sheet2!$A$2:$O$3886,5,FALSE) -> Island Lake | T8: =VLOOKUP($C8,Sheet2!$A$2:$O$3886,6,FALSE) -> Illinois | U8: =VLOOKUP($C8,Sheet2!$A$2:$O$3886,7,FALSE) -> 60042-9506 | V8: =VLOOKUP($C8,Sheet2!$A$2:$O$3886,11,FALSE) -> Dennis Murray
A9: =IF(C9=Entry!$B$7,INT(A8)+1,A8+0.00001) -> 8e-05 | B9: RG01 | C9: 21 | D9: 0.93 | E9: 0.81 | F9: 4.52 | G9: -8.06 | H9: 0 | I9: 0.04 | J9: 0.15 | K9: 0.62 | L9: 0 | N9: 10 | O9: =VLOOKUP($C9,Sheet2!$A$2:$O$3886,10,FALSE) -> St Clair Co Housing Authority | P9: =VLOOKUP($C9,Sheet2!$A$2:$O$3886,2,FALSE) -> 1790 S 74Th St | Q9: =VLOOKUP($C9,Sheet2!$A$2:$O$3886,3,FALSE) ->  | R9: =VLOOKUP($C9,Sheet2!$A$2:$O$3886,4,FALSE) ->  | S9: =VLOOKUP($C9,Sheet2!$A$2:$O$3886,5,FALSE) -> Belleville | T9: =VLOOKUP($C9,Sheet2!$A$2:$O$3886,6,FALSE) -> Illinois | U9: =VLOOKUP($C9,Sheet2!$A$2:$O$3886,7,FALSE) -> 62223-3363 | V9: =VLOOKUP($C9,Sheet2!$A$2:$O$3886,11,FALSE) -> Shanae Golliday-anderson
A10: =IF(C10=Entry!$B$7,INT(A9)+1,A9+0.00001) -> 9e-05 | B10: RG01 | C10: 22 | D10: 21.28 | E10: 22.05 | F10: 5.7 | G10: 15.61 | H10: 21.31 | I10: 0.04 | J10: 0.08 | K10: 0.62 | L10: 0 | N10: 18 | O10: =VLOOKUP($C10,Sheet2!$A$2:$O$3886,10,FALSE) -> Village Of Bedford Park | P10: =VLOOKUP($C10,Sheet2!$A$2:$O$3886,2,FALSE) -> 6701 S Archer Rd | Q10: =VLOOKUP($C10,Sheet2!$A$2:$O$3886,3,FALSE) ->  | R10: =VLOOKUP($C10,Sheet2!$A$2:$O$3886,4,FALSE) ->  | S10: =VLOOKUP($C10,Sheet2!$A$2:$O$3886,5,FALSE) -> Bedford Park | T10: =VLOOKUP($C10,Sheet2!$A$2:$O$3886,6,FALSE) -> Illinois | U10: =VLOOKUP($C10,Sheet2!$A$2:$O$3886,7,FALSE) -> 60501-1936 | V10: =VLOOKUP($C10,Sheet2!$A$2:$O$3886,11,FALSE) -> DYANE JOINER
A11: =IF(C11=Entry!$B$7,INT(A10)+1,A10+0.00001) -> 0.0001 | B11: SL01 | C11: 22 | D11: 8.67 | E11: 7.72 | F11: 6.61 | G11: 0.33 | H11: 6.94 | I11: 0.04 | J11: 0.12 | K11: 0.62 | L11: 0 | M11: 0 | N11: 24 | O11: =VLOOKUP($C11,Sheet2!$A$2:$O$3886,10,FALSE) -> Village Of Bedford Park | P11: =VLOOKUP($C11,Sheet2!$A$2:$O$3886,2,FALSE) -> 6701 S Archer Rd | Q11: =VLOOKUP($C11,Sheet2!$A$2:$O$3886,3,FALSE) ->  | R11: =VLOOKUP($C11,Sheet2!$A$2:$O$3886,4,FALSE) ->  | S11: =VLOOKUP($C11,Sheet2!$A$2:$O$3886,5,FALSE) -> Bedford Park | T11: =VLOOKUP($C11,Sheet2!$A$2:$O$3886,6,FALSE) -> Illinois | U11: =VLOOKUP($C11,Sheet2!$A$2:$O$3886,7,FALSE) -> 60501-1936 | V11: =VLOOKUP($C11,Sheet2!$A$2:$O$3886,11,FALSE) -> DYANE JOINER
A12: =IF(C12=Entry!$B$7,INT(A11)+1,A11+0.00001) -> 0.00011 | B12: RG01 | C12: 23 | D12: 9 | E12: 9.14 | F12: 4.23 | G12: 4.17 | H12: 8.4 | I12: 0.04 | J12: 0.08 | K12: 0.62 | L12: 0 | N12: 18 | O12: =VLOOKUP($C12,Sheet2!$A$2:$O$3886,10,FALSE) -> City Of Casey | P12: =VLOOKUP($C12,Sheet2!$A$2:$O$3886,2,FALSE) -> Po Box 425 | Q12: =VLOOKUP($C12,Sheet2!$A$2:$O$3886,3,FALSE) -> 108 E Main St | R12: =VLOOKUP($C12,Sheet2!$A$2:$O$3886,4,FALSE) ->  | S12: =VLOOKUP($C12,Sheet2!$A$2:$O$3886,5,FALSE) -> Casey | T12: =VLOOKUP($C12,Sheet2!$A$2:$O$3886,6,FALSE) -> Illinois | U12: =VLOOKUP($C12,Sheet2!$A$2:$O$3886,7,FALSE) -> 62420-0425 | V12: =VLOOKUP($C12,Sheet2!$A$2:$O$3886,11,FALSE) -> Jeremy Mumford
A13: =IF(C13=Entry!$B$7,INT(A12)+1,A12+0.00001) -> 0.00012 | B13: SL01 | C13: 23 | D13: 12.48 | E13: 11.76 | F13: 10.97 | G13: 0 | H13: 10.97 | I13: 0.04 | J13: 0.13 | K13: 0.62 | L13: 0 | M13: 0 | N13: 18 | O13: =VLOOKUP($C13,Sheet2!$A$2:$O$3886,10,FALSE) -> City Of Casey | P13: =VLOOKUP($C13,Sheet2!$A$2:$O$3886,2,FALSE) -> Po Box 425 | Q13: =VLOOKUP($C13,Sheet2!$A$2:$O$3886,3,FALSE) -> 108 E Main St | R13: =VLOOKUP($C13,Sheet2!$A$2:$O$3886,4,FALSE) ->  | S13: =VLOOKUP($C13,Sheet2!$A$2:$O$3886,5,FALSE) -> Casey | T13: =VLOOKUP($C13,Sheet2!$A$2:$O$3886,6,FALSE) -> Illinois | U13: =VLOOKUP($C13,Sheet2!$A$2:$O$3886,7,FALSE) -> 62420-0425 | V13: =VLOOKUP($C13,Sheet2!$A$2:$O$3886,11,FALSE) -> Jeremy Mumford
A14: =IF(C14=Entry!$B$7,INT(A13)+1,A13+0.00001) -> 0.00013 | B14: RG01 | C14: 24 | D14: 3.85 | E14: 3.96 | F14: 4.33 | G14: -1.17 | H14: 3.16 | I14: 0.04 | J14: 0.14 | K14: 0.62 | L14: 0 | N14: 18 | O14: =VLOOKUP($C14,Sheet2!$A$2:$O$3886,10,FALSE) -> Village Of Freeburg | P14: =VLOOKUP($C14,Sheet2!$A$2:$O$3886,2,FALSE) -> 14 Southgate Ctr | Q14: =VLOOKUP($C14,Sheet2!$A$2:$O$3886,3,FALSE) ->  | R14: =VLOOKUP($C14,Sheet2!$A$2:$O$3886,4,FALSE) ->  | S14: =VLOOKUP($C14,Sheet2!$A$2:$O$3886,5,FALSE) -> Freeburg | T14: =VLOOKUP($C14,Sheet2!$A$2:$O$3886,6,FALSE) -> Illinois | U14: =VLOOKUP($C14,Sheet2!$A$2:$O$3886,7,FALSE) -> 62243-1563 | V14: =VLOOKUP($C14,Sheet2!$A$2:$O$3886,11,FALSE) -> Mary Downen
A15: =IF(C15=Entry!$B$7,INT(A14)+1,A14+0.00001) -> 0.00014 | B15: RG01 | C15: 25 | D15: 7.7 | E15: 9.12 | F15: 4.62 | G15: 3.72 | H15: 8.34 | I15: 0.04 | J15: 0.12 | K15: 0.62 | L15: 0 | N15: 18 | O15: =VLOOKUP($C15,Sheet2!$A$2:$O$3886,10,FALSE) -> City Of Fulton | P15: =VLOOKUP($C15,Sheet2!$A$2:$O$3886,2,FALSE) -> 415 11Th Ave | Q15: =VLOOKUP($C15,Sheet2!$A$2:$O$3886,3,FALSE) ->  | R15: =VLOOKUP($C15,Sheet2!$A$2:$O$3886,4,FALSE) ->  | S15: =VLOOKUP($C15,Sheet2!$A$2:$O$3886,5,FALSE) -> Fulton | T15: =VLOOKUP($C15,Sheet2!$A$2:$O$3886,6,FALSE) -> Illinois | U15: =VLOOKUP($C15,Sheet2!$A$2:$O$3886,7,FALSE) -> 61252-1727 | V15: =VLOOKUP($C15,Sheet2!$A$2:$O$3886,11,FALSE) -> Tammy Garibay
A16: =IF(C16=Entry!$B$7,INT(A15)+1,A15+0.00001) -> 0.00015 | B16: RG01 | C16: 26 | D16: 7.86 | E16: 7.58 | F16: 4.73 | G16: 2.09 | H16: 6.82 | I16: 0.04 | J16: 0.1 | K16: 0.62 | L16: 0 | N16: 18 | O16: =VLOOKUP($C16,Sheet2!$A$2:$O$3886,10,FALSE) -> City Of Mascoutah | P16: =VLOOKUP($C16,Sheet2!$A$2:$O$3886,2,FALSE) -> 3 W Main St | Q16: =VLOOKUP($C16,Sheet2!$A$2:$O$3886,3,FALSE) ->  | R16: =VLOOKUP($C16,Sheet2!$A$2:$O$3886,4,FALSE) ->  | S16: =VLOOKUP($C16,Sheet2!$A$2:$O$3886,5,FALSE) -> Mascoutah | T16: =VLOOKUP($C16,Sheet2!$A$2:$O$3886,6,FALSE) -> Illinois | U16: =VLOOKUP($C16,Sheet2!$A$2:$O$3886,7,FALSE) -> 62258-2044 | V16: =VLOOKUP($C16,Sheet2!$A$2:$O$3886,11,FALSE) -> Melissa Schanz
A17: =IF(C17=Entry!$B$7,INT(A16)+1,A16+0.00001) -> 0.00016 | B17: SL01 | C17: 26 | D17: 34.46 | E17: 34.2 | F17: 6.61 | G17: 20.66 | H17: 27.27 | I17: 0.04 | J17: 0.73 | K17: 0.62 | L17: 0 | M17: 5.54 | N17: 18 | O17: =VLOOKUP($C17,Sheet2!$A$2:$O$3886,10,FALSE) -> City Of Mascoutah | P17: =VLOOKUP($C17,Sheet2!$A$2:$O$3886,2,FALSE) -> 3 W Main St | Q17: =VLOOKUP($C17,Sheet2!$A$2:$O$3886,3,FALSE) ->  | R17: =VLOOKUP($C17,Sheet2!$A$2:$O$3886,4,FALSE) ->  | S17: =VLOOKUP($C17,Sheet2!$A$2:$O$3886,5,FALSE) -> Mascoutah | T17: =VLOOKUP($C17,Sheet2!$A$2:$O$3886,6,FALSE) -> Illinois | U17: =VLOOKUP($C17,Sheet2!$A$2:$O$3886,7,FALSE) -> 62258-2044 | V17: =VLOOKUP($C17,Sheet2!$A$2:$O$3886,11,FALSE) -> Melissa Schanz
A18: =IF(C18=Entry!$B$7,INT(A17)+1,A17+0.00001) -> 0.00017 | B18: RG01 | C18: 27 | D18: 5.31 | E18: 5.43 | F18: 5.07 | G18: -0.42 | H18: 4.65 | I18: 0.04 | J18: 0.12 | K18: 0.62 | L18: 0 | N18: 18 | O18: =VLOOKUP($C18,Sheet2!$A$2:$O$3886,10,FALSE) -> City Of Metropolis | P18: =VLOOKUP($C18,Sheet2!$A$2:$O$3886,2,FALSE) -> 106 W 5Th St | Q18: =VLOOKUP($C18,Sheet2!$A$2:$O$3886,3,FALSE) ->  | R18: =VLOOKUP($C18,Sheet2!$A$2:$O$3886,4,FALSE) ->  | S18: =VLOOKUP($C18,Sheet2!$A$2:$O$3886,5,FALSE) -> Metropolis | T18: =VLOOKUP($C18,Sheet2!$A$2:$O$3886,6,FALSE) -> Illinois | U18: =VLOOKUP($C18,Sheet2!$A$2:$O$3886,7,FALSE) -> 62960-0682 | V18: =VLOOKUP($C18,Sheet2!$A$2:$O$3886,11,FALSE) -> Rebecca Reed
A19: =IF(C19=Entry!$B$7,INT(A18)+1,A18+0.00001) -> 0.00018 | B19: RG01 | C19: 28 | D19: 6.16 | E19: 7.11 | F19: 4.56 | G19: 1.8 | H19: 6.36 | I19: 0.04 | J19: 0.09 | K19: 0.62 | L19: 0 | N19: 18 | O19: =VLOOKUP($C19,Sheet2!$A$2:$O$3886,10,FALSE) -> City Of Newton | P19: =VLOOKUP($C19,Sheet2!$A$2:$O$3886,2,FALSE) -> Po Box 165 | Q19: =VLOOKUP($C19,Sheet2!$A$2:$O$3886,3,FALSE) ->  | R19: =VLOOKUP($C19,Sheet2!$A$2:$O$3886,4,FALSE) ->  | S19: =VLOOKUP($C19,Sheet2!$A$2:$O$3886,5,FALSE) -> Newton | T19: =VLOOKUP($C19,Sheet2!$A$2:$O$3886,6,FALSE) -> Illinois | U19: =VLOOKUP($C19,Sheet2!$A$2:$O$3886,7,FALSE) -> 62448-0165 | V19: =VLOOKUP($C19,Sheet2!$A$2:$O$3886,11,FALSE) -> Melissa Brooks
A20: =IF(C20=Entry!$B$7,INT(A19)+1,A19+0.00001) -> 0.00019 | B20: RG01 | C20: 29 | D20: 6.69 | E20: 7.02 | F20: 5.24 | G20: 0.98 | H20: 6.22 | I20: 0.04 | J20: 0.14 | K20: 0.62 | L20: 0 | N20: 18 | O20: =VLOOKUP($C20,Sheet2!$A$2:$O$3886,10,FALSE) -> City Of Plano | P20: =VLOOKUP($C20,Sheet2!$A$2:$O$3886,2,FALSE) -> 17 E Main St | Q20: =VLOOKUP($C20,Sheet2!$A$2:$O$3886,3,FALSE) ->  | R20: =VLOOKUP($C20,Sheet2!$A$2:$O$3886,4,FALSE) ->  | S20: =VLOOKUP($C20,Sheet2!$A$2:$O$3886,5,FALSE) -> Plano | T20: =VLOOKUP($C20,Sheet2!$A$2:$O$3886,6,FALSE) -> Illinois | U20: =VLOOKUP($C20,Sheet2!$A$2:$O$3886,7,FALSE) -> 60545-1521 | V20: =VLOOKUP($C20,Sheet2!$A$2:$O$3886,11,FALSE) -> Zoila Gomez
A21: =IF(C21=Entry!$B$7,INT(A20)+1,A20+0.00001) -> 0.0002 | B21: RG01 | C21: 30 | D21: 11.74 | E21: 12.58 | F21: 4.09 | G21: 7.74 | H21: 11.83 | I21: 0.04 | J21: 0.09 | K21: 0.62 | L21: 0 | N21: 18 | O21: =VLOOKUP($C21,Sheet2!$A$2:$O$3886,10,FALSE) -> South Rock Island Township | P21: =VLOOKUP($C21,Sheet2!$A$2:$O$3886,2,FALSE) -> 4330 11Th St | Q21: =VLOOKUP($C21,Sheet2!$A$2:$O$3886,3,FALSE) ->  | R21: =VLOOKUP($C21,Sheet2!$A$2:$O$3886,4,FALSE) ->  | S21: =VLOOKUP($C21,Sheet2!$A$2:$O$3886,5,FALSE) -> Rock Island | T21: =VLOOKUP($C21,Sheet2!$A$2:$O$3886,6,FALSE) -> Illinois | U21: =VLOOKUP($C21,Sheet2!$A$2:$O$3886,7,FALSE) -> 61201-6747 | V21: =VLOOKUP($C21,Sheet2!$A$2:$O$3886,11,FALSE) -> Grace Shirk
A22: =IF(C22=Entry!$B$7,INT(A21)+1,A21+0.00001) -> 0.00021 | B22: RG01 | C22: 31 | D22: 7.39 | E22: 6.87 | F22: 4.3 | G22: 1.74 | H22: 6.04 | I22: 0.04 | J22: 0.17 | K22: 0.62 | L22: 0 | N22: 18 | O22: =VLOOKUP($C22,Sheet2!$A$2:$O$3886,10,FALSE) -> City Of Taylorville | P22: =VLOOKUP($C22,Sheet2!$A$2:$O$3886,2,FALSE) -> 115 N Main St Ste 3 | Q22: =VLOOKUP($C22,Sheet2!$A$2:$O$3886,3,FALSE) ->  | R22: =VLOOKUP($C22,Sheet2!$A$2:$O$3886,4,FALSE) ->  | S22: =VLOOKUP($C22,Sheet2!$A$2:$O$3886,5,FALSE) -> Taylorville | T22: =VLOOKUP($C22,Sheet2!$A$2:$O$3886,6,FALSE) -> Illinois | U22: =VLOOKUP($C22,Sheet2!$A$2:$O$3886,7,FALSE) -> 62568-2273 | V22: =VLOOKUP($C22,Sheet2!$A$2:$O$3886,11,FALSE) -> Traci Bentley
A23: =IF(C23=Entry!$B$7,INT(A22)+1,A22+0.00001) -> 0.00022 | B23: RG01 | C23: 34 | D23: 2.26 | E23: 2.05 | F23: 5.03 | G23: -3.85 | H23: 1.18 | I23: 0.04 | J23: 0.21 | K23: 0.62 | L23: 0 | N23: 18 | O23: =VLOOKUP($C23,Sheet2!$A$2:$O$3886,10,FALSE) -> Veterans Park Dist | P23: =VLOOKUP($C23,Sheet2!$A$2:$O$3886,2,FALSE) -> 44 Golfview Dr | Q23: =VLOOKUP($C23,Sheet2!$A$2:$O$3886,3,FALSE) ->  | R23: =VLOOKUP($C23,Sheet2!$A$2:$O$3886,4,FALSE) ->  | S23: =VLOOKUP($C23,Sheet2!$A$2:$O$3886,5,FALSE) -> Northlake | T23: =VLOOKUP($C23,Sheet2!$A$2:$O$3886,6,FALSE) -> Illinois | U23: =VLOOKUP($C23,Sheet2!$A$2:$O$3886,7,FALSE) -> 60164-1613 | V23: =VLOOKUP($C23,Sheet2!$A$2:$O$3886,11,FALSE) -> Margaret Stabile
A24: =IF(C24=Entry!$B$7,INT(A23)+1,A23+0.00001) -> 0.00023 | B24: RG01 | C24: 35 | D24: 10.15 | E24: 9.84 | F24: 5.12 | G24: 3.93 | H24: 9.05 | I24: 0.04 | J24: 0.13 | K24: 0.62 | L24: 0 | N24: 18 | O24: =VLOOKUP($C24,Sheet2!$A$2:$O$3886,10,FALSE) -> Zion Park District | P24: =VLOOKUP($C24,Sheet2!$A$2:$O$3886,2,FALSE) -> 2400 Dowie Memorial Dr | Q24: =VLOOKUP($C24,Sheet2!$A$2:$O$3886,3,FALSE) ->  | R24: =VLOOKUP($C24,Sheet2!$A$2:$O$3886,4,FALSE) ->  | S24: =VLOOKUP($C24,Sheet2!$A$2:$O$3886,5,FALSE) -> Zion | T24: =VLOOKUP($C24,Sheet2!$A$2:$O$3886,6,FALSE) -> Illinois | U24: =VLOOKUP($C24,Sheet2!$A$2:$O$3886,7,FALSE) -> 60099-2593 | V24: =VLOOKUP($C24,Sheet2!$A$2:$O$3886,11,FALSE) -> Eric Bradley
A25: =IF(C25=Entry!$B$7,INT(A24)+1,A24+0.00001) -> 0.00024 | B25: RG01 | C25: 37 | D25: 3.07 | E25: 5.06 | F25: 3.51 | G25: 0.56 | H25: 4.07 | I25: 0.04 | J25: 0.33 | K25: 0.62 | L25: 0 | N25: 18 | O25: =VLOOKUP($C25,Sheet2!$A$2:$O$3886,10,FALSE) -> Rock Island Township | P25: =VLOOKUP($C25,Sheet2!$A$2:$O$3886,2,FALSE) -> 2827 7Th Ave Ste 1 | Q25: =VLOOKUP($C25,Sheet2!$A$2:$O$3886,3,FALSE) ->  | R25: =VLOOKUP($C25,Sheet2!$A$2:$O$3886,4,FALSE) ->  | S25: =VLOOKUP($C25,Sheet2!$A$2:$O$3886,5,FALSE) -> Rock Island | T25: =VLOOKUP($C25,Sheet2!$A$2:$O$3886,6,FALSE) -> Illinois | U25: =VLOOKUP($C25,Sheet2!$A$2:$O$3886,7,FALSE) -> 61201-1904 | V25: =VLOOKUP($C25,Sheet2!$A$2:$O$3886,11,FALSE) -> JOHN BRANDMEYER**JR
A26: =IF(C26=Entry!$B$7,INT(A25)+1,A25+0.00001) -> 0.00025 | B26: RG01 | C26: 38 | D26: 9.1 | E26: 9.87 | F26: 4.93 | G26: 4.19 | H26: 9.12 | I26: 0.04 | J26: 0.09 | K26: 0.62 | L26: 0 | N26: 18 | O26: =VLOOKUP($C26,Sheet2!$A$2:$O$3886,10,FALSE) -> Town Of Normal | P26: =VLOOKUP($C26,Sheet2!$A$2:$O$3886,2,FALSE) -> 11 Uptown Cir | Q26: =VLOOKUP($C26,Sheet2!$A$2:$O$3886,3,FALSE) ->  | R26: =VLOOKUP($C26,Sheet2!$A$2:$O$3886,4,FALSE) ->  | S26: =VLOOKUP($C26,Sheet2!$A$2:$O$3886,5,FALSE) -> Normal | T26: =VLOOKUP($C26,Sheet2!$A$2:$O$3886,6,FALSE) -> Illinois | U26: =VLOOKUP($C26,Sheet2!$A$2:$O$3886,7,FALSE) -> 61761-8700 | V26: =VLOOKUP($C26,Sheet2!$A$2:$O$3886,11,FALSE) -> Jennifer Keigher
A27: =IF(C27=Entry!$B$7,INT(A26)+1,A26+0.00001) -> 0.00026 | B27: RG01 | C27: 40 | D27: 6.59 | E27: 7.25 | F27: 4.51 | G27: 1.98 | H27: 6.49 | I27: 0.04 | J27: 0.1 | K27: 0.62 | L27: 0 | N27: 18 | O27: =VLOOKUP($C27,Sheet2!$A$2:$O$3886,10,FALSE) -> City Of Eldorado | P27: =VLOOKUP($C27,Sheet2!$A$2:$O$3886,2,FALSE) -> 901 4Th St | Q27: =VLOOKUP($C27,Sheet2!$A$2:$O$3886,3,FALSE) ->  | R27: =VLOOKUP($C27,Sheet2!$A$2:$O$3886,4,FALSE) ->  | S27: =VLOOKUP($C27,Sheet2!$A$2:$O$3886,5,FALSE) -> Eldorado | T27: =VLOOKUP($C27,Sheet2!$A$2:$O$3886,6,FALSE) -> Illinois | U27: =VLOOKUP($C27,Sheet2!$A$2:$O$3886,7,FALSE) -> 62930-1243 | V27: =VLOOKUP($C27,Sheet2!$A$2:$O$3886,11,FALSE) -> Stacy James
A28: =IF(C28=Entry!$B$7,INT(A27)+1,A27+0.00001) -> 0.00027 | B28: RG01 | C28: 41 | D28: 4.61 | E28: 5.72 | F28: 3.93 | G28: 0.98 | H28: 4.91 | I28: 0.04 | J28: 0.15 | K28: 0.62 | L28: 0 | N28: 18 | O28: =VLOOKUP($C28,Sheet2!$A$2:$O$3886,10,FALSE) -> City Of Staunton | P28: =VLOOKUP($C28,Sheet2!$A$2:$O$3886,2,FALSE) -> 304 W Main St | Q28: =VLOOKUP($C28,Sheet2!$A$2:$O$3886,3,FALSE) ->  | R28: =VLOOKUP($C28,Sheet2!$A$2:$O$3886,4,FALSE) ->  | S28: =VLOOKUP($C28,Sheet2!$A$2:$O$3886,5,FALSE) -> Staunton | T28: =VLOOKUP($C28,Sheet2!$A$2:$O$3886,6,FALSE) -> Illinois | U28: =VLOOKUP($C28,Sheet2!$A$2:$O$3886,7,FALSE) -> 62088-1476 | V28: =VLOOKUP($C28,Sheet2!$A$2:$O$3886,11,FALSE) -> Dennis Stiegemeier
A29: =IF(C29=Entry!$B$7,INT(A28)+1,A28+0.00001) -> 0.00028 | B29: SL01 | C29: 41 | D29: 12.48 | E29: 11.76 | F29: 10.97 | G29: 0 | H29: 10.97 | I29: 0.04 | J29: 0.13 | K29: 0.62 | L29: 0 | M29: 0 | N29: 18 | O29: =VLOOKUP($C29,Sheet2!$A$2:$O$3886,10,FALSE) -> City Of Staunton | P29: =VLOOKUP($C29,Sheet2!$A$2:$O$3886,2,FALSE) -> 304 W Main St | Q29: =VLOOKUP($C29,Sheet2!$A$2:$O$3886,3,FALSE) ->  | R29: =VLOOKUP($C29,Sheet2!$A$2:$O$3886,4,FALSE) ->  | S29: =VLOOKUP($C29,Sheet2!$A$2:$O$3886,5,FALSE) -> Staunton | T29: =VLOOKUP($C29,Sheet2!$A$2:$O$3886,6,FALSE) -> Illinois | U29: =VLOOKUP($C29,Sheet2!$A$2:$O$3886,7,FALSE) -> 62088-1476 | V29: =VLOOKUP($C29,Sheet2!$A$2:$O$3886,11,FALSE) -> Dennis Stiegemeier
A30: =IF(C30=Entry!$B$7,INT(A29)+1,A29+0.00001) -> 0.00029 | B30: RG01 | C30: 42 | D30: 6.95 | E30: 6.82 | F30: 4.74 | G30: 1.27 | H30: 6.01 | I30: 0.04 | J30: 0.15 | K30: 0.62 | L30: 0 | N30: 18 | O30: =VLOOKUP($C30,Sheet2!$A$2:$O$3886,10,FALSE) -> City Of Fairfield | P30: =VLOOKUP($C30,Sheet2!$A$2:$O$3886,2,FALSE) -> 109 Ne 2Nd St | Q30: =VLOOKUP($C30,Sheet2!$A$2:$O$3886,3,FALSE) ->  | R30: =VLOOKUP($C30,Sheet2!$A$2:$O$3886,4,FALSE) ->  | S30: =VLOOKUP($C30,Sheet2!$A$2:$O$3886,5,FALSE) -> Fairfield | T30: =VLOOKUP($C30,Sheet2!$A$2:$O$3886,6,FALSE) -> Illinois | U30: =VLOOKUP($C30,Sheet2!$A$2:$O$3886,7,FALSE) -> 62837-2029 | V30: =VLOOKUP($C30,Sheet2!$A$2:$O$3886,11,FALSE) -> GARY MOORE
A31: =IF(C31=Entry!$B$7,INT(A30)+1,A30+0.00001) -> 0.0003 | B31: RG01 | C31: 43 | D31: 13.4 | E31: 9.87 | F31: 4.18 | G31: 4.61 | H31: 8.79 | I31: 0.04 | J31: 0.1 | K31: 0.62 | L31: 0.32 | N31: 18 | O31: =VLOOKUP($C31,Sheet2!$A$2:$O$3886,10,FALSE) -> City Of Anna | P31: =VLOOKUP($C31,Sheet2!$A$2:$O$3886,2,FALSE) -> 103 Market St | Q31: =VLOOKUP($C31,Sheet2!$A$2:$O$3886,3,FALSE) ->  | R31: =VLOOKUP($C31,Sheet2!$A$2:$O$3886,4,FALSE) ->  | S31: =VLOOKUP($C31,Sheet2!$A$2:$O$3886,5,FALSE) -> Anna | T31: =VLOOKUP($C31,Sheet2!$A$2:$O$3886,6,FALSE) -> Illinois | U31: =VLOOKUP($C31,Sheet2!$A$2:$O$3886,7,FALSE) -> 62906-1299 | V31: =VLOOKUP($C31,Sheet2!$A$2:$O$3886,11,FALSE) -> Dori Bigler
A32: =IF(C32=Entry!$B$7,INT(A31)+1,A31+0.00001) -> 0.00031 | B32: RG01 | C32: 44 | D32: 6.03 | E32: 6.41 | F32: 4.5 | G32: 1.12 | H32: 5.62 | I32: 0.04 | J32: 0.13 | K32: 0.62 | L32: 0 | N32: 18 | O32: =VLOOKUP($C32,Sheet2!$A$2:$O$3886,10,FALSE) -> City Of Highland | P32: =VLOOKUP($C32,Sheet2!$A$2:$O$3886,2,FALSE) -> Po Box 218 | Q32: =VLOOKUP($C32,Sheet2!$A$2:$O$3886,3,FALSE) ->  | R32: =VLOOKUP($C32,Sheet2!$A$2:$O$3886,4,FALSE) ->  | S32: =VLOOKUP($C32,Sheet2!$A$2:$O$3886,5,FALSE) -> Highland | T32: =VLOOKUP($C32,Sheet2!$A$2:$O$3886,6,FALSE) -> Illinois | U32: =VLOOKUP($C32,Sheet2!$A$2:$O$3886,7,FALSE) -> 62249-0218 | V32: =VLOOKUP($C32,Sheet2!$A$2:$O$3886,11,FALSE) -> Megan Von hatten
A33: =IF(C33=Entry!$B$7,INT(A32)+1,A32+0.00001) -> 0.00032 | B33: SL01 | C33: 44 | D33: 15.9 | E33: 15.9 | F33: 10.97 | G33: -14.75 | H33: 0 | I33: 0.04 | J33: 0.24 | K33: 0.62 | L33: 0 | M33: 15 | N33: 18 | O33: =VLOOKUP($C33,Sheet2!$A$2:$O$3886,10,FALSE) -> City Of Highland | P33: =VLOOKUP($C33,Sheet2!$A$2:$O$3886,2,FALSE) -> Po Box 218 | Q33: =VLOOKUP($C33,Sheet2!$A$2:$O$3886,3,FALSE) ->  | R33: =VLOOKUP($C33,Sheet2!$A$2:$O$3886,4,FALSE) ->  | S33: =VLOOKUP($C33,Sheet2!$A$2:$O$3886,5,FALSE) -> Highland | T33: =VLOOKUP($C33,Sheet2!$A$2:$O$3886,6,FALSE) -> Illinois | U33: =VLOOKUP($C33,Sheet2!$A$2:$O$3886,7,FALSE) -> 62249-0218 | V33: =VLOOKUP($C33,Sheet2!$A$2:$O$3886,11,FALSE) -> Megan Von hatten
A34: =IF(C34=Entry!$B$7,INT(A33)+1,A33+0.00001) -> 0.00033 | B34: RG01 | C34: 45 | D34: 2.25 | E34: 3.34 | F34: 4.67 | G34: -2.15 | H34: 2.52 | I34: 0.04 | J34: 0.16 | K34: 0.62 | L34: 0 | N34: 18 | O34: =VLOOKUP($C34,Sheet2!$A$2:$O$3886,10,FALSE) -> City Of Johnston City | P34: =VLOOKUP($C34,Sheet2!$A$2:$O$3886,2,FALSE) -> 100 W Broadway Blvd | Q34: =VLOOKUP($C34,Sheet2!$A$2:$O$3886,3,FALSE) ->  | R34: =VLOOKUP($C34,Sheet2!$A$2:$O$3886,4,FALSE) ->  | S34: =VLOOKUP($C34,Sheet2!$A$2:$O$3886,5,FALSE) -> Johnston City | T34: =VLOOKUP($C34,Sheet2!$A$2:$O$3886,6,FALSE) -> Illinois | U34: =VLOOKUP($C34,Sheet2!$A$2:$O$3886,7,FALSE) -> 62951-1424 | V34: =VLOOKUP($C34,Sheet2!$A$2:$O$3886,11,FALSE) -> JADE WEST
A35: =IF(C35=Entry!$B$7,INT(A34)+1,A34+0.00001) -> 0.00034 | B35: RG01 | C35: 46 | D35: 0.9 | E35: 0.78 | F35: 4.55 | G35: -4.93 | H35: 0 | I35: 0.04 | J35: 0.12 | K35: 0.62 | L35: 0 | N35: 18 | O35: =VLOOKUP($C35,Sheet2!$A$2:$O$3886,10,FALSE) -> City Of Madison | P35: =VLOOKUP($C35,Sheet2!$A$2:$O$3886,2,FALSE) -> 615 Madison Ave | Q35: =VLOOKUP($C35,Sheet2!$A$2:$O$3886,3,FALSE) ->  | R35: =VLOOKUP($C35,Sheet2!$A$2:$O$3886,4,FALSE) ->  | S35: =VLOOKUP($C35,Sheet2!$A$2:$O$3886,5,FALSE) -> Madison | T35: =VLOOKUP($C35,Sheet2!$A$2:$O$3886,6,FALSE) -> Illinois | U35: =VLOOKUP($C35,Sheet2!$A$2:$O$3886,7,FALSE) -> 62060-1415 | V35: =VLOOKUP($C35,Sheet2!$A$2:$O$3886,11,FALSE) -> SCOTT ONEY
A36: =IF(C36=Entry!$B$7,INT(A35)+1,A35+0.00001) -> 0.00035 | B36: RG01 | C36: 47 | D36: 12.89 | E36: 12.79 | F36: 4.47 | G36: 0.01 | H36: 4.48 | I36: 0.04 | J36: 0.09 | K36: 0.62 | L36: 7.56 | N36: 18 | O36: =VLOOKUP($C36,Sheet2!$A$2:$O$3886,10,FALSE) -> City Of Mcleansboro | P36: =VLOOKUP($C36,Sheet2!$A$2:$O$3886,2,FALSE) -> 102 W Main St | Q36: =VLOOKUP($C36,Sheet2!$A$2:$O$3886,3,FALSE) ->  | R36: =VLOOKUP($C36,Sheet2!$A$2:$O$3886,4,FALSE) ->  | S36: =VLOOKUP($C36,Sheet2!$A$2:$O$3886,5,FALSE) -> Mc Leansboro | T36: =VLOOKUP($C36,Sheet2!$A$2:$O$3886,6,FALSE) -> Illinois | U36: =VLOOKUP($C36,Sheet2!$A$2:$O$3886,7,FALSE) -> 62859-1195 | V36: =VLOOKUP($C36,Sheet2!$A$2:$O$3886,11,FALSE) -> Jodi Brockett
A37: =IF(C37=Entry!$B$7,INT(A36)+1,A36+0.00001) -> 0.00036 | B37: RG01 | C37: 48 | D37: 5.32 | E37: 6.87 | F37: 4.76 | G37: 1.3 | H37: 6.06 | I37: 0.04 | J37: 0.15 | K37: 0.62 | L37: 0 | N37: 18 | O37: =VLOOKUP($C37,Sheet2!$A$2:$O$3886,10,FALSE) -> City Of Morrison | P37: =VLOOKUP($C37,Sheet2!$A$2:$O$3886,2,FALSE) -> 200 W Main St | Q37: =VLOOKUP($C37,Sheet2!$A$2:$O$3886,3,FALSE) ->  | R37: =VLOOKUP($C37,Sheet2!$A$2:$O$3886,4,FALSE) ->  | S37: =VLOOKUP($C37,Sheet2!$A$2:$O$3886,5,FALSE) -> Morrison | T37: =VLOOKUP($C37,Sheet2!$A$2:$O$3886,6,FALSE) -> Illinois | U37: =VLOOKUP($C37,Sheet2!$A$2:$O$3886,7,FALSE) -> 61270-2400 | V37: =VLOOKUP($C37,Sheet2!$A$2:$O$3886,11,FALSE) -> Barbara King
A38: =IF(C38=Entry!$B$7,INT(A37)+1,A37+0.00001) -> 0.00037 | B38: RG01 | C38: 50 | D38: 7.73 | E38: 8.6 | F38: 4.86 | G38: 2.96 | H38: 7.82 | I38: 0.04 | J38: 0.12 | K38: 0.62 | L38: 0 | N38: 18 | O38: =VLOOKUP($C38,Sheet2!$A$2:$O$3886,10,FALSE) -> City Of Salem | P38: =VLOOKUP($C38,Sheet2!$A$2:$O$3886,2,FALSE) -> 101 S Broadway Ave | Q38: =VLOOKUP($C38,Sheet2!$A$2:$O$3886,3,FALSE) ->  | R38: =VLOOKUP($C38,Sheet2!$A$2:$O$3886,4,FALSE) ->  | S38: =VLOOKUP($C38,Sheet2!$A$2:$O$3886,5,FALSE) -> Salem | T38: =VLOOKUP($C38,Sheet2!$A$2:$O$3886,6,FALSE) -> Illinois | U38: =VLOOKUP($C38,Sheet2!$A$2:$O$3886,7,FALSE) -> 62881-1699 | V38: =VLOOKUP($C38,Sheet2!$A$2:$O$3886,11,FALSE) -> Terri Gowler
A39: =IF(C39=Entry!$B$7,INT(A38)+1,A38+0.00001) -> 0.00038 | B39: SL01 | C39: 50 | D39: 12.48 | E39: 11.76 | F39: 10.97 | G39: 0 | H39: 10.97 | I39: 0.04 | J39: 0.13 | K39: 0.62 | L39: 0 | M39: 0 | N39: 18 | O39: =VLOOKUP($C39,Sheet2!$A$2:$O$3886,10,FALSE) -> City Of Salem | P39: =VLOOKUP($C39,Sheet2!$A$2:$O$3886,2,FALSE) -> 101 S Broadway Ave | Q39: =VLOOKUP($C39,Sheet2!$A$2:$O$3886,3,FALSE) ->  | R39: =VLOOKUP($C39,Sheet2!$A$2:$O$3886,4,FALSE) ->  | S39: =VLOOKUP($C39,Sheet2!$A$2:$O$3886,5,FALSE) -> Salem | T39: =VLOOKUP($C39,Sheet2!$A$2:$O$3886,6,FALSE) -> Illinois | U39: =VLOOKUP($C39,Sheet2!$A$2:$O$3886,7,FALSE) -> 62881-1699 | V39: =VLOOKUP($C39,Sheet2!$A$2:$O$3886,11,FALSE) -> Terri Gowler
A40: =IF(C40=Entry!$B$7,INT(A39)+1,A39+0.00001) -> 0.00039 | B40: RG01 | C40: 51 | D40: 7.68 | E40: 8.31 | F40: 4.28 | G40: 3.26 | H40: 7.54 | I40: 0.04 | J40: 0.11 | K40: 0.62 | L40: 0 | N40: 18 | O40: =VLOOKUP($C40,Sheet2!$A$2:$O$3886,10,FALSE) -> Village Of Sandoval | P40: =VLOOKUP($C40,Sheet2!$A$2:$O$3886,2,FALSE) -> Po Box 279 | Q40: =VLOOKUP($C40,Sheet2!$A$2:$O$3886,3,FALSE) -> 102 N Cherry | R40: =VLOOKUP($C40,Sheet2!$A$2:$O$3886,4,FALSE) ->  | S40: =VLOOKUP($C40,Sheet2!$A$2:$O$3886,5,FALSE) -> Sandoval | T40: =VLOOKUP($C40,Sheet2!$A$2:$O$3886,6,FALSE) -> Illinois | U40: =VLOOKUP($C40,Sheet2!$A$2:$O$3886,7,FALSE) -> 62882-0279 | V40: =VLOOKUP($C40,Sheet2!$A$2:$O$3886,11,FALSE) -> LISA HOOD
A41: =IF(C41=Entry!$B$7,INT(A40)+1,A40+0.00001) -> 0.0004 | B41: RG01 | C41: 52 | D41: 6.56 | E41: 7.14 | F41: 4.91 | G41: 1.48 | H41: 6.39 | I41: 0.04 | J41: 0.09 | K41: 0.62 | L41: 0 | N41: 18 | O41: =VLOOKUP($C41,Sheet2!$A$2:$O$3886,10,FALSE) -> City Of Shelbyville | P41: =VLOOKUP($C41,Sheet2!$A$2:$O$3886,2,FALSE) -> 170 E Main St | Q41: =VLOOKUP($C41,Sheet2!$A$2:$O$3886,3,FALSE) ->  | R41: =VLOOKUP($C41,Sheet2!$A$2:$O$3886,4,FALSE) ->  | S41: =VLOOKUP($C41,Sheet2!$A$2:$O$3886,5,FALSE) -> Shelbyville | T41: =VLOOKUP($C41,Sheet2!$A$2:$O$3886,6,FALSE) -> Illinois | U41: =VLOOKUP($C41,Sheet2!$A$2:$O$3886,7,FALSE) -> 62565-1654 | V41: =VLOOKUP($C41,Sheet2!$A$2:$O$3886,11,FALSE) -> Rachel Wallace
A42: =IF(C42=Entry!$B$7,INT(A41)+1,A41+0.00001) -> 0.00041 | B42: RG01 | C42: 54 | D42: 11.25 | E42: 12.03 | F42: 4.96 | G42: 6.28 | H42: 11.24 | I42: 0.04 | J42: 0.13 | K42: 0.62 | L42: 0 | N42: 18 | O42: =VLOOKUP($C42,Sheet2!$A$2:$O$3886,10,FALSE) -> City Of Washington | P42: =VLOOKUP($C42,Sheet2!$A$2:$O$3886,2,FALSE) -> 301 Walnut St | Q42: =VLOOKUP($C42,Sheet2!$A$2:$O$3886,3,FALSE) ->  | R42: =VLOOKUP($C42,Sheet2!$A$2:$O$3886,4,FALSE) ->  | S42: =VLOOKUP($C42,Sheet2!$A$2:$O$3886,5,FALSE) -> Washington | T42: =VLOOKUP($C42,Sheet2!$A$2:$O$3886,6,FALSE) -> Illinois | U42: =VLOOKUP($C42,Sheet2!$A$2:$O$3886,7,FALSE) -> 61571-2649 | V42: =VLOOKUP($C42,Sheet2!$A$2:$O$3886,11,FALSE) -> Maureen Chambers
A43: =IF(C43=Entry!$B$7,INT(A42)+1,A42+0.00001) -> 0.00042 | B43: RG01 | C43: 55 | D43: 3.54 | E43: 4.11 | F43: 5.1 | G43: -1.74 | H43: 3.36 | I43: 0.04 | J43: 0.09 | K43: 0.62 | L43: 0 | N43: 18 | O43: =VLOOKUP($C43,Sheet2!$A$2:$O$3886,10,FALSE) -> North Shore Mosq Abat Dist | P43: =VLOOKUP($C43,Sheet2!$A$2:$O$3886,2,FALSE) -> 117 Northfield Rd | Q43: =VLOOKUP($C43,Sheet2!$A$2:$O$3886,3,FALSE) ->  | R43: =VLOOKUP($C43,Sheet2!$A$2:$O$3886,4,FALSE) ->  | S43: =VLOOKUP($C43,Sheet2!$A$2:$O$3886,5,FALSE) -> Northfield | T43: =VLOOKUP($C43,Sheet2!$A$2:$O$3886,6,FALSE) -> Illinois | U43: =VLOOKUP($C43,Sheet2!$A$2:$O$3886,7,FALSE) -> 60093-3309 | V43: =VLOOKUP($C43,Sheet2!$A$2:$O$3886,11,FALSE) -> Jennifer Zimmer
A44: =IF(C44=Entry!$B$7,INT(A43)+1,A43+0.00001) -> 0.00043 | B44: RG01 | C44: 61 | D44: 2.44 | E44: 3.7 | F44: 4.89 | G44: -2 | H44: 2.89 | I44: 0.04 | J44: 0.15 | K44: 0.62 | L44: 0 | N44: 18 | O44: =VLOOKUP($C44,Sheet2!$A$2:$O$3886,10,FALSE) -> City Of Chester | P44: =VLOOKUP($C44,Sheet2!$A$2:$O$3886,2,FALSE) -> 1330 Swanwick St | Q44: =VLOOKUP($C44,Sheet2!$A$2:$O$3886,3,FALSE) ->  | R44: =VLOOKUP($C44,Sheet2!$A$2:$O$3886,4,FALSE) ->  | S44: =VLOOKUP($C44,Sheet2!$A$2:$O$3886,5,FALSE) -> Chester | T44: =VLOOKUP($C44,Sheet2!$A$2:$O$3886,6,FALSE) -> Illinois | U44: =VLOOKUP($C44,Sheet2!$A$2:$O$3886,7,FALSE) -> 62233-1314 | V44: =VLOOKUP($C44,Sheet2!$A$2:$O$3886,11,FALSE) -> Bethany Berner
A45: =IF(C45=Entry!$B$7,INT(A44)+1,A44+0.00001) -> 0.00044 | B45: RG01 | C45: 62 | D45: 8.44 | E45: 7.84 | F45: 6.11 | G45: 0.84 | H45: 6.95 | I45: 0.04 | J45: 0.23 | K45: 0.62 | L45: 0 | N45: 18 | O45: =VLOOKUP($C45,Sheet2!$A$2:$O$3886,10,FALSE) -> Village Of Buckley | P45: =VLOOKUP($C45,Sheet2!$A$2:$O$3886,2,FALSE) -> 124 S Railroad | Q45: =VLOOKUP($C45,Sheet2!$A$2:$O$3886,3,FALSE) ->  | R45: =VLOOKUP($C45,Sheet2!$A$2:$O$3886,4,FALSE) ->  | S45: =VLOOKUP($C45,Sheet2!$A$2:$O$3886,5,FALSE) -> Buckley | T45: =VLOOKUP($C45,Sheet2!$A$2:$O$3886,6,FALSE) -> Illinois | U45: =VLOOKUP($C45,Sheet2!$A$2:$O$3886,7,FALSE) -> 60918 | V45: =VLOOKUP($C45,Sheet2!$A$2:$O$3886,11,FALSE) -> JULIE SCHULDT
A46: =IF(C46=Entry!$B$7,INT(A45)+1,A45+0.00001) -> 0.00045 | B46: RG01 | C46: 64 | D46: 8.88 | E46: 7.04 | F46: 4.58 | G46: 1.69 | H46: 6.27 | I46: 0.04 | J46: 0.11 | K46: 0.62 | L46: 0 | N46: 18 | O46: =VLOOKUP($C46,Sheet2!$A$2:$O$3886,10,FALSE) -> City Of Carlyle | P46: =VLOOKUP($C46,Sheet2!$A$2:$O$3886,2,FALSE) -> 1110 Mulliken St | Q46: =VLOOKUP($C46,Sheet2!$A$2:$O$3886,3,FALSE) ->  | R46: =VLOOKUP($C46,Sheet2!$A$2:$O$3886,4,FALSE) ->  | S46: =VLOOKUP($C46,Sheet2!$A$2:$O$3886,5,FALSE) -> Carlyle | T46: =VLOOKUP($C46,Sheet2!$A$2:$O$3886,6,FALSE) -> Illinois | U46: =VLOOKUP($C46,Sheet2!$A$2:$O$3886,7,FALSE) -> 62231 | V46: =VLOOKUP($C46,Sheet2!$A$2:$O$3886,11,FALSE) -> Kayla Heimann
A47: =IF(C47=Entry!$B$7,INT(A46)+1,A46+0.00001) -> 0.00046 | B47: RG01 | C47: 65 | D47: 4.87 | E47: 5.15 | F47: 3.99 | G47: 0.34 | H47: 4.33 | I47: 0.04 | J47: 0.16 | K47: 0.62 | L47: 0 | N47: 18 | O47: =VLOOKUP($C47,Sheet2!$A$2:$O$3886,10,FALSE) -> City Of Carthage | P47: =VLOOKUP($C47,Sheet2!$A$2:$O$3886,2,FALSE) -> 538 Wabash Ave | Q47: =VLOOKUP($C47,Sheet2!$A$2:$O$3886,3,FALSE) ->  | R47: =VLOOKUP($C47,Sheet2!$A$2:$O$3886,4,FALSE) ->  | S47: =VLOOKUP($C47,Sheet2!$A$2:$O$3886,5,FALSE) -> Carthage | T47: =VLOOKUP($C47,Sheet2!$A$2:$O$3886,6,FALSE) -> Illinois | U47: =VLOOKUP($C47,Sheet2!$A$2:$O$3886,7,FALSE) -> 62321-1360 | V47: =VLOOKUP($C47,Sheet2!$A$2:$O$3886,11,FALSE) -> Scott Roberts
A48: =IF(C48=Entry!$B$7,INT(A47)+1,A47+0.00001) -> 0.00047 | B48: RG01 | C48: 66 | D48: 5.05 | E48: 4.82 | F48: 4.93 | G48: -0.87 | H48: 4.06 | I48: 0.04 | J48: 0.1 | K48: 0.62 | L48: 0 | N48: 18 | O48: =VLOOKUP($C48,Sheet2!$A$2:$O$3886,10,FALSE) -> City Of Hillsboro | P48: =VLOOKUP($C48,Sheet2!$A$2:$O$3886,2,FALSE) -> 447 S Main St Ste 1 | Q48: =VLOOKUP($C48,Sheet2!$A$2:$O$3886,3,FALSE) ->  | R48: =VLOOKUP($C48,Sheet2!$A$2:$O$3886,4,FALSE) ->  | S48: =VLOOKUP($C48,Sheet2!$A$2:$O$3886,5,FALSE) -> Hillsboro | T48: =VLOOKUP($C48,Sheet2!$A$2:$O$3886,6,FALSE) -> Illinois | U48: =VLOOKUP($C48,Sheet2!$A$2:$O$3886,7,FALSE) -> 62049-1454 | V48: =VLOOKUP($C48,Sheet2!$A$2:$O$3886,11,FALSE) -> Bonnie Hefley
A49: =IF(C49=Entry!$B$7,INT(A48)+1,A48+0.00001) -> 0.00048 | B49: RG01 | C49: 67 | D49: 7.2 | E49: 6.06 | F49: 4.53 | G49: 0.78 | H49: 5.31 | I49: 0.04 | J49: 0.09 | K49: 0.62 | L49: 0 | N49: 18 | O49: =VLOOKUP($C49,Sheet2!$A$2:$O$3886,10,FALSE) -> City Of Jonesboro | P49: =VLOOKUP($C49,Sheet2!$A$2:$O$3886,2,FALSE) -> Po Box 330 | Q49: =VLOOKUP($C49,Sheet2!$A$2:$O$3886,3,FALSE) ->  | R49: =VLOOKUP($C49,Sheet2!$A$2:$O$3886,4,FALSE) ->  | S49: =VLOOKUP($C49,Sheet2!$A$2:$O$3886,5,FALSE) -> Jonesboro | T49: =VLOOKUP($C49,Sheet2!$A$2:$O$3886,6,FALSE) -> Illinois | U49: =VLOOKUP($C49,Sheet2!$A$2:$O$3886,7,FALSE) -> 62952-0330 | V49: =VLOOKUP($C49,Sheet2!$A$2:$O$3886,11,FALSE) -> Brandi Boyd
A50: =IF(C50=Entry!$B$7,INT(A49)+1,A49+0.00001) -> 0.00049 | B50: RG01 | C50: 68 | D50: 4.3 | E50: 5.46 | F50: 4.59 | G50: 0.12 | H50: 4.71 | I50: 0.04 | J50: 0.09 | K50: 0.62 | L50: 0 | N50: 18 | O50: =VLOOKUP($C50,Sheet2!$A$2:$O$3886,10,FALSE) -> Village Of Lincolnwood | P50: =VLOOKUP($C50,Sheet2!$A$2:$O$3886,2,FALSE) -> 6900 N Lincoln Ave | Q50: =VLOOKUP($C50,Sheet2!$A$2:$O$3886,3,FALSE) ->  | R50: =VLOOKUP($C50,Sheet2!$A$2:$O$3886,4,FALSE) ->  | S50: =VLOOKUP($C50,Sheet2!$A$2:$O$3886,5,FALSE) -> Lincolnwood | T50: =VLOOKUP($C50,Sheet2!$A$2:$O$3886,6,FALSE) -> Illinois | U50: =VLOOKUP($C50,Sheet2!$A$2:$O$3886,7,FALSE) -> 60712-2692 | V50: =VLOOKUP($C50,Sheet2!$A$2:$O$3886,11,FALSE) -> MADELINE FARRELL
A51: =IF(C51=Entry!$B$7,INT(A50)+1,A50+0.00001) -> 0.0005 | B51: SL01 | C51: 68 | D51: 12.48 | E51: 1.17 | F51: 6.61 | G51: -8.8 | H51: 0 | I51: 0.04 | J51: 0.51 | K51: 0.62 | L51: 0 | M51: 0 | N51: 18 | O51: =VLOOKUP($C51,Sheet2!$A$2:$O$3886,10,FALSE) -> Village Of Lincolnwood | P51: =VLOOKUP($C51,Sheet2!$A$2:$O$3886,2,FALSE) -> 6900 N Lincoln Ave | Q51: =VLOOKUP($C51,Sheet2!$A$2:$O$3886,3,FALSE) ->  | R51: =VLOOKUP($C51,Sheet2!$A$2:$O$3886,4,FALSE) ->  | S51: =VLOOKUP($C51,Sheet2!$A$2:$O$3886,5,FALSE) -> Lincolnwood | T51: =VLOOKUP($C51,Sheet2!$A$2:$O$3886,6,FALSE) -> Illinois | U51: =VLOOKUP($C51,Sheet2!$A$2:$O$3886,7,FALSE) -> 60712-2692 | V51: =VLOOKUP($C51,Sheet2!$A$2:$O$3886,11,FALSE) -> MADELINE FARRELL
A52: =IF(C52=Entry!$B$7,INT(A51)+1,A51+0.00001) -> 0.00051 | B52: RG01 | C52: 72 | D52: 4.05 | E52: 3.5 | F52: 4.45 | G52: -1.79 | H52: 2.66 | I52: 0.04 | J52: 0.18 | K52: 0.62 | L52: 0 | N52: 18 | O52: =VLOOKUP($C52,Sheet2!$A$2:$O$3886,10,FALSE) -> Kankakee Valley Park Dist | P52: =VLOOKUP($C52,Sheet2!$A$2:$O$3886,2,FALSE) -> 893 W Station St | Q52: =VLOOKUP($C52,Sheet2!$A$2:$O$3886,3,FALSE) ->  | R52: =VLOOKUP($C52,Sheet2!$A$2:$O$3886,4,FALSE) ->  | S52: =VLOOKUP($C52,Sheet2!$A$2:$O$3886,5,FALSE) -> Kankakee | T52: =VLOOKUP($C52,Sheet2!$A$2:$O$3886,6,FALSE) -> Illinois | U52: =VLOOKUP($C52,Sheet2!$A$2:$O$3886,7,FALSE) -> 60901-3443 | V52: =VLOOKUP($C52,Sheet2!$A$2:$O$3886,11,FALSE) -> Ross Bruni
A53: =IF(C53=Entry!$B$7,INT(A52)+1,A52+0.00001) -> 0.00052 | B53: RG01 | C53: 73 | D53: 7.11 | E53: 6.9 | F53: 6.11 | G53: 0 | H53: 6.11 | I53: 0.04 | J53: 0.13 | K53: 0.62 | L53: 0 | N53: 18 | O53: =VLOOKUP($C53,Sheet2!$A$2:$O$3886,10,FALSE) -> Wood River Township Hospital | P53: =VLOOKUP($C53,Sheet2!$A$2:$O$3886,2,FALSE) -> 511 12Th Street | Q53: =VLOOKUP($C53,Sheet2!$A$2:$O$3886,3,FALSE) ->  | R53: =VLOOKUP($C53,Sheet2!$A$2:$O$3886,4,FALSE) ->  | S53: =VLOOKUP($C53,Sheet2!$A$2:$O$3886,5,FALSE) -> Wood River | T53: =VLOOKUP($C53,Sheet2!$A$2:$O$3886,6,FALSE) -> Illinois | U53: =VLOOKUP($C53,Sheet2!$A$2:$O$3886,7,FALSE) -> 62095 | V53: =VLOOKUP($C53,Sheet2!$A$2:$O$3886,11,FALSE) -> Christopher Slusser
A54: =IF(C54=Entry!$B$7,INT(A53)+1,A53+0.00001) -> 0.00053 | B54: RG01 | C54: 75 | D54: 6.86 | E54: 4.26 | F54: 4.64 | G54: -1.16 | H54: 3.48 | I54: 0.04 | J54: 0.12 | K54: 0.62 | L54: 0 | N54: 18 | O54: =VLOOKUP($C54,Sheet2!$A$2:$O$3886,10,FALSE) -> City Of Altamont | P54: =VLOOKUP($C54,Sheet2!$A$2:$O$3886,2,FALSE) -> 202 N 2Nd St | Q54: =VLOOKUP($C54,Sheet2!$A$2:$O$3886,3,FALSE) ->  | R54: =VLOOKUP($C54,Sheet2!$A$2:$O$3886,4,FALSE) ->  | S54: =VLOOKUP($C54,Sheet2!$A$2:$O$3886,5,FALSE) -> Altamont | T54: =VLOOKUP($C54,Sheet2!$A$2:$O$3886,6,FALSE) -> Illinois | U54: =VLOOKUP($C54,Sheet2!$A$2:$O$3886,7,FALSE) -> 62411-1494 | V54: =VLOOKUP($C54,Sheet2!$A$2:$O$3886,11,FALSE) -> Ellie Buennemeyer
A55: =IF(C55=Entry!$B$7,INT(A54)+1,A54+0.00001) -> 0.00054 | B55: RG01 | C55: 77 | D55: 7.39 | E55: 7.49 | F55: 4.73 | G55: 1.99 | H55: 6.72 | I55: 0.04 | J55: 0.11 | K55: 0.62 | L55: 0 | N55: 18 | O55: =VLOOKUP($C55,Sheet2!$A$2:$O$3886,10,FALSE) -> Village Of Barrington | P55: =VLOOKUP($C55,Sheet2!$A$2:$O$3886,2,FALSE) -> 200 S Hough St | Q55: =VLOOKUP($C55,Sheet2!$A$2:$O$3886,3,FALSE) ->  | R55: =VLOOKUP($C55,Sheet2!$A$2:$O$3886,4,FALSE) ->  | S55: =VLOOKUP($C55,Sheet2!$A$2:$O$3886,5,FALSE) -> Barrington | T55: =VLOOKUP($C55,Sheet2!$A$2:$O$3886,6,FALSE) -> Illinois | U55: =VLOOKUP($C55,Sheet2!$A$2:$O$3886,7,FALSE) -> 60010-4322 | V55: =VLOOKUP($C55,Sheet2!$A$2:$O$3886,11,FALSE) -> 
A56: =IF(C56=Entry!$B$7,INT(A55)+1,A55+0.00001) -> 0.00055 | B56: RG01 | C56: 78 | D56: 3.37 | E56: 4.85 | F56: 4.29 | G56: -0.19 | H56: 4.1 | I56: 0.04 | J56: 0.09 | K56: 0.62 | L56: 0 | N56: 18 | O56: =VLOOKUP($C56,Sheet2!$A$2:$O$3886,10,FALSE) -> City Of Bridgeport | P56: =VLOOKUP($C56,Sheet2!$A$2:$O$3886,2,FALSE) -> 235 Washington St | Q56: =VLOOKUP($C56,Sheet2!$A$2:$O$3886,3,FALSE) ->  | R56: =VLOOKUP($C56,Sheet2!$A$2:$O$3886,4,FALSE) ->  | S56: =VLOOKUP($C56,Sheet2!$A$2:$O$3886,5,FALSE) -> Bridgeport | T56: =VLOOKUP($C56,Sheet2!$A$2:$O$3886,6,FALSE) -> Illinois | U56: =VLOOKUP($C56,Sheet2!$A$2:$O$3886,7,FALSE) -> 62417-1562 | V56: =VLOOKUP($C56,Sheet2!$A$2:$O$3886,11,FALSE) -> JESSICA ZELLARS
A57: =IF(C57=Entry!$B$7,INT(A56)+1,A56+0.00001) -> 0.00056 | B57: RG01 | C57: 79 | D57: 0.96 | E57: 1.04 | F57: 5 | G57: -4.83 | H57: 0.17 | I57: 0.04 | J57: 0.21 | K57: 0.62 | L57: 0 | N57: 18 | O57: =VLOOKUP($C57,Sheet2!$A$2:$O$3886,10,FALSE) -> Village Of Carrier Mills | P57: =VLOOKUP($C57,Sheet2!$A$2:$O$3886,2,FALSE) -> 101 N Mill St | Q57: =VLOOKUP($C57,Sheet2!$A$2:$O$3886,3,FALSE) ->  | R57: =VLOOKUP($C57,Sheet2!$A$2:$O$3886,4,FALSE) ->  | S57: =VLOOKUP($C57,Sheet2!$A$2:$O$3886,5,FALSE) -> Carrier Mills | T57: =VLOOKUP($C57,Sheet2!$A$2:$O$3886,6,FALSE) -> Illinois | U57: =VLOOKUP($C57,Sheet2!$A$2:$O$3886,7,FALSE) -> 62917-1182 | V57: =VLOOKUP($C57,Sheet2!$A$2:$O$3886,11,FALSE) -> DAVID EDMISTER
A58: =IF(C58=Entry!$B$7,INT(A57)+1,A57+0.00001) -> 0.00057 | B58: RG01 | C58: 80 | D58: 6.17 | E58: 7.31 | F58: 5.13 | G58: 1.41 | H58: 6.54 | I58: 0.04 | J58: 0.11 | K58: 0.62 | L58: 0 | N58: 18 | O58: =VLOOKUP($C58,Sheet2!$A$2:$O$3886,10,FALSE) -> City Of Delavan | P58: =VLOOKUP($C58,Sheet2!$A$2:$O$3886,2,FALSE) -> 219 S Locust St | Q58: =VLOOKUP($C58,Sheet2!$A$2:$O$3886,3,FALSE) ->  | R58: =VLOOKUP($C58,Sheet2!$A$2:$O$3886,4,FALSE) ->  | S58: =VLOOKUP($C58,Sheet2!$A$2:$O$3886,5,FALSE) -> Delavan | T58: =VLOOKUP($C58,Sheet2!$A$2:$O$3886,6,FALSE) -> Illinois | U58: =VLOOKUP($C58,Sheet2!$A$2:$O$3886,7,FALSE) -> 61734-7566 | V58: =VLOOKUP($C58,Sheet2!$A$2:$O$3886,11,FALSE) -> Tammy Hintz
A59: =IF(C59=Entry!$B$7,INT(A58)+1,A58+0.00001) -> 0.00058 | B59: RG01 | C59: 81 | D59: 6.29 | E59: 5.68 | F59: 4.16 | G59: 0.78 | H59: 4.94 | I59: 0.04 | J59: 0.08 | K59: 0.62 | L59: 0 | N59: 18 | O59: =VLOOKUP($C59,Sheet2!$A$2:$O$3886,10,FALSE) -> Village Of Dwight | P59: =VLOOKUP($C59,Sheet2!$A$2:$O$3886,2,FALSE) -> 209 S Prairie Ave | Q59: =VLOOKUP($C59,Sheet2!$A$2:$O$3886,3,FALSE) ->  | R59: =VLOOKUP($C59,Sheet2!$A$2:$O$3886,4,FALSE) ->  | S59: =VLOOKUP($C59,Sheet2!$A$2:$O$3886,5,FALSE) -> Dwight | T59: =VLOOKUP($C59,Sheet2!$A$2:$O$3886,6,FALSE) -> Illinois | U59: =VLOOKUP($C59,Sheet2!$A$2:$O$3886,7,FALSE) -> 60420-1377 | V59: =VLOOKUP($C59,Sheet2!$A$2:$O$3886,11,FALSE) -> Carissa Livingston
A60: =IF(C60=Entry!$B$7,INT(A59)+1,A59+0.00001) -> 0.00059 | B60: RG01 | C60: 82 | D60: 0.85 | E60: 0.91 | F60: 4.76 | G60: -4.62 | H60: 0.14 | I60: 0.04 | J60: 0.11 | K60: 0.62 | L60: 0 | N60: 18 | O60: =VLOOKUP($C60,Sheet2!$A$2:$O$3886,10,FALSE) -> City Of Galva | P60: =VLOOKUP($C60,Sheet2!$A$2:$O$3886,2,FALSE) -> 311 Nw 4Th Ave | Q60: =VLOOKUP($C60,Sheet2!$A$2:$O$3886,3,FALSE) -> P.O. Box 171 | R60: =VLOOKUP($C60,Sheet2!$A$2:$O$3886,4,FALSE) ->  | S60: =VLOOKUP($C60,Sheet2!$A$2:$O$3886,5,FALSE) -> Galva | T60: =VLOOKUP($C60,Sheet2!$A$2:$O$3886,6,FALSE) -> Illinois | U60: =VLOOKUP($C60,Sheet2!$A$2:$O$3886,7,FALSE) -> 61434-1238 | V60: =VLOOKUP($C60,Sheet2!$A$2:$O$3886,11,FALSE) -> Melissa Halsall
A61: =IF(C61=Entry!$B$7,INT(A60)+1,A60+0.00001) -> 0.0006 | B61: RG01 | C61: 83 | D61: 3.87 | E61: 5.43 | F61: 4.74 | G61: -0.14 | H61: 4.6 | I61: 0.04 | J61: 0.17 | K61: 0.62 | L61: 0 | N61: 18 | O61: =VLOOKUP($C61,Sheet2!$A$2:$O$3886,10,FALSE) -> City Of Gibson City | P61: =VLOOKUP($C61,Sheet2!$A$2:$O$3886,2,FALSE) -> Po Box 545 | Q61: =VLOOKUP($C61,Sheet2!$A$2:$O$3886,3,FALSE) -> Attn: Peg Stalter | R61: =VLOOKUP($C61,Sheet2!$A$2:$O$3886,4,FALSE) ->  | S61: =VLOOKUP($C61,Sheet2!$A$2:$O$3886,5,FALSE) -> Gibson City | T61: =VLOOKUP($C61,Sheet2!$A$2:$O$3886,6,FALSE) -> Illinois | U61: =VLOOKUP($C61,Sheet2!$A$2:$O$3886,7,FALSE) -> 60936-0545 | V61: =VLOOKUP($C61,Sheet2!$A$2:$O$3886,11,FALSE) -> DANIEL DICKEY
A62: =IF(C62=Entry!$B$7,INT(A61)+1,A61+0.00001) -> 0.00061 | B62: RG01 | C62: 85 | D62: 7.09 | E62: 7.53 | F62: 4.27 | G62: 2.52 | H62: 6.79 | I62: 0.04 | J62: 0.08 | K62: 0.62 | L62: 0 | N62: 18 | O62: =VLOOKUP($C62,Sheet2!$A$2:$O$3886,10,FALSE) -> Village Of Greenup | P62: =VLOOKUP($C62,Sheet2!$A$2:$O$3886,2,FALSE) -> Po Box 246 | Q62: =VLOOKUP($C62,Sheet2!$A$2:$O$3886,3,FALSE) ->  | R62: =VLOOKUP($C62,Sheet2!$A$2:$O$3886,4,FALSE) ->  | S62: =VLOOKUP($C62,Sheet2!$A$2:$O$3886,5,FALSE) -> Greenup | T62: =VLOOKUP($C62,Sheet2!$A$2:$O$3886,6,FALSE) -> Illinois | U62: =VLOOKUP($C62,Sheet2!$A$2:$O$3886,7,FALSE) -> 62428-0246 | V62: =VLOOKUP($C62,Sheet2!$A$2:$O$3886,11,FALSE) -> Jill Kimble
A63: =IF(C63=Entry!$B$7,INT(A62)+1,A62+0.00001) -> 0.00062 | B63: RG01 | C63: 86 | D63: 4.33 | E63: 5.4 | F63: 4.13 | G63: 0.5 | H63: 4.63 | I63: 0.04 | J63: 0.11 | K63: 0.62 | L63: 0 | N63: 18 | O63: =VLOOKUP($C63,Sheet2!$A$2:$O$3886,10,FALSE) -> City Of Hamilton | P63: =VLOOKUP($C63,Sheet2!$A$2:$O$3886,2,FALSE) -> 1010 Broadway St | Q63: =VLOOKUP($C63,Sheet2!$A$2:$O$3886,3,FALSE) ->  | R63: =VLOOKUP($C63,Sheet2!$A$2:$O$3886,4,FALSE) ->  | S63: =VLOOKUP($C63,Sheet2!$A$2:$O$3886,5,FALSE) -> Hamilton | T63: =VLOOKUP($C63,Sheet2!$A$2:$O$3886,6,FALSE) -> Illinois | U63: =VLOOKUP($C63,Sheet2!$A$2:$O$3886,7,FALSE) -> 62341-1594 | V63: =VLOOKUP($C63,Sheet2!$A$2:$O$3886,11,FALSE) -> Cindy Dupree
A64: =IF(C64=Entry!$B$7,INT(A63)+1,A63+0.00001) -> 0.00063 | B64: RG01 | C64: 88 | D64: 7.56 | E64: 6.67 | F64: 5.2 | G64: 0.67 | H64: 5.87 | I64: 0.04 | J64: 0.14 | K64: 0.62 | L64: 0 | N64: 18 | O64: =VLOOKUP($C64,Sheet2!$A$2:$O$3886,10,FALSE) -> City Of Lebanon | P64: =VLOOKUP($C64,Sheet2!$A$2:$O$3886,2,FALSE) -> 312 W Saint Louis St | Q64: =VLOOKUP($C64,Sheet2!$A$2:$O$3886,3,FALSE) ->  | R64: =VLOOKUP($C64,Sheet2!$A$2:$O$3886,4,FALSE) ->  | S64: =VLOOKUP($C64,Sheet2!$A$2:$O$3886,5,FALSE) -> Lebanon | T64: =VLOOKUP($C64,Sheet2!$A$2:$O$3886,6,FALSE) -> Illinois | U64: =VLOOKUP($C64,Sheet2!$A$2:$O$3886,7,FALSE) -> 62254-1592 | V64: =VLOOKUP($C64,Sheet2!$A$2:$O$3886,11,FALSE) -> Trisha Beckwith
A65: =IF(C65=Entry!$B$7,INT(A64)+1,A64+0.00001) -> 0.00064 | B65: RG01 | C65: 89 | D65: 7.08 | E65: 7.85 | F65: 4.8 | G65: 2.3 | H65: 7.1 | I65: 0.04 | J65: 0.09 | K65: 0.62 | L65: 0 | N65: 18 | O65: =VLOOKUP($C65,Sheet2!$A$2:$O$3886,10,FALSE) -> City Of Marshall | P65: =VLOOKUP($C65,Sheet2!$A$2:$O$3886,2,FALSE) -> Po Box 298 | Q65: =VLOOKUP($C65,Sheet2!$A$2:$O$3886,3,FALSE) -> 201 S. Michigan Ave. | R65: =VLOOKUP($C65,Sheet2!$A$2:$O$3886,4,FALSE) ->  | S65: =VLOOKUP($C65,Sheet2!$A$2:$O$3886,5,FALSE) -> Marshall | T65: =VLOOKUP($C65,Sheet2!$A$2:$O$3886,6,FALSE) -> Illinois | U65: =VLOOKUP($C65,Sheet2!$A$2:$O$3886,7,FALSE) -> 62441-0298 | V65: =VLOOKUP($C65,Sheet2!$A$2:$O$3886,11,FALSE) -> Nancy Smitley
A66: =IF(C66=Entry!$B$7,INT(A65)+1,A65+0.00001) -> 0.00065 | B66: RG01 | C66: 91 | D66: 12.44 | E66: 9.44 | F66: 4.72 | G66: 3.96 | H66: 8.68 | I66: 0.04 | J66: 0.1 | K66: 0.62 | L66: 0 | N66: 18 | O66: =VLOOKUP($C66,Sheet2!$A$2:$O$3886,10,FALSE) -> City Of Mendota | P66: =VLOOKUP($C66,Sheet2!$A$2:$O$3886,2,FALSE) -> 800 Washington St | Q66: =VLOOKUP($C66,Sheet2!$A$2:$O$3886,3,FALSE) ->  | R66: =VLOOKUP($C66,Sheet2!$A$2:$O$3886,4,FALSE) ->  | S66: =VLOOKUP($C66,Sheet2!$A$2:$O$3886,5,FALSE) -> Mendota | T66: =VLOOKUP($C66,Sheet2!$A$2:$O$3886,6,FALSE) -> Illinois | U66: =VLOOKUP($C66,Sheet2!$A$2:$O$3886,7,FALSE) -> 61342-1629 | V66: =VLOOKUP($C66,Sheet2!$A$2:$O$3886,11,FALSE) -> Emily Cronin mcconville
A67: =IF(C67=Entry!$B$7,INT(A66)+1,A66+0.00001) -> 0.00066 | B67: RG01 | C67: 92 | D67: 4.53 | E67: 4.83 | F67: 4.77 | G67: -0.68 | H67: 4.09 | I67: 0.04 | J67: 0.08 | K67: 0.62 | L67: 0 | N67: 18 | O67: =VLOOKUP($C67,Sheet2!$A$2:$O$3886,10,FALSE) -> Village Of Metamora | P67: =VLOOKUP($C67,Sheet2!$A$2:$O$3886,2,FALSE) -> 102 N Davenport St | Q67: =VLOOKUP($C67,Sheet2!$A$2:$O$3886,3,FALSE) -> Po Box 1070 | R67: =VLOOKUP($C67,Sheet2!$A$2:$O$3886,4,FALSE) ->  | S67: =VLOOKUP($C67,Sheet2!$A$2:$O$3886,5,FALSE) -> Metamora | T67: =VLOOKUP($C67,Sheet2!$A$2:$O$3886,6,FALSE) -> Illinois | U67: =VLOOKUP($C67,Sheet2!$A$2:$O$3886,7,FALSE) -> 61548 | V67: =VLOOKUP($C67,Sheet2!$A$2:$O$3886,11,FALSE) -> Monica Camper
A68: =IF(C68=Entry!$B$7,INT(A67)+1,A67+0.00001) -> 0.00067 | B68: SL01 | C68: 92 | D68: 12.48 | E68: 11.76 | F68: 10.97 | G68: 0 | H68: 10.97 | I68: 0.04 | J68: 0.13 | K68: 0.62 | L68: 0 | M68: 0 | N68: 25 | O68: =VLOOKUP($C68,Sheet2!$A$2:$O$3886,10,FALSE) -> Village Of Metamora | P68: =VLOOKUP($C68,Sheet2!$A$2:$O$3886,2,FALSE) -> 102 N Davenport St | Q68: =VLOOKUP($C68,Sheet2!$A$2:$O$3886,3,FALSE) -> Po Box 1070 | R68: =VLOOKUP($C68,Sheet2!$A$2:$O$3886,4,FALSE) ->  | S68: =VLOOKUP($C68,Sheet2!$A$2:$O$3886,5,FALSE) -> Metamora | T68: =VLOOKUP($C68,Sheet2!$A$2:$O$3886,6,FALSE) -> Illinois | U68: =VLOOKUP($C68,Sheet2!$A$2:$O$3886,7,FALSE) -> 61548 | V68: =VLOOKUP($C68,Sheet2!$A$2:$O$3886,11,FALSE) -> Monica Camper
A69: =IF(C69=Entry!$B$7,INT(A68)+1,A68+0.00001) -> 0.00068 | B69: RG01 | C69: 93 | D69: 5.44 | E69: 5.65 | F69: 5.41 | G69: -0.56 | H69: 4.85 | I69: 0.04 | J69: 0.14 | K69: 0.62 | L69: 0 | N69: 18 | O69: =VLOOKUP($C69,Sheet2!$A$2:$O$3886,10,FALSE) -> Village Of Sauget | P69: =VLOOKUP($C69,Sheet2!$A$2:$O$3886,2,FALSE) -> 2897 Falling Springs Rd | Q69: =VLOOKUP($C69,Sheet2!$A$2:$O$3886,3,FALSE) ->  | R69: =VLOOKUP($C69,Sheet2!$A$2:$O$3886,4,FALSE) ->  | S69: =VLOOKUP($C69,Sheet2!$A$2:$O$3886,5,FALSE) -> Sauget | T69: =VLOOKUP($C69,Sheet2!$A$2:$O$3886,6,FALSE) -> Illinois | U69: =VLOOKUP($C69,Sheet2!$A$2:$O$3886,7,FALSE) -> 62206-1123 | V69: =VLOOKUP($C69,Sheet2!$A$2:$O$3886,11,FALSE) -> Lauren Kerperien
A70: =IF(C70=Entry!$B$7,INT(A69)+1,A69+0.00001) -> 0.00069 | B70: RG01 | C70: 94 | D70: 5.06 | E70: 6.6 | F70: 4.92 | G70: 0.92 | H70: 5.84 | I70: 0.04 | J70: 0.1 | K70: 0.62 | L70: 0 | N70: 18 | O70: =VLOOKUP($C70,Sheet2!$A$2:$O$3886,10,FALSE) -> City Of Monticello | P70: =VLOOKUP($C70,Sheet2!$A$2:$O$3886,2,FALSE) -> 210 N Hamilton St | Q70: =VLOOKUP($C70,Sheet2!$A$2:$O$3886,3,FALSE) ->  | R70: =VLOOKUP($C70,Sheet2!$A$2:$O$3886,4,FALSE) ->  | S70: =VLOOKUP($C70,Sheet2!$A$2:$O$3886,5,FALSE) -> Monticello | T70: =VLOOKUP($C70,Sheet2!$A$2:$O$3886,6,FALSE) -> Illinois | U70: =VLOOKUP($C70,Sheet2!$A$2:$O$3886,7,FALSE) -> 61856-1664 | V70: =VLOOKUP($C70,Sheet2!$A$2:$O$3886,11,FALSE) -> Maura Metcalf
A71: =IF(C71=Entry!$B$7,INT(A70)+1,A70+0.00001) -> 0.0007 | B71: SL01 | C71: 94 | D71: 12.48 | E71: 22.63 | F71: 10.97 | G71: -2.17 | H71: 8.8 | I71: 0.04 | J71: 0.21 | K71: 0.62 | L71: 0 | M71: 12.96 | N71: 18 | O71: =VLOOKUP($C71,Sheet2!$A$2:$O$3886,10,FALSE) -> City Of Monticello | P71: =VLOOKUP($C71,Sheet2!$A$2:$O$3886,2,FALSE) -> 210 N Hamilton St | Q71: =VLOOKUP($C71,Sheet2!$A$2:$O$3886,3,FALSE) ->  | R71: =VLOOKUP($C71,Sheet2!$A$2:$O$3886,4,FALSE) ->  | S71: =VLOOKUP($C71,Sheet2!$A$2:$O$3886,5,FALSE) -> Monticello | T71: =VLOOKUP($C71,Sheet2!$A$2:$O$3886,6,FALSE) -> Illinois | U71: =VLOOKUP($C71,Sheet2!$A$2:$O$3886,7,FALSE) -> 61856-1664 | V71: =VLOOKUP($C71,Sheet2!$A$2:$O$3886,11,FALSE) -> Maura Metcalf
A72: =IF(C72=Entry!$B$7,INT(A71)+1,A71+0.00001) -> 0.00071 | B72: RG01 | C72: 96 | D72: 4.45 | E72: 6.96 | F72: 4.71 | G72: 1.5 | H72: 6.21 | I72: 0.04 | J72: 0.09 | K72: 0.62 | L72: 0 | N72: 18 | O72: =VLOOKUP($C72,Sheet2!$A$2:$O$3886,10,FALSE) -> Village Of Okawville | P72: =VLOOKUP($C72,Sheet2!$A$2:$O$3886,2,FALSE) -> 304 S Front St | Q72: =VLOOKUP($C72,Sheet2!$A$2:$O$3886,3,FALSE) -> P O Box 483 | R72: =VLOOKUP($C72,Sheet2!$A$2:$O$3886,4,FALSE) ->  | S72: =VLOOKUP($C72,Sheet2!$A$2:$O$3886,5,FALSE) -> Okawville | T72: =VLOOKUP($C72,Sheet2!$A$2:$O$3886,6,FALSE) -> Illinois | U72: =VLOOKUP($C72,Sheet2!$A$2:$O$3886,7,FALSE) -> 62271-2114 | V72: =VLOOKUP($C72,Sheet2!$A$2:$O$3886,11,FALSE) -> Dawn Moyer
A73: =IF(C73=Entry!$B$7,INT(A72)+1,A72+0.00001) -> 0.00072 | B73: RG01 | C73: 97 | D73: 6.35 | E73: 7.42 | F73: 4.98 | G73: 1.67 | H73: 6.65 | I73: 0.04 | J73: 0.11 | K73: 0.62 | L73: 0 | N73: 18 | O73: =VLOOKUP($C73,Sheet2!$A$2:$O$3886,10,FALSE) -> Village Of Palatine | P73: =VLOOKUP($C73,Sheet2!$A$2:$O$3886,2,FALSE) -> 200 E Wood St | Q73: =VLOOKUP($C73,Sheet2!$A$2:$O$3886,3,FALSE) ->  | R73: =VLOOKUP($C73,Sheet2!$A$2:$O$3886,4,FALSE) ->  | S73: =VLOOKUP($C73,Sheet2!$A$2:$O$3886,5,FALSE) -> Palatine | T73: =VLOOKUP($C73,Sheet2!$A$2:$O$3886,6,FALSE) -> Illinois | U73: =VLOOKUP($C73,Sheet2!$A$2:$O$3886,7,FALSE) -> 60067-5339 | V73: =VLOOKUP($C73,Sheet2!$A$2:$O$3886,11,FALSE) -> Monika Pandya
A74: =IF(C74=Entry!$B$7,INT(A73)+1,A73+0.00001) -> 0.00073 | B74: RG01 | C74: 98 | D74: 7.47 | E74: 8.29 | F74: 4.87 | G74: 2.62 | H74: 7.49 | I74: 0.04 | J74: 0.14 | K74: 0.62 | L74: 0 | N74: 18 | O74: =VLOOKUP($C74,Sheet2!$A$2:$O$3886,10,FALSE) -> Village Of Palos Park | P74: =VLOOKUP($C74,Sheet2!$A$2:$O$3886,2,FALSE) -> 8999 W 123Rd St | Q74: =VLOOKUP($C74,Sheet2!$A$2:$O$3886,3,FALSE) ->  | R74: =VLOOKUP($C74,Sheet2!$A$2:$O$3886,4,FALSE) ->  | S74: =VLOOKUP($C74,Sheet2!$A$2:$O$3886,5,FALSE) -> Palos Park | T74: =VLOOKUP($C74,Sheet2!$A$2:$O$3886,6,FALSE) -> Illinois | U74: =VLOOKUP($C74,Sheet2!$A$2:$O$3886,7,FALSE) -> 60464-1756 | V74: =VLOOKUP($C74,Sheet2!$A$2:$O$3886,11,FALSE) -> Richard Boehm
A75: =IF(C75=Entry!$B$7,INT(A74)+1,A74+0.00001) -> 0.00074 | B75: SL01 | C75: 98 | D75: 4.91 | E75: 3.2 | F75: 10.97 | G75: -8.77 | H75: 2.2 | I75: 0.04 | J75: 0.34 | K75: 0.62 | L75: 0 | M75: 0 | N75: 18 | O75: =VLOOKUP($C75,Sheet2!$A$2:$O$3886,10,FALSE) -> Village Of Palos Park | P75: =VLOOKUP($C75,Sheet2!$A$2:$O$3886,2,FALSE) -> 8999 W 123Rd St | Q75: =VLOOKUP($C75,Sheet2!$A$2:$O$3886,3,FALSE) ->  | R75: =VLOOKUP($C75,Sheet2!$A$2:$O$3886,4,FALSE) ->  | S75: =VLOOKUP($C75,Sheet2!$A$2:$O$3886,5,FALSE) -> Palos Park | T75: =VLOOKUP($C75,Sheet2!$A$2:$O$3886,6,FALSE) -> Illinois | U75: =VLOOKUP($C75,Sheet2!$A$2:$O$3886,7,FALSE) -> 60464-1756 | V75: =VLOOKUP($C75,Sheet2!$A$2:$O$3886,11,FALSE) -> Richard Boehm
A76: =IF(C76=Entry!$B$7,INT(A75)+1,A75+0.00001) -> 0.00075 | B76: RG01 | C76: 99 | D76: 10.14 | E76: 10.21 | F76: 4.45 | G76: 4.93 | H76: 9.38 | I76: 0.04 | J76: 0.17 | K76: 0.62 | L76: 0 | N76: 18 | O76: =VLOOKUP($C76,Sheet2!$A$2:$O$3886,10,FALSE) -> City Of Pinckneyville | P76: =VLOOKUP($C76,Sheet2!$A$2:$O$3886,2,FALSE) -> 104 S Walnut St | Q76: =VLOOKUP($C76,Sheet2!$A$2:$O$3886,3,FALSE) ->  | R76: =VLOOKUP($C76,Sheet2!$A$2:$O$3886,4,FALSE) ->  | S76: =VLOOKUP($C76,Sheet2!$A$2:$O$3886,5,FALSE) -> Pinckneyville | T76: =VLOOKUP($C76,Sheet2!$A$2:$O$3886,6,FALSE) -> Illinois | U76: =VLOOKUP($C76,Sheet2!$A$2:$O$3886,7,FALSE) -> 62274-1340 | V76: =VLOOKUP($C76,Sheet2!$A$2:$O$3886,11,FALSE) -> Melissa Kellerman
A77: =IF(C77=Entry!$B$7,INT(A76)+1,A76+0.00001) -> 0.00076 | B77: SL01 | C77: 99 | D77: 12.48 | E77: 11.76 | F77: 10.97 | G77: 0 | H77: 10.97 | I77: 0.04 | J77: 0.13 | K77: 0.62 | L77: 0 | M77: 0 | N77: 18 | O77: =VLOOKUP($C77,Sheet2!$A$2:$O$3886,10,FALSE) -> City Of Pinckneyville | P77: =VLOOKUP($C77,Sheet2!$A$2:$O$3886,2,FALSE) -> 104 S Walnut St | Q77: =VLOOKUP($C77,Sheet2!$A$2:$O$3886,3,FALSE) ->  | R77: =VLOOKUP($C77,Sheet2!$A$2:$O$3886,4,FALSE) ->  | S77: =VLOOKUP($C77,Sheet2!$A$2:$O$3886,5,FALSE) -> Pinckneyville | T77: =VLOOKUP($C77,Sheet2!$A$2:$O$3886,6,FALSE) -> Illinois | U77: =VLOOKUP($C77,Sheet2!$A$2:$O$3886,7,FALSE) -> 62274-1340 | V77: =VLOOKUP($C77,Sheet2!$A$2:$O$3886,11,FALSE) -> Melissa Kellerman
A78: =IF(C78=Entry!$B$7,INT(A77)+1,A77+0.00001) -> 0.00077 | B78: RG01 | C78: 100 | D78: 4.58 | E78: 5.44 | F78: 4.97 | G78: -0.32 | H78: 4.65 | I78: 0.04 | J78: 0.13 | K78: 0.62 | L78: 0 | N78: 18 | O78: =VLOOKUP($C78,Sheet2!$A$2:$O$3886,10,FALSE) -> City Of Red Bud | P78: =VLOOKUP($C78,Sheet2!$A$2:$O$3886,2,FALSE) -> 200 E Market St Ste 1 | Q78: =VLOOKUP($C78,Sheet2!$A$2:$O$3886,3,FALSE) -> City Hall | R78: =VLOOKUP($C78,Sheet2!$A$2:$O$3886,4,FALSE) ->  | S78: =VLOOKUP($C78,Sheet2!$A$2:$O$3886,5,FALSE) -> Red Bud | T78: =VLOOKUP($C78,Sheet2!$A$2:$O$3886,6,FALSE) -> Illinois | U78: =VLOOKUP($C78,Sheet2!$A$2:$O$3886,7,FALSE) -> 62278-1597 | V78: =VLOOKUP($C78,Sheet2!$A$2:$O$3886,11,FALSE) -> Elizabeth Cowell
A79: =IF(C79=Entry!$B$7,INT(A78)+1,A78+0.00001) -> 0.00078 | B79: RG01 | C79: 102 | D79: 8.32 | E79: 7.9 | F79: 5.07 | G79: 1.86 | H79: 6.93 | I79: 0.04 | J79: 0.31 | K79: 0.62 | L79: 0 | N79: 18 | O79: =VLOOKUP($C79,Sheet2!$A$2:$O$3886,10,FALSE) -> Village Of Shabbona | P79: =VLOOKUP($C79,Sheet2!$A$2:$O$3886,2,FALSE) -> 206 S Blackhawk St, Box 263 | Q79: =VLOOKUP($C79,Sheet2!$A$2:$O$3886,3,FALSE) ->  | R79: =VLOOKUP($C79,Sheet2!$A$2:$O$3886,4,FALSE) ->  | S79: =VLOOKUP($C79,Sheet2!$A$2:$O$3886,5,FALSE) -> Shabbona | T79: =VLOOKUP($C79,Sheet2!$A$2:$O$3886,6,FALSE) -> Illinois | U79: =VLOOKUP($C79,Sheet2!$A$2:$O$3886,7,FALSE) -> 60550-0263 | V79: =VLOOKUP($C79,Sheet2!$A$2:$O$3886,11,FALSE) -> Jennifer Morrison
A80: =IF(C80=Entry!$B$7,INT(A79)+1,A79+0.00001) -> 0.00079 | B80: RG01 | C80: 103 | D80: 0.86 | E80: 0.79 | F80: 5.13 | G80: -6.73 | H80: 0 | I80: 0.04 | J80: 0.13 | K80: 0.62 | L80: 0 | N80: 18 | O80: =VLOOKUP($C80,Sheet2!$A$2:$O$3886,10,FALSE) -> City Of Shawneetown | P80: =VLOOKUP($C80,Sheet2!$A$2:$O$3886,2,FALSE) -> Po Box 227 | Q80: =VLOOKUP($C80,Sheet2!$A$2:$O$3886,3,FALSE) ->  | R80: =VLOOKUP($C80,Sheet2!$A$2:$O$3886,4,FALSE) ->  | S80: =VLOOKUP($C80,Sheet2!$A$2:$O$3886,5,FALSE) -> Shawneetown | T80: =VLOOKUP($C80,Sheet2!$A$2:$O$3886,6,FALSE) -> Illinois | U80: =VLOOKUP($C80,Sheet2!$A$2:$O$3886,7,FALSE) -> 62984-0227 | V80: =VLOOKUP($C80,Sheet2!$A$2:$O$3886,11,FALSE) -> MATT MARTIN
A81: =IF(C81=Entry!$B$7,INT(A80)+1,A80+0.00001) -> 0.0008 | B81: RG01 | C81: 105 | D81: 6.83 | E81: 7.41 | F81: 5.14 | G81: 1.52 | H81: 6.66 | I81: 0.04 | J81: 0.09 | K81: 0.62 | L81: 0 | N81: 18 | O81: =VLOOKUP($C81,Sheet2!$A$2:$O$3886,10,FALSE) -> Village Of Villa Park | P81: =VLOOKUP($C81,Sheet2!$A$2:$O$3886,2,FALSE) -> 20 S Ardmore Ave | Q81: =VLOOKUP($C81,Sheet2!$A$2:$O$3886,3,FALSE) ->  | R81: =VLOOKUP($C81,Sheet2!$A$2:$O$3886,4,FALSE) ->  | S81: =VLOOKUP($C81,Sheet2!$A$2:$O$3886,5,FALSE) -> Villa Park | T81: =VLOOKUP($C81,Sheet2!$A$2:$O$3886,6,FALSE) -> Illinois | U81: =VLOOKUP($C81,Sheet2!$A$2:$O$3886,7,FALSE) -> 60181-2696 | V81: =VLOOKUP($C81,Sheet2!$A$2:$O$3886,11,FALSE) -> CHUCK HOWARD
A82: =IF(C82=Entry!$B$7,INT(A81)+1,A81+0.00001) -> 0.00081 | B82: RG01 | C82: 106 | D82: 8.16 | E82: 9.1 | F82: 4.98 | G82: 3.37 | H82: 8.35 | I82: 0.04 | J82: 0.09 | K82: 0.62 | L82: 0 | N82: 18 | O82: =VLOOKUP($C82,Sheet2!$A$2:$O$3886,10,FALSE) -> City Of West Chicago | P82: =VLOOKUP($C82,Sheet2!$A$2:$O$3886,2,FALSE) -> 475 Main St | Q82: =VLOOKUP($C82,Sheet2!$A$2:$O$3886,3,FALSE) ->  | R82: =VLOOKUP($C82,Sheet2!$A$2:$O$3886,4,FALSE) ->  | S82: =VLOOKUP($C82,Sheet2!$A$2:$O$3886,5,FALSE) -> West Chicago | T82: =VLOOKUP($C82,Sheet2!$A$2:$O$3886,6,FALSE) -> Illinois | U82: =VLOOKUP($C82,Sheet2!$A$2:$O$3886,7,FALSE) -> 60185-2840 | V82: =VLOOKUP($C82,Sheet2!$A$2:$O$3886,11,FALSE) -> Nikki Giles
A83: =IF(C83=Entry!$B$7,INT(A82)+1,A82+0.00001) -> 0.00082 | B83: RG01 | C83: 110 | D83: 12.14 | E83: 12.34 | F83: 5.12 | G83: 6.45 | H83: 11.57 | I83: 0.04 | J83: 0.11 | K83: 0.62 | L83: 0 | N83: 18 | O83: =VLOOKUP($C83,Sheet2!$A$2:$O$3886,10,FALSE) -> North Suburban Library Dist | P83: =VLOOKUP($C83,Sheet2!$A$2:$O$3886,2,FALSE) -> 6340 N 2Nd St | Q83: =VLOOKUP($C83,Sheet2!$A$2:$O$3886,3,FALSE) ->  | R83: =VLOOKUP($C83,Sheet2!$A$2:$O$3886,4,FALSE) ->  | S83: =VLOOKUP($C83,Sheet2!$A$2:$O$3886,5,FALSE) -> Loves Park | T83: =VLOOKUP($C83,Sheet2!$A$2:$O$3886,6,FALSE) -> Illinois | U83: =VLOOKUP($C83,Sheet2!$A$2:$O$3886,7,FALSE) -> 61111-4166 | V83: =VLOOKUP($C83,Sheet2!$A$2:$O$3886,11,FALSE) -> Mary Petro
A84: =IF(C84=Entry!$B$7,INT(A83)+1,A83+0.00001) -> 0.00083 | B84: RG01 | C84: 111 | D84: 6.99 | E84: 7.87 | F84: 5.17 | G84: 1.93 | H84: 7.1 | I84: 0.04 | J84: 0.11 | K84: 0.62 | L84: 0 | N84: 18 | O84: =VLOOKUP($C84,Sheet2!$A$2:$O$3886,10,FALSE) -> Lombard Park District | P84: =VLOOKUP($C84,Sheet2!$A$2:$O$3886,2,FALSE) -> 227 W Parkside Ave | Q84: =VLOOKUP($C84,Sheet2!$A$2:$O$3886,3,FALSE) -> Administrative Service Center | R84: =VLOOKUP($C84,Sheet2!$A$2:$O$3886,4,FALSE) ->  | S84: =VLOOKUP($C84,Sheet2!$A$2:$O$3886,5,FALSE) -> Lombard | T84: =VLOOKUP($C84,Sheet2!$A$2:$O$3886,6,FALSE) -> Illinois | U84: =VLOOKUP($C84,Sheet2!$A$2:$O$3886,7,FALSE) -> 60148-2592 | V84: =VLOOKUP($C84,Sheet2!$A$2:$O$3886,11,FALSE) -> Jessica Ramirez
A85: =IF(C85=Entry!$B$7,INT(A84)+1,A84+0.00001) -> 0.00084 | B85: RG01 | C85: 112 | D85: 5.39 | E85: 6.4 | F85: 4.8 | G85: 0.83 | H85: 5.63 | I85: 0.04 | J85: 0.11 | K85: 0.62 | L85: 0 | N85: 18 | O85: =VLOOKUP($C85,Sheet2!$A$2:$O$3886,10,FALSE) -> Elmhurst Park Dist | P85: =VLOOKUP($C85,Sheet2!$A$2:$O$3886,2,FALSE) -> 375 W 1St St | Q85: =VLOOKUP($C85,Sheet2!$A$2:$O$3886,3,FALSE) ->  | R85: =VLOOKUP($C85,Sheet2!$A$2:$O$3886,4,FALSE) ->  | S85: =VLOOKUP($C85,Sheet2!$A$2:$O$3886,5,FALSE) -> Elmhurst | T85: =VLOOKUP($C85,Sheet2!$A$2:$O$3886,6,FALSE) -> Illinois | U85: =VLOOKUP($C85,Sheet2!$A$2:$O$3886,7,FALSE) -> 60126-2662 | V85: =VLOOKUP($C85,Sheet2!$A$2:$O$3886,11,FALSE) -> Julie Bruns
A86: =IF(C86=Entry!$B$7,INT(A85)+1,A85+0.00001) -> 0.00085 | B86: RG01 | C86: 115 | D86: 4.4 | E86: 4.22 | F86: 4.31 | G86: -0.84 | H86: 3.47 | I86: 0.04 | J86: 0.09 | K86: 0.62 | L86: 0 | N86: 18 | O86: =VLOOKUP($C86,Sheet2!$A$2:$O$3886,10,FALSE) -> Henry Hospital Dist | P86: =VLOOKUP($C86,Sheet2!$A$2:$O$3886,2,FALSE) -> 600 N College Ave Ofc | Q86: =VLOOKUP($C86,Sheet2!$A$2:$O$3886,3,FALSE) ->  | R86: =VLOOKUP($C86,Sheet2!$A$2:$O$3886,4,FALSE) ->  | S86: =VLOOKUP($C86,Sheet2!$A$2:$O$3886,5,FALSE) -> Geneseo | T86: =VLOOKUP($C86,Sheet2!$A$2:$O$3886,6,FALSE) -> Illinois | U86: =VLOOKUP($C86,Sheet2!$A$2:$O$3886,7,FALSE) -> 61254-1099 | V86: =VLOOKUP($C86,Sheet2!$A$2:$O$3886,11,FALSE) -> Hazel Butter
A87: =IF(C87=Entry!$B$7,INT(A86)+1,A86+0.00001) -> 0.00086 | B87: RG01 | C87: 116 | D87: 3.36 | E87: 3.94 | F87: 4.92 | G87: -1.83 | H87: 3.09 | I87: 0.04 | J87: 0.19 | K87: 0.62 | L87: 0 | N87: 18 | O87: =VLOOKUP($C87,Sheet2!$A$2:$O$3886,10,FALSE) -> City Of Beardstown | P87: =VLOOKUP($C87,Sheet2!$A$2:$O$3886,2,FALSE) -> 105 W 3Rd St | Q87: =VLOOKUP($C87,Sheet2!$A$2:$O$3886,3,FALSE) -> Po Box 467 | R87: =VLOOKUP($C87,Sheet2!$A$2:$O$3886,4,FALSE) ->  | S87: =VLOOKUP($C87,Sheet2!$A$2:$O$3886,5,FALSE) -> Beardstown | T87: =VLOOKUP($C87,Sheet2!$A$2:$O$3886,6,FALSE) -> Illinois | U87: =VLOOKUP($C87,Sheet2!$A$2:$O$3886,7,FALSE) -> 62618-1142 | V87: =VLOOKUP($C87,Sheet2!$A$2:$O$3886,11,FALSE) -> Brian Ruch
A88: =IF(C88=Entry!$B$7,INT(A87)+1,A87+0.00001) -> 0.00087 | B88: SL01 | C88: 116 | D88: 12.48 | E88: 11.76 | F88: 10.97 | G88: 0 | H88: 10.97 | I88: 0.04 | J88: 0.13 | K88: 0.62 | L88: 0 | M88: 0 | N88: 18 | O88: =VLOOKUP($C88,Sheet2!$A$2:$O$3886,10,FALSE) -> City Of Beardstown | P88: =VLOOKUP($C88,Sheet2!$A$2:$O$3886,2,FALSE) -> 105 W 3Rd St | Q88: =VLOOKUP($C88,Sheet2!$A$2:$O$3886,3,FALSE) -> Po Box 467 | R88: =VLOOKUP($C88,Sheet2!$A$2:$O$3886,4,FALSE) ->  | S88: =VLOOKUP($C88,Sheet2!$A$2:$O$3886,5,FALSE) -> Beardstown | T88: =VLOOKUP($C88,Sheet2!$A$2:$O$3886,6,FALSE) -> Illinois | U88: =VLOOKUP($C88,Sheet2!$A$2:$O$3886,7,FALSE) -> 62618-1142 | V88: =VLOOKUP($C88,Sheet2!$A$2:$O$3886,11,FALSE) -> Brian Ruch
A89: =IF(C89=Entry!$B$7,INT(A88)+1,A88+0.00001) -> 0.00088 | B89: RG01 | C89: 118 | D89: 4.95 | E89: 4.64 | F89: 4.54 | G89: -0.72 | H89: 3.82 | I89: 0.04 | J89: 0.16 | K89: 0.62 | L89: 0 | N89: 18 | O89: =VLOOKUP($C89,Sheet2!$A$2:$O$3886,10,FALSE) -> City Of Carterville | P89: =VLOOKUP($C89,Sheet2!$A$2:$O$3886,2,FALSE) -> 103 S Division St | Q89: =VLOOKUP($C89,Sheet2!$A$2:$O$3886,3,FALSE) ->  | R89: =VLOOKUP($C89,Sheet2!$A$2:$O$3886,4,FALSE) ->  | S89: =VLOOKUP($C89,Sheet2!$A$2:$O$3886,5,FALSE) -> Carterville | T89: =VLOOKUP($C89,Sheet2!$A$2:$O$3886,6,FALSE) -> Illinois | U89: =VLOOKUP($C89,Sheet2!$A$2:$O$3886,7,FALSE) -> 62918-1358 | V89: =VLOOKUP($C89,Sheet2!$A$2:$O$3886,11,FALSE) -> Khristina Hollister
A90: =IF(C90=Entry!$B$7,INT(A89)+1,A89+0.00001) -> 0.00089 | B90: RG01 | C90: 119 | D90: 4.97 | E90: 5.85 | F90: 4.2 | G90: 0.88 | H90: 5.08 | I90: 0.04 | J90: 0.11 | K90: 0.62 | L90: 0 | N90: 10 | O90: =VLOOKUP($C90,Sheet2!$A$2:$O$3886,10,FALSE) -> Egyptian Health Dept | P90: =VLOOKUP($C90,Sheet2!$A$2:$O$3886,2,FALSE) -> 1412 U.S. 45 North | Q90: =VLOOKUP($C90,Sheet2!$A$2:$O$3886,3,FALSE) ->  | R90: =VLOOKUP($C90,Sheet2!$A$2:$O$3886,4,FALSE) ->  | S90: =VLOOKUP($C90,Sheet2!$A$2:$O$3886,5,FALSE) -> Eldorado | T90: =VLOOKUP($C90,Sheet2!$A$2:$O$3886,6,FALSE) -> Illinois | U90: =VLOOKUP($C90,Sheet2!$A$2:$O$3886,7,FALSE) -> 62930 | V90: =VLOOKUP($C90,Sheet2!$A$2:$O$3886,11,FALSE) -> Tammy Karnes
A91: =IF(C91=Entry!$B$7,INT(A90)+1,A90+0.00001) -> 0.0009 | B91: RG01 | C91: 120 | D91: 9.14 | E91: 9.99 | F91: 4.74 | G91: 4.49 | H91: 9.23 | I91: 0.04 | J91: 0.1 | K91: 0.62 | L91: 0 | N91: 18 | O91: =VLOOKUP($C91,Sheet2!$A$2:$O$3886,10,FALSE) -> City Of Effingham | P91: =VLOOKUP($C91,Sheet2!$A$2:$O$3886,2,FALSE) -> 201 E Jefferson Ave | Q91: =VLOOKUP($C91,Sheet2!$A$2:$O$3886,3,FALSE) -> P.O Box 648 | R91: =VLOOKUP($C91,Sheet2!$A$2:$O$3886,4,FALSE) ->  | S91: =VLOOKUP($C91,Sheet2!$A$2:$O$3886,5,FALSE) -> Effingham | T91: =VLOOKUP($C91,Sheet2!$A$2:$O$3886,6,FALSE) -> Illinois | U91: =VLOOKUP($C91,Sheet2!$A$2:$O$3886,7,FALSE) -> 62401-3450 | V91: =VLOOKUP($C91,Sheet2!$A$2:$O$3886,11,FALSE) -> Dennis Presley
A92: =IF(C92=Entry!$B$7,INT(A91)+1,A91+0.00001) -> 0.00091 | B92: RG01 | C92: 122 | D92: 4.81 | E92: 5.24 | F92: 4.69 | G92: -0.26 | H92: 4.43 | I92: 0.04 | J92: 0.15 | K92: 0.62 | L92: 0 | N92: 18 | O92: =VLOOKUP($C92,Sheet2!$A$2:$O$3886,10,FALSE) -> City Of Pana | P92: =VLOOKUP($C92,Sheet2!$A$2:$O$3886,2,FALSE) -> 120 E 3Rd St | Q92: =VLOOKUP($C92,Sheet2!$A$2:$O$3886,3,FALSE) ->  | R92: =VLOOKUP($C92,Sheet2!$A$2:$O$3886,4,FALSE) ->  | S92: =VLOOKUP($C92,Sheet2!$A$2:$O$3886,5,FALSE) -> Pana | T92: =VLOOKUP($C92,Sheet2!$A$2:$O$3886,6,FALSE) -> Illinois | U92: =VLOOKUP($C92,Sheet2!$A$2:$O$3886,7,FALSE) -> 62557-1646 | V92: =VLOOKUP($C92,Sheet2!$A$2:$O$3886,11,FALSE) -> Kimberly Toberman
A93: =IF(C93=Entry!$B$7,INT(A92)+1,A92+0.00001) -> 0.00092 | B93: RG01 | C93: 126 | D93: 5.71 | E93: 6.88 | F93: 4.73 | G93: 1.27 | H93: 6 | I93: 0.04 | J93: 0.22 | K93: 0.62 | L93: 0 | N93: 18 | O93: =VLOOKUP($C93,Sheet2!$A$2:$O$3886,10,FALSE) -> Village Of Matteson | P93: =VLOOKUP($C93,Sheet2!$A$2:$O$3886,2,FALSE) -> 4900 Village Cmns | Q93: =VLOOKUP($C93,Sheet2!$A$2:$O$3886,3,FALSE) ->  | R93: =VLOOKUP($C93,Sheet2!$A$2:$O$3886,4,FALSE) ->  | S93: =VLOOKUP($C93,Sheet2!$A$2:$O$3886,5,FALSE) -> Matteson | T93: =VLOOKUP($C93,Sheet2!$A$2:$O$3886,6,FALSE) -> Illinois | U93: =VLOOKUP($C93,Sheet2!$A$2:$O$3886,7,FALSE) -> 60443-2666 | V93: =VLOOKUP($C93,Sheet2!$A$2:$O$3886,11,FALSE) -> Rasheed Jones
A94: =IF(C94=Entry!$B$7,INT(A93)+1,A93+0.00001) -> 0.00093 | B94: SL01 | C94: 126 | D94: 12.48 | E94: 11.76 | F94: 10.97 | G94: 0 | H94: 10.97 | I94: 0.04 | J94: 0.13 | K94: 0.62 | L94: 0 | M94: 0 | N94: 18 | O94: =VLOOKUP($C94,Sheet2!$A$2:$O$3886,10,FALSE) -> Village Of Matteson | P94: =VLOOKUP($C94,Sheet2!$A$2:$O$3886,2,FALSE) -> 4900 Village Cmns | Q94: =VLOOKUP($C94,Sheet2!$A$2:$O$3886,3,FALSE) ->  | R94: =VLOOKUP($C94,Sheet2!$A$2:$O$3886,4,FALSE) ->  | S94: =VLOOKUP($C94,Sheet2!$A$2:$O$3886,5,FALSE) -> Matteson | T94: =VLOOKUP($C94,Sheet2!$A$2:$O$3886,6,FALSE) -> Illinois | U94: =VLOOKUP($C94,Sheet2!$A$2:$O$3886,7,FALSE) -> 60443-2666 | V94: =VLOOKUP($C94,Sheet2!$A$2:$O$3886,11,FALSE) -> Rasheed Jones
A95: =IF(C95=Entry!$B$7,INT(A94)+1,A94+0.00001) -> 0.00094 | B95: RG01 | C95: 130 | D95: 2.18 | E95: 3.81 | F95: 4.69 | G95: -1.63 | H95: 3.06 | I95: 0.04 | J95: 0.09 | K95: 0.62 | L95: 0 | N95: 18 | O95: =VLOOKUP($C95,Sheet2!$A$2:$O$3886,10,FALSE) -> City Of Galena | P95: =VLOOKUP($C95,Sheet2!$A$2:$O$3886,2,FALSE) -> 101 Green St | Q95: =VLOOKUP($C95,Sheet2!$A$2:$O$3886,3,FALSE) -> Po Box 310 | R95: =VLOOKUP($C95,Sheet2!$A$2:$O$3886,4,FALSE) ->  | S95: =VLOOKUP($C95,Sheet2!$A$2:$O$3886,5,FALSE) -> Galena | T95: =VLOOKUP($C95,Sheet2!$A$2:$O$3886,6,FALSE) -> Illinois | U95: =VLOOKUP($C95,Sheet2!$A$2:$O$3886,7,FALSE) -> 61036-2246 | V95: =VLOOKUP($C95,Sheet2!$A$2:$O$3886,11,FALSE) -> Jennifer Schmidt
A96: =IF(C96=Entry!$B$7,INT(A95)+1,A95+0.00001) -> 0.00095 | B96: SL01 | C96: 130 | D96: 12.48 | E96: 11.76 | F96: 10.97 | G96: 0 | H96: 10.97 | I96: 0.04 | J96: 0.13 | K96: 0.62 | L96: 0 | M96: 0 | N96: 18 | O96: =VLOOKUP($C96,Sheet2!$A$2:$O$3886,10,FALSE) -> City Of Galena | P96: =VLOOKUP($C96,Sheet2!$A$2:$O$3886,2,FALSE) -> 101 Green St | Q96: =VLOOKUP($C96,Sheet2!$A$2:$O$3886,3,FALSE) -> Po Box 310 | R96: =VLOOKUP($C96,Sheet2!$A$2:$O$3886,4,FALSE) ->  | S96: =VLOOKUP($C96,Sheet2!$A$2:$O$3886,5,FALSE) -> Galena | T96: =VLOOKUP($C96,Sheet2!$A$2:$O$3886,6,FALSE) -> Illinois | U96: =VLOOKUP($C96,Sheet2!$A$2:$O$3886,7,FALSE) -> 61036-2246 | V96: =VLOOKUP($C96,Sheet2!$A$2:$O$3886,11,FALSE) -> Jennifer Schmidt
A97: =IF(C97=Entry!$B$7,INT(A96)+1,A96+0.00001) -> 0.00096 | B97: RG01 | C97: 131 | D97: 9.32 | E97: 8.6 | F97: 4.49 | G97: 3.35 | H97: 7.84 | I97: 0.04 | J97: 0.1 | K97: 0.62 | L97: 0 | N97: 18 | O97: =VLOOKUP($C97,Sheet2!$A$2:$O$3886,10,FALSE) -> City Of Jerseyville | P97: =VLOOKUP($C97,Sheet2!$A$2:$O$3886,2,FALSE) -> 115 E Prairie St | Q97: =VLOOKUP($C97,Sheet2!$A$2:$O$3886,3,FALSE) ->  | R97: =VLOOKUP($C97,Sheet2!$A$2:$O$3886,4,FALSE) ->  | S97: =VLOOKUP($C97,Sheet2!$A$2:$O$3886,5,FALSE) -> Jerseyville | T97: =VLOOKUP($C97,Sheet2!$A$2:$O$3886,6,FALSE) -> Illinois | U97: =VLOOKUP($C97,Sheet2!$A$2:$O$3886,7,FALSE) -> 62052-1842 | V97: =VLOOKUP($C97,Sheet2!$A$2:$O$3886,11,FALSE) -> Denise Hayes
A98: =IF(C98=Entry!$B$7,INT(A97)+1,A97+0.00001) -> 0.00097 | B98: RG01 | C98: 132 | D98: 3.87 | E98: 3.93 | F98: 4.88 | G98: -1.69 | H98: 3.19 | I98: 0.04 | J98: 0.08 | K98: 0.62 | L98: 0 | N98: 18 | O98: =VLOOKUP($C98,Sheet2!$A$2:$O$3886,10,FALSE) -> Village Of Lake Bluff | P98: =VLOOKUP($C98,Sheet2!$A$2:$O$3886,2,FALSE) -> 40 E Center Ave | Q98: =VLOOKUP($C98,Sheet2!$A$2:$O$3886,3,FALSE) ->  | R98: =VLOOKUP($C98,Sheet2!$A$2:$O$3886,4,FALSE) ->  | S98: =VLOOKUP($C98,Sheet2!$A$2:$O$3886,5,FALSE) -> Lake Bluff | T98: =VLOOKUP($C98,Sheet2!$A$2:$O$3886,6,FALSE) -> Illinois | U98: =VLOOKUP($C98,Sheet2!$A$2:$O$3886,7,FALSE) -> 60044-2597 | V98: =VLOOKUP($C98,Sheet2!$A$2:$O$3886,11,FALSE) -> BETTINA O'CONNELL
A99: =IF(C99=Entry!$B$7,INT(A98)+1,A98+0.00001) -> 0.00098 | B99: RG01 | C99: 133 | D99: 3.75 | E99: 4.41 | F99: 4.73 | G99: -1.08 | H99: 3.65 | I99: 0.04 | J99: 0.1 | K99: 0.62 | L99: 0 | N99: 18 | O99: =VLOOKUP($C99,Sheet2!$A$2:$O$3886,10,FALSE) -> Village Of Morton | P99: =VLOOKUP($C99,Sheet2!$A$2:$O$3886,2,FALSE) -> 120 N Main St | Q99: =VLOOKUP($C99,Sheet2!$A$2:$O$3886,3,FALSE) -> P O Box 28 | R99: =VLOOKUP($C99,Sheet2!$A$2:$O$3886,4,FALSE) ->  | S99: =VLOOKUP($C99,Sheet2!$A$2:$O$3886,5,FALSE) -> Morton | T99: =VLOOKUP($C99,Sheet2!$A$2:$O$3886,6,FALSE) -> Illinois | U99: =VLOOKUP($C99,Sheet2!$A$2:$O$3886,7,FALSE) -> 61550-2024 | V99: =VLOOKUP($C99,Sheet2!$A$2:$O$3886,11,FALSE) -> Julie Smick
A100: =IF(C100=Entry!$B$7,INT(A99)+1,A99+0.00001) -> 0.00099 | B100: SL01 | C100: 133 | D100: 12.48 | E100: 11.76 | F100: 10.97 | G100: 0 | H100: 10.97 | I100: 0.04 | J100: 0.13 | K100: 0.62 | L100: 0 | M100: 0 | N100: 18 | O100: =VLOOKUP($C100,Sheet2!$A$2:$O$3886,10,FALSE) -> Village Of Morton | P100: =VLOOKUP($C100,Sheet2!$A$2:$O$3886,2,FALSE) -> 120 N Main St | Q100: =VLOOKUP($C100,Sheet2!$A$2:$O$3886,3,FALSE) -> P O Box 28 | R100: =VLOOKUP($C100,Sheet2!$A$2:$O$3886,4,FALSE) ->  | S100: =VLOOKUP($C100,Sheet2!$A$2:$O$3886,5,FALSE) -> Morton | T100: =VLOOKUP($C100,Sheet2!$A$2:$O$3886,6,FALSE) -> Illinois | U100: =VLOOKUP($C100,Sheet2!$A$2:$O$3886,7,FALSE) -> 61550-2024 | V100: =VLOOKUP($C100,Sheet2!$A$2:$O$3886,11,FALSE) -> Julie Smick
A101: =IF(C101=Entry!$B$7,INT(A100)+1,A100+0.00001) -> 0.001 | B101: RG01 | C101: 134 | D101: 9.46 | E101: 9.47 | F101: 4.81 | G101: 3.9 | H101: 8.71 | I101: 0.04 | J101: 0.1 | K101: 0.62 | L101: 0 | N101: 18 | O101: =VLOOKUP($C101,Sheet2!$A$2:$O$3886,10,FALSE) -> Village Of Mundelein | P101: =VLOOKUP($C101,Sheet2!$A$2:$O$3886,2,FALSE) -> 300 Plaza Cir | Q101: =VLOOKUP($C101,Sheet2!$A$2:$O$3886,3,FALSE) ->  | R101: =VLOOKUP($C101,Sheet2!$A$2:$O$3886,4,FALSE) ->  | S101: =VLOOKUP($C101,Sheet2!$A$2:$O$3886,5,FALSE) -> Mundelein | T101: =VLOOKUP($C101,Sheet2!$A$2:$O$3886,6,FALSE) -> Illinois | U101: =VLOOKUP($C101,Sheet2!$A$2:$O$3886,7,FALSE) -> 60060-2495 | V101: =VLOOKUP($C101,Sheet2!$A$2:$O$3886,11,FALSE) -> Tameika Jones
A102: =IF(C102=Entry!$B$7,INT(A101)+1,A101+0.00001) -> 0.00101 | B102: RG01 | C102: 135 | D102: 5.89 | E102: 6.97 | F102: 4.08 | G102: 2.13 | H102: 6.21 | I102: 0.04 | J102: 0.1 | K102: 0.62 | L102: 0 | N102: 18 | O102: =VLOOKUP($C102,Sheet2!$A$2:$O$3886,10,FALSE) -> City Of Paxton | P102: =VLOOKUP($C102,Sheet2!$A$2:$O$3886,2,FALSE) -> 145 S Market St Ste A | Q102: =VLOOKUP($C102,Sheet2!$A$2:$O$3886,3,FALSE) -> P O Box 59 Ste A | R102: =VLOOKUP($C102,Sheet2!$A$2:$O$3886,4,FALSE) ->  | S102: =VLOOKUP($C102,Sheet2!$A$2:$O$3886,5,FALSE) -> Paxton | T102: =VLOOKUP($C102,Sheet2!$A$2:$O$3886,6,FALSE) -> Illinois | U102: =VLOOKUP($C102,Sheet2!$A$2:$O$3886,7,FALSE) -> 60957-1289 | V102: =VLOOKUP($C102,Sheet2!$A$2:$O$3886,11,FALSE) -> Tammy Jensen
A103: =IF(C103=Entry!$B$7,INT(A102)+1,A102+0.00001) -> 0.00102 | B103: RG01 | C103: 136 | D103: 4.8 | E103: 4.55 | F103: 4.68 | G103: -0.97 | H103: 3.71 | I103: 0.04 | J103: 0.18 | K103: 0.62 | L103: 0 | N103: 18 | O103: =VLOOKUP($C103,Sheet2!$A$2:$O$3886,10,FALSE) -> City Of Sandwich | P103: =VLOOKUP($C103,Sheet2!$A$2:$O$3886,2,FALSE) -> 144 E Railroad St | Q103: =VLOOKUP($C103,Sheet2!$A$2:$O$3886,3,FALSE) ->  | R103: =VLOOKUP($C103,Sheet2!$A$2:$O$3886,4,FALSE) ->  | S103: =VLOOKUP($C103,Sheet2!$A$2:$O$3886,5,FALSE) -> Sandwich | T103: =VLOOKUP($C103,Sheet2!$A$2:$O$3886,6,FALSE) -> Illinois | U103: =VLOOKUP($C103,Sheet2!$A$2:$O$3886,7,FALSE) -> 60548-2192 | V103: =VLOOKUP($C103,Sheet2!$A$2:$O$3886,11,FALSE) -> DENISE LI
A104: =IF(C104=Entry!$B$7,INT(A103)+1,A103+0.00001) -> 0.00103 | B104: SL01 | C104: 136 | D104: 12.48 | E104: 11.76 | F104: 10.97 | G104: 0 | H104: 10.97 | I104: 0.04 | J104: 0.13 | K104: 0.62 | L104: 0 | M104: 0 | N104: 18 | O104: =VLOOKUP($C104,Sheet2!$A$2:$O$3886,10,FALSE) -> City Of Sandwich | P104: =VLOOKUP($C104,Sheet2!$A$2:$O$3886,2,FALSE) -> 144 E Railroad St | Q104: =VLOOKUP($C104,Sheet2!$A$2:$O$3886,3,FALSE) ->  | R104: =VLOOKUP($C104,Sheet2!$A$2:$O$3886,4,FALSE) ->  | S104: =VLOOKUP($C104,Sheet2!$A$2:$O$3886,5,FALSE) -> Sandwich | T104: =VLOOKUP($C104,Sheet2!$A$2:$O$3886,6,FALSE) -> Illinois | U104: =VLOOKUP($C104,Sheet2!$A$2:$O$3886,7,FALSE) -> 60548-2192 | V104: =VLOOKUP($C104,Sheet2!$A$2:$O$3886,11,FALSE) -> DENISE LI
A105: =IF(C105=Entry!$B$7,INT(A104)+1,A104+0.00001) -> 0.00104 | B105: RG01 | C105: 137 | D105: 10.33 | E105: 11.23 | F105: 4.93 | G105: 1.7 | H105: 6.63 | I105: 0.04 | J105: 0.12 | K105: 0.62 | L105: 3.82 | N105: 18 | O105: =VLOOKUP($C105,Sheet2!$A$2:$O$3886,10,FALSE) -> City Of Zion | P105: =VLOOKUP($C105,Sheet2!$A$2:$O$3886,2,FALSE) -> 2828 Sheridan Rd | Q105: =VLOOKUP($C105,Sheet2!$A$2:$O$3886,3,FALSE) ->  | R105: =VLOOKUP($C105,Sheet2!$A$2:$O$3886,4,FALSE) ->  | S105: =VLOOKUP($C105,Sheet2!$A$2:$O$3886,5,FALSE) -> Zion | T105: =VLOOKUP($C105,Sheet2!$A$2:$O$3886,6,FALSE) -> Illinois | U105: =VLOOKUP($C105,Sheet2!$A$2:$O$3886,7,FALSE) -> 60099-2674 | V105: =VLOOKUP($C105,Sheet2!$A$2:$O$3886,11,FALSE) -> Kris Conway
A106: =IF(C106=Entry!$B$7,INT(A105)+1,A105+0.00001) -> 0.00105 | B106: RG01 | C106: 138 | D106: 5.04 | E106: 5.83 | F106: 5 | G106: 0.1 | H106: 5.1 | I106: 0.04 | J106: 0.07 | K106: 0.62 | L106: 0 | N106: 10 | O106: =VLOOKUP($C106,Sheet2!$A$2:$O$3886,10,FALSE) -> Dewitt Piatt Co Health Unit | P106: =VLOOKUP($C106,Sheet2!$A$2:$O$3886,2,FALSE) -> 5924 Revere Rd | Q106: =VLOOKUP($C106,Sheet2!$A$2:$O$3886,3,FALSE) -> Po Box 518 | R106: =VLOOKUP($C106,Sheet2!$A$2:$O$3886,4,FALSE) ->  | S106: =VLOOKUP($C106,Sheet2!$A$2:$O$3886,5,FALSE) -> Clinton | T106: =VLOOKUP($C106,Sheet2!$A$2:$O$3886,6,FALSE) -> Illinois | U106: =VLOOKUP($C106,Sheet2!$A$2:$O$3886,7,FALSE) -> 61727-2914 | V106: =VLOOKUP($C106,Sheet2!$A$2:$O$3886,11,FALSE) -> Michael Schroeder
A107: =IF(C107=Entry!$B$7,INT(A106)+1,A106+0.00001) -> 0.00106 | B107: RG01 | C107: 141 | D107: 1.84 | E107: 3.61 | F107: 5.84 | G107: -3.02 | H107: 2.82 | I107: 0.04 | J107: 0.13 | K107: 0.62 | L107: 0 | N107: 18 | O107: =VLOOKUP($C107,Sheet2!$A$2:$O$3886,10,FALSE) -> Village Of Lovington | P107: =VLOOKUP($C107,Sheet2!$A$2:$O$3886,2,FALSE) -> Po Box 169 | Q107: =VLOOKUP($C107,Sheet2!$A$2:$O$3886,3,FALSE) -> 222 S. Railroad St | R107: =VLOOKUP($C107,Sheet2!$A$2:$O$3886,4,FALSE) ->  | S107: =VLOOKUP($C107,Sheet2!$A$2:$O$3886,5,FALSE) -> Lovington | T107: =VLOOKUP($C107,Sheet2!$A$2:$O$3886,6,FALSE) -> Illinois | U107: =VLOOKUP($C107,Sheet2!$A$2:$O$3886,7,FALSE) -> 61937-0169 | V107: =VLOOKUP($C107,Sheet2!$A$2:$O$3886,11,FALSE) -> ALMA FAIR
A108: =IF(C108=Entry!$B$7,INT(A107)+1,A107+0.00001) -> 0.00107 | B108: RG01 | C108: 142 | D108: 0.84 | E108: 0.78 | F108: 4.64 | G108: -16.08 | H108: 0 | I108: 0.04 | J108: 0.12 | K108: 0.62 | L108: 0 | N108: 18 | O108: =VLOOKUP($C108,Sheet2!$A$2:$O$3886,10,FALSE) -> Village Of Augusta | P108: =VLOOKUP($C108,Sheet2!$A$2:$O$3886,2,FALSE) -> Po Box 234 | Q108: =VLOOKUP($C108,Sheet2!$A$2:$O$3886,3,FALSE) -> 514 Main | R108: =VLOOKUP($C108,Sheet2!$A$2:$O$3886,4,FALSE) ->  | S108: =VLOOKUP($C108,Sheet2!$A$2:$O$3886,5,FALSE) -> Augusta | T108: =VLOOKUP($C108,Sheet2!$A$2:$O$3886,6,FALSE) -> Illinois | U108: =VLOOKUP($C108,Sheet2!$A$2:$O$3886,7,FALSE) -> 62311-0234 | V108: =VLOOKUP($C108,Sheet2!$A$2:$O$3886,11,FALSE) -> Stacy Swanger
A109: =IF(C109=Entry!$B$7,INT(A108)+1,A108+0.00001) -> 0.00108 | B109: RG01 | C109: 143 | D109: 3.41 | E109: 2.72 | F109: 5.16 | G109: -3.2 | H109: 1.96 | I109: 0.04 | J109: 0.1 | K109: 0.62 | L109: 0 | N109: 18 | O109: =VLOOKUP($C109,Sheet2!$A$2:$O$3886,10,FALSE) -> Village Of Depue | P109: =VLOOKUP($C109,Sheet2!$A$2:$O$3886,2,FALSE) -> Po Box 500 | Q109: =VLOOKUP($C109,Sheet2!$A$2:$O$3886,3,FALSE) ->  | R109: =VLOOKUP($C109,Sheet2!$A$2:$O$3886,4,FALSE) ->  | S109: =VLOOKUP($C109,Sheet2!$A$2:$O$3886,5,FALSE) -> Depue | T109: =VLOOKUP($C109,Sheet2!$A$2:$O$3886,6,FALSE) -> Illinois | U109: =VLOOKUP($C109,Sheet2!$A$2:$O$3886,7,FALSE) -> 61322-0500 | V109: =VLOOKUP($C109,Sheet2!$A$2:$O$3886,11,FALSE) -> Janeann Vickers
A110: =IF(C110=Entry!$B$7,INT(A109)+1,A109+0.00001) -> 0.00109 | B110: RG01 | C110: 144 | D110: 7.46 | E110: 8.61 | F110: 4.82 | G110: 3.01 | H110: 7.83 | I110: 0.04 | J110: 0.12 | K110: 0.62 | L110: 0 | N110: 18 | O110: =VLOOKUP($C110,Sheet2!$A$2:$O$3886,10,FALSE) -> City Of Flora | P110: =VLOOKUP($C110,Sheet2!$A$2:$O$3886,2,FALSE) -> 131 E 2Nd St | Q110: =VLOOKUP($C110,Sheet2!$A$2:$O$3886,3,FALSE) ->  | R110: =VLOOKUP($C110,Sheet2!$A$2:$O$3886,4,FALSE) ->  | S110: =VLOOKUP($C110,Sheet2!$A$2:$O$3886,5,FALSE) -> Flora | T110: =VLOOKUP($C110,Sheet2!$A$2:$O$3886,6,FALSE) -> Illinois | U110: =VLOOKUP($C110,Sheet2!$A$2:$O$3886,7,FALSE) -> 62839-2002 | V110: =VLOOKUP($C110,Sheet2!$A$2:$O$3886,11,FALSE) -> Kaci O'dell
A111: =IF(C111=Entry!$B$7,INT(A110)+1,A110+0.00001) -> 0.0011 | B111: RG01 | C111: 145 | D111: 9.28 | E111: 9.66 | F111: 4.93 | G111: 3.97 | H111: 8.9 | I111: 0.04 | J111: 0.1 | K111: 0.62 | L111: 0 | N111: 18 | O111: =VLOOKUP($C111,Sheet2!$A$2:$O$3886,10,FALSE) -> City Of Mchenry | P111: =VLOOKUP($C111,Sheet2!$A$2:$O$3886,2,FALSE) -> 333 S Green St | Q111: =VLOOKUP($C111,Sheet2!$A$2:$O$3886,3,FALSE) ->  | R111: =VLOOKUP($C111,Sheet2!$A$2:$O$3886,4,FALSE) ->  | S111: =VLOOKUP($C111,Sheet2!$A$2:$O$3886,5,FALSE) -> Mchenry | T111: =VLOOKUP($C111,Sheet2!$A$2:$O$3886,6,FALSE) -> Illinois | U111: =VLOOKUP($C111,Sheet2!$A$2:$O$3886,7,FALSE) -> 60050-5495 | V111: =VLOOKUP($C111,Sheet2!$A$2:$O$3886,11,FALSE) -> Carolyn Lynch
A112: =IF(C112=Entry!$B$7,INT(A111)+1,A111+0.00001) -> 0.00111 | B112: RG01 | C112: 146 | D112: 43.97 | E112: 20.49 | F112: 3.83 | G112: 15.86 | H112: 19.69 | I112: 0.04 | J112: 0.14 | K112: 0.62 | L112: 0 | N112: 18 | O112: =VLOOKUP($C112,Sheet2!$A$2:$O$3886,10,FALSE) -> City Of Toulon | P112: =VLOOKUP($C112,Sheet2!$A$2:$O$3886,2,FALSE) -> 111 E. Thomas St | Q112: =VLOOKUP($C112,Sheet2!$A$2:$O$3886,3,FALSE) ->  | R112: =VLOOKUP($C112,Sheet2!$A$2:$O$3886,4,FALSE) ->  | S112: =VLOOKUP($C112,Sheet2!$A$2:$O$3886,5,FALSE) -> Toulon | T112: =VLOOKUP($C112,Sheet2!$A$2:$O$3886,6,FALSE) -> Illinois | U112: =VLOOKUP($C112,Sheet2!$A$2:$O$3886,7,FALSE) -> 61483 | V112: =VLOOKUP($C112,Sheet2!$A$2:$O$3886,11,FALSE) -> Barbara Cantwell
A113: =IF(C113=Entry!$B$7,INT(A112)+1,A112+0.00001) -> 0.00112 | B113: RG01 | C113: 148 | D113: 0.92 | E113: 2.85 | F113: 4.33 | G113: -2.29 | H113: 2.04 | I113: 0.04 | J113: 0.15 | K113: 0.62 | L113: 0 | N113: 18 | O113: =VLOOKUP($C113,Sheet2!$A$2:$O$3886,10,FALSE) -> Bedford Park Dist | P113: =VLOOKUP($C113,Sheet2!$A$2:$O$3886,2,FALSE) -> 6700 S 78Th Ave | Q113: =VLOOKUP($C113,Sheet2!$A$2:$O$3886,3,FALSE) ->  | R113: =VLOOKUP($C113,Sheet2!$A$2:$O$3886,4,FALSE) ->  | S113: =VLOOKUP($C113,Sheet2!$A$2:$O$3886,5,FALSE) -> Bedford Park | T113: =VLOOKUP($C113,Sheet2!$A$2:$O$3886,6,FALSE) -> Illinois | U113: =VLOOKUP($C113,Sheet2!$A$2:$O$3886,7,FALSE) -> 60501-1998 | V113: =VLOOKUP($C113,Sheet2!$A$2:$O$3886,11,FALSE) -> Kathryn Mcmullin
A114: =IF(C114=Entry!$B$7,INT(A113)+1,A113+0.00001) -> 0.00113 | B114: RG01 | C114: 149 | D114: 4.19 | E114: 3.03 | F114: 4.85 | G114: -2.65 | H114: 2.2 | I114: 0.04 | J114: 0.17 | K114: 0.62 | L114: 0 | N114: 18 | O114: =VLOOKUP($C114,Sheet2!$A$2:$O$3886,10,FALSE) -> Fairfield Park Dist | P114: =VLOOKUP($C114,Sheet2!$A$2:$O$3886,2,FALSE) -> Po Box 467 | Q114: =VLOOKUP($C114,Sheet2!$A$2:$O$3886,3,FALSE) ->  | R114: =VLOOKUP($C114,Sheet2!$A$2:$O$3886,4,FALSE) ->  | S114: =VLOOKUP($C114,Sheet2!$A$2:$O$3886,5,FALSE) -> Fairfield | T114: =VLOOKUP($C114,Sheet2!$A$2:$O$3886,6,FALSE) -> Illinois | U114: =VLOOKUP($C114,Sheet2!$A$2:$O$3886,7,FALSE) -> 62837-0467 | V114: =VLOOKUP($C114,Sheet2!$A$2:$O$3886,11,FALSE) -> ELISA TAYLOR
A115: =IF(C115=Entry!$B$7,INT(A114)+1,A114+0.00001) -> 0.00114 | B115: RG01 | C115: 150 | D115: 10.72 | E115: 11.72 | F115: 4.31 | G115: 0.63 | H115: 4.94 | I115: 0.04 | J115: 0.1 | K115: 0.62 | L115: 6.02 | N115: 18 | O115: =VLOOKUP($C115,Sheet2!$A$2:$O$3886,10,FALSE) -> Kewanee Park Dist | P115: =VLOOKUP($C115,Sheet2!$A$2:$O$3886,2,FALSE) -> 1095 Cambridge Rd | Q115: =VLOOKUP($C115,Sheet2!$A$2:$O$3886,3,FALSE) ->  | R115: =VLOOKUP($C115,Sheet2!$A$2:$O$3886,4,FALSE) ->  | S115: =VLOOKUP($C115,Sheet2!$A$2:$O$3886,5,FALSE) -> Kewanee | T115: =VLOOKUP($C115,Sheet2!$A$2:$O$3886,6,FALSE) -> Illinois | U115: =VLOOKUP($C115,Sheet2!$A$2:$O$3886,7,FALSE) -> 61443-1286 | V115: =VLOOKUP($C115,Sheet2!$A$2:$O$3886,11,FALSE) -> Andrew Dwyer
A116: =IF(C116=Entry!$B$7,INT(A115)+1,A115+0.00001) -> 0.00115 | B116: RG01 | C116: 151 | D116: 0.93 | E116: 0.84 | F116: 5.16 | G116: -10.75 | H116: 0 | I116: 0.04 | J116: 0.18 | K116: 0.62 | L116: 0 | N116: 18 | O116: =VLOOKUP($C116,Sheet2!$A$2:$O$3886,10,FALSE) -> City Of Gilman | P116: =VLOOKUP($C116,Sheet2!$A$2:$O$3886,2,FALSE) -> 215 N Central St | Q116: =VLOOKUP($C116,Sheet2!$A$2:$O$3886,3,FALSE) -> P O Box 215 | R116: =VLOOKUP($C116,Sheet2!$A$2:$O$3886,4,FALSE) ->  | S116: =VLOOKUP($C116,Sheet2!$A$2:$O$3886,5,FALSE) -> Gilman | T116: =VLOOKUP($C116,Sheet2!$A$2:$O$3886,6,FALSE) -> Illinois | U116: =VLOOKUP($C116,Sheet2!$A$2:$O$3886,7,FALSE) -> 60938-1218 | V116: =VLOOKUP($C116,Sheet2!$A$2:$O$3886,11,FALSE) -> Wendy Kraft
A117: =IF(C117=Entry!$B$7,INT(A116)+1,A116+0.00001) -> 0.00116 | B117: RG01 | C117: 155 | D117: 5.03 | E117: 5.49 | F117: 4.95 | G117: -0.28 | H117: 4.67 | I117: 0.04 | J117: 0.16 | K117: 0.62 | L117: 0 | N117: 18 | O117: =VLOOKUP($C117,Sheet2!$A$2:$O$3886,10,FALSE) -> Village Of Granville | P117: =VLOOKUP($C117,Sheet2!$A$2:$O$3886,2,FALSE) -> Po Box 580 | Q117: =VLOOKUP($C117,Sheet2!$A$2:$O$3886,3,FALSE) ->  | R117: =VLOOKUP($C117,Sheet2!$A$2:$O$3886,4,FALSE) ->  | S117: =VLOOKUP($C117,Sheet2!$A$2:$O$3886,5,FALSE) -> Granville | T117: =VLOOKUP($C117,Sheet2!$A$2:$O$3886,6,FALSE) -> Illinois | U117: =VLOOKUP($C117,Sheet2!$A$2:$O$3886,7,FALSE) -> 61326-0580 | V117: =VLOOKUP($C117,Sheet2!$A$2:$O$3886,11,FALSE) -> Kari Moore
A118: =IF(C118=Entry!$B$7,INT(A117)+1,A117+0.00001) -> 0.00117 | B118: RG01 | C118: 157 | D118: 5.07 | E118: 6 | F118: 4.87 | G118: 0.36 | H118: 5.23 | I118: 0.04 | J118: 0.11 | K118: 0.62 | L118: 0 | N118: 18 | O118: =VLOOKUP($C118,Sheet2!$A$2:$O$3886,10,FALSE) -> Village Of Lake Zurich | P118: =VLOOKUP($C118,Sheet2!$A$2:$O$3886,2,FALSE) -> 70 E Main St | Q118: =VLOOKUP($C118,Sheet2!$A$2:$O$3886,3,FALSE) ->  | R118: =VLOOKUP($C118,Sheet2!$A$2:$O$3886,4,FALSE) ->  | S118: =VLOOKUP($C118,Sheet2!$A$2:$O$3886,5,FALSE) -> Lake Zurich | T118: =VLOOKUP($C118,Sheet2!$A$2:$O$3886,6,FALSE) -> Illinois | U118: =VLOOKUP($C118,Sheet2!$A$2:$O$3886,7,FALSE) -> 60047-3226 | V118: =VLOOKUP($C118,Sheet2!$A$2:$O$3886,11,FALSE) -> Michael Duebner
A119: =IF(C119=Entry!$B$7,INT(A118)+1,A118+0.00001) -> 0.00118 | B119: RG01 | C119: 158 | D119: 5.3 | E119: 5.89 | F119: 4.17 | G119: 0.97 | H119: 5.14 | I119: 0.04 | J119: 0.09 | K119: 0.62 | L119: 0 | N119: 18 | O119: =VLOOKUP($C119,Sheet2!$A$2:$O$3886,10,FALSE) -> City Of Nashville | P119: =VLOOKUP($C119,Sheet2!$A$2:$O$3886,2,FALSE) -> 190 N East Court St | Q119: =VLOOKUP($C119,Sheet2!$A$2:$O$3886,3,FALSE) ->  | R119: =VLOOKUP($C119,Sheet2!$A$2:$O$3886,4,FALSE) ->  | S119: =VLOOKUP($C119,Sheet2!$A$2:$O$3886,5,FALSE) -> Nashville | T119: =VLOOKUP($C119,Sheet2!$A$2:$O$3886,6,FALSE) -> Illinois | U119: =VLOOKUP($C119,Sheet2!$A$2:$O$3886,7,FALSE) -> 62263-1112 | V119: =VLOOKUP($C119,Sheet2!$A$2:$O$3886,11,FALSE) -> Theresa Kurwicki
A120: =IF(C120=Entry!$B$7,INT(A119)+1,A119+0.00001) -> 0.00119 | B120: RG01 | C120: 162 | D120: 0.96 | E120: 0.85 | F120: 4.54 | G120: -6.74 | H120: 0 | I120: 0.04 | J120: 0.19 | K120: 0.62 | L120: 0 | N120: 18 | O120: =VLOOKUP($C120,Sheet2!$A$2:$O$3886,10,FALSE) -> Chicago Heights Park Dist | P120: =VLOOKUP($C120,Sheet2!$A$2:$O$3886,2,FALSE) -> 1400 Chicago Rd | Q120: =VLOOKUP($C120,Sheet2!$A$2:$O$3886,3,FALSE) ->  | R120: =VLOOKUP($C120,Sheet2!$A$2:$O$3886,4,FALSE) ->  | S120: =VLOOKUP($C120,Sheet2!$A$2:$O$3886,5,FALSE) -> Chicago Heights | T120: =VLOOKUP($C120,Sheet2!$A$2:$O$3886,6,FALSE) -> Illinois | U120: =VLOOKUP($C120,Sheet2!$A$2:$O$3886,7,FALSE) -> 60411-3478 | V120: =VLOOKUP($C120,Sheet2!$A$2:$O$3886,11,FALSE) -> Michael DeButch
A121: =IF(C121=Entry!$B$7,INT(A120)+1,A120+0.00001) -> 0.0012 | B121: RG01 | C121: 163 | D121: 10.75 | E121: 9.51 | F121: 4.79 | G121: 3.97 | H121: 8.76 | I121: 0.04 | J121: 0.09 | K121: 0.62 | L121: 0 | N121: 18 | O121: =VLOOKUP($C121,Sheet2!$A$2:$O$3886,10,FALSE) -> Village Of Ladd | P121: =VLOOKUP($C121,Sheet2!$A$2:$O$3886,2,FALSE) -> 121 N Main Ave | Q121: =VLOOKUP($C121,Sheet2!$A$2:$O$3886,3,FALSE) -> Po Box 305 | R121: =VLOOKUP($C121,Sheet2!$A$2:$O$3886,4,FALSE) ->  | S121: =VLOOKUP($C121,Sheet2!$A$2:$O$3886,5,FALSE) -> Ladd | T121: =VLOOKUP($C121,Sheet2!$A$2:$O$3886,6,FALSE) -> Illinois | U121: =VLOOKUP($C121,Sheet2!$A$2:$O$3886,7,FALSE) -> 61329 | V121: =VLOOKUP($C121,Sheet2!$A$2:$O$3886,11,FALSE) -> Rhonda Bezely
A122: =IF(C122=Entry!$B$7,INT(A121)+1,A121+0.00001) -> 0.00121 | B122: RG01 | C122: 164 | D122: 9.51 | E122: 9.49 | F122: 5.25 | G122: 3.49 | H122: 8.74 | I122: 0.04 | J122: 0.09 | K122: 0.62 | L122: 0 | N122: 18 | O122: =VLOOKUP($C122,Sheet2!$A$2:$O$3886,10,FALSE) -> Village Of Caseyville | P122: =VLOOKUP($C122,Sheet2!$A$2:$O$3886,2,FALSE) -> 909 S Main St | Q122: =VLOOKUP($C122,Sheet2!$A$2:$O$3886,3,FALSE) ->  | R122: =VLOOKUP($C122,Sheet2!$A$2:$O$3886,4,FALSE) ->  | S122: =VLOOKUP($C122,Sheet2!$A$2:$O$3886,5,FALSE) -> Caseyville | T122: =VLOOKUP($C122,Sheet2!$A$2:$O$3886,6,FALSE) -> Illinois | U122: =VLOOKUP($C122,Sheet2!$A$2:$O$3886,7,FALSE) -> 62232-1831 | V122: =VLOOKUP($C122,Sheet2!$A$2:$O$3886,11,FALSE) -> Tamara Ammann
A123: =IF(C123=Entry!$B$7,INT(A122)+1,A122+0.00001) -> 0.00122 | B123: SL01 | C123: 164 | D123: 12.48 | E123: 11.76 | F123: 10.97 | G123: 0 | H123: 10.97 | I123: 0.04 | J123: 0.13 | K123: 0.62 | L123: 0 | M123: 0 | N123: 18 | O123: =VLOOKUP($C123,Sheet2!$A$2:$O$3886,10,FALSE) -> Village Of Caseyville | P123: =VLOOKUP($C123,Sheet2!$A$2:$O$3886,2,FALSE) -> 909 S Main St | Q123: =VLOOKUP($C123,Sheet2!$A$2:$O$3886,3,FALSE) ->  | R123: =VLOOKUP($C123,Sheet2!$A$2:$O$3886,4,FALSE) ->  | S123: =VLOOKUP($C123,Sheet2!$A$2:$O$3886,5,FALSE) -> Caseyville | T123: =VLOOKUP($C123,Sheet2!$A$2:$O$3886,6,FALSE) -> Illinois | U123: =VLOOKUP($C123,Sheet2!$A$2:$O$3886,7,FALSE) -> 62232-1831 | V123: =VLOOKUP($C123,Sheet2!$A$2:$O$3886,11,FALSE) -> Tamara Ammann
A124: =IF(C124=Entry!$B$7,INT(A123)+1,A123+0.00001) -> 0.00123 | B124: RG01 | C124: 165 | D124: 5.91 | E124: 6.64 | F124: 5.09 | G124: 0.76 | H124: 5.85 | I124: 0.04 | J124: 0.13 | K124: 0.62 | L124: 0 | N124: 18 | O124: =VLOOKUP($C124,Sheet2!$A$2:$O$3886,10,FALSE) -> City Of Yorkville | P124: =VLOOKUP($C124,Sheet2!$A$2:$O$3886,2,FALSE) -> 651 Prairie Pointe Dr | Q124: =VLOOKUP($C124,Sheet2!$A$2:$O$3886,3,FALSE) ->  | R124: =VLOOKUP($C124,Sheet2!$A$2:$O$3886,4,FALSE) ->  | S124: =VLOOKUP($C124,Sheet2!$A$2:$O$3886,5,FALSE) -> Yorkville | T124: =VLOOKUP($C124,Sheet2!$A$2:$O$3886,6,FALSE) -> Illinois | U124: =VLOOKUP($C124,Sheet2!$A$2:$O$3886,7,FALSE) -> 60560-0901 | V124: =VLOOKUP($C124,Sheet2!$A$2:$O$3886,11,FALSE) -> David Fredrickson
A125: =IF(C125=Entry!$B$7,INT(A124)+1,A124+0.00001) -> 0.00124 | B125: RG01 | C125: 167 | D125: 3.46 | E125: 4.58 | F125: 5.08 | G125: -1.26 | H125: 3.82 | I125: 0.04 | J125: 0.1 | K125: 0.62 | L125: 0 | N125: 18 | O125: =VLOOKUP($C125,Sheet2!$A$2:$O$3886,10,FALSE) -> Village Of Antioch | P125: =VLOOKUP($C125,Sheet2!$A$2:$O$3886,2,FALSE) -> 874 Main St | Q125: =VLOOKUP($C125,Sheet2!$A$2:$O$3886,3,FALSE) ->  | R125: =VLOOKUP($C125,Sheet2!$A$2:$O$3886,4,FALSE) ->  | S125: =VLOOKUP($C125,Sheet2!$A$2:$O$3886,5,FALSE) -> Antioch | T125: =VLOOKUP($C125,Sheet2!$A$2:$O$3886,6,FALSE) -> Illinois | U125: =VLOOKUP($C125,Sheet2!$A$2:$O$3886,7,FALSE) -> 60002-1577 | V125: =VLOOKUP($C125,Sheet2!$A$2:$O$3886,11,FALSE) -> Zaida Torres
A126: =IF(C126=Entry!$B$7,INT(A125)+1,A125+0.00001) -> 0.00125 | B126: RG01 | C126: 168 | D126: 7.46 | E126: 7.64 | F126: 4.68 | G126: 2.2 | H126: 6.88 | I126: 0.04 | J126: 0.1 | K126: 0.62 | L126: 0 | N126: 18 | O126: =VLOOKUP($C126,Sheet2!$A$2:$O$3886,10,FALSE) -> City Of Geneseo | P126: =VLOOKUP($C126,Sheet2!$A$2:$O$3886,2,FALSE) -> 115 S Oakwood Ave | Q126: =VLOOKUP($C126,Sheet2!$A$2:$O$3886,3,FALSE) ->  | R126: =VLOOKUP($C126,Sheet2!$A$2:$O$3886,4,FALSE) ->  | S126: =VLOOKUP($C126,Sheet2!$A$2:$O$3886,5,FALSE) -> Geneseo | T126: =VLOOKUP($C126,Sheet2!$A$2:$O$3886,6,FALSE) -> Illinois | U126: =VLOOKUP($C126,Sheet2!$A$2:$O$3886,7,FALSE) -> 61254-2128 | V126: =VLOOKUP($C126,Sheet2!$A$2:$O$3886,11,FALSE) -> Brandon Maeglin
A127: =IF(C127=Entry!$B$7,INT(A126)+1,A126+0.00001) -> 0.00126 | B127: RG01 | C127: 169 | D127: 6.1 | E127: 6.4 | F127: 4.9 | G127: 0.74 | H127: 5.64 | I127: 0.04 | J127: 0.1 | K127: 0.62 | L127: 0 | N127: 18 | O127: =VLOOKUP($C127,Sheet2!$A$2:$O$3886,10,FALSE) -> City Of Lockport | P127: =VLOOKUP($C127,Sheet2!$A$2:$O$3886,2,FALSE) -> 222 E 9Th St Fl 2 | Q127: =VLOOKUP($C127,Sheet2!$A$2:$O$3886,3,FALSE) ->  | R127: =VLOOKUP($C127,Sheet2!$A$2:$O$3886,4,FALSE) ->  | S127: =VLOOKUP($C127,Sheet2!$A$2:$O$3886,5,FALSE) -> Lockport | T127: =VLOOKUP($C127,Sheet2!$A$2:$O$3886,6,FALSE) -> Illinois | U127: =VLOOKUP($C127,Sheet2!$A$2:$O$3886,7,FALSE) -> 60441-3497 | V127: =VLOOKUP($C127,Sheet2!$A$2:$O$3886,11,FALSE) -> Margaret Hickey
A128: =IF(C128=Entry!$B$7,INT(A127)+1,A127+0.00001) -> 0.00127 | B128: RG01 | C128: 171 | D128: 3.62 | E128: 3.97 | F128: 4.64 | G128: -1.51 | H128: 3.13 | I128: 0.04 | J128: 0.18 | K128: 0.62 | L128: 0 | N128: 18 | O128: =VLOOKUP($C128,Sheet2!$A$2:$O$3886,10,FALSE) -> City Of Pontiac | P128: =VLOOKUP($C128,Sheet2!$A$2:$O$3886,2,FALSE) -> 115 W Howard St | Q128: =VLOOKUP($C128,Sheet2!$A$2:$O$3886,3,FALSE) ->  | R128: =VLOOKUP($C128,Sheet2!$A$2:$O$3886,4,FALSE) ->  | S128: =VLOOKUP($C128,Sheet2!$A$2:$O$3886,5,FALSE) -> Pontiac | T128: =VLOOKUP($C128,Sheet2!$A$2:$O$3886,6,FALSE) -> Illinois | U128: =VLOOKUP($C128,Sheet2!$A$2:$O$3886,7,FALSE) -> 61764-1819 | V128: =VLOOKUP($C128,Sheet2!$A$2:$O$3886,11,FALSE) -> JAMES WOOLFORD
A129: =IF(C129=Entry!$B$7,INT(A128)+1,A128+0.00001) -> 0.00128 | B129: RG01 | C129: 172 | D129: 4.05 | E129: 6.76 | F129: 4.48 | G129: 1.48 | H129: 5.96 | I129: 0.04 | J129: 0.14 | K129: 0.62 | L129: 0 | N129: 18 | O129: =VLOOKUP($C129,Sheet2!$A$2:$O$3886,10,FALSE) -> Village Of Walnut | P129: =VLOOKUP($C129,Sheet2!$A$2:$O$3886,2,FALSE) -> Po Box 604 | Q129: =VLOOKUP($C129,Sheet2!$A$2:$O$3886,3,FALSE) -> 114 Jackson | R129: =VLOOKUP($C129,Sheet2!$A$2:$O$3886,4,FALSE) ->  | S129: =VLOOKUP($C129,Sheet2!$A$2:$O$3886,5,FALSE) -> Walnut | T129: =VLOOKUP($C129,Sheet2!$A$2:$O$3886,6,FALSE) -> Illinois | U129: =VLOOKUP($C129,Sheet2!$A$2:$O$3886,7,FALSE) -> 61376-0604 | V129: =VLOOKUP($C129,Sheet2!$A$2:$O$3886,11,FALSE) -> Autumn Wolf
A130: =IF(C130=Entry!$B$7,INT(A129)+1,A129+0.00001) -> 0.00129 | B130: RG01 | C130: 173 | D130: 7.9 | E130: 8.45 | F130: 4.7 | G130: 2.96 | H130: 7.66 | I130: 0.04 | J130: 0.13 | K130: 0.62 | L130: 0 | N130: 18 | O130: =VLOOKUP($C130,Sheet2!$A$2:$O$3886,10,FALSE) -> City Of White Hall | P130: =VLOOKUP($C130,Sheet2!$A$2:$O$3886,2,FALSE) -> 116 E Sherman St | Q130: =VLOOKUP($C130,Sheet2!$A$2:$O$3886,3,FALSE) ->  | R130: =VLOOKUP($C130,Sheet2!$A$2:$O$3886,4,FALSE) ->  | S130: =VLOOKUP($C130,Sheet2!$A$2:$O$3886,5,FALSE) -> White Hall | T130: =VLOOKUP($C130,Sheet2!$A$2:$O$3886,6,FALSE) -> Illinois | U130: =VLOOKUP($C130,Sheet2!$A$2:$O$3886,7,FALSE) -> 62092-1397 | V130: =VLOOKUP($C130,Sheet2!$A$2:$O$3886,11,FALSE) -> Vicky Cox
A131: =IF(C131=Entry!$B$7,INT(A130)+1,A130+0.00001) -> 0.0013 | B131: RG01 | C131: 174 | D131: 11.87 | E131: 12.59 | F131: 4.59 | G131: 7.18 | H131: 11.77 | I131: 0.04 | J131: 0.16 | K131: 0.62 | L131: 0 | N131: 18 | O131: =VLOOKUP($C131,Sheet2!$A$2:$O$3886,10,FALSE) -> City Of Winchester | P131: =VLOOKUP($C131,Sheet2!$A$2:$O$3886,2,FALSE) -> 1 E Market St | Q131: =VLOOKUP($C131,Sheet2!$A$2:$O$3886,3,FALSE) ->  | R131: =VLOOKUP($C131,Sheet2!$A$2:$O$3886,4,FALSE) ->  | S131: =VLOOKUP($C131,Sheet2!$A$2:$O$3886,5,FALSE) -> Winchester | T131: =VLOOKUP($C131,Sheet2!$A$2:$O$3886,6,FALSE) -> Illinois | U131: =VLOOKUP($C131,Sheet2!$A$2:$O$3886,7,FALSE) -> 62694-1259 | V131: =VLOOKUP($C131,Sheet2!$A$2:$O$3886,11,FALSE) -> Amanda Howerton
A132: =IF(C132=Entry!$B$7,INT(A131)+1,A131+0.00001) -> 0.00131 | B132: RG01 | C132: 175 | D132: 5.05 | E132: 5.46 | F132: 5.06 | G132: -0.36 | H132: 4.7 | I132: 0.04 | J132: 0.1 | K132: 0.62 | L132: 0 | N132: 18 | O132: =VLOOKUP($C132,Sheet2!$A$2:$O$3886,10,FALSE) -> Village Of Winthrop Harbor | P132: =VLOOKUP($C132,Sheet2!$A$2:$O$3886,2,FALSE) -> 830 Sheridan Rd | Q132: =VLOOKUP($C132,Sheet2!$A$2:$O$3886,3,FALSE) ->  | R132: =VLOOKUP($C132,Sheet2!$A$2:$O$3886,4,FALSE) ->  | S132: =VLOOKUP($C132,Sheet2!$A$2:$O$3886,5,FALSE) -> Winthrop Harbor | T132: =VLOOKUP($C132,Sheet2!$A$2:$O$3886,6,FALSE) -> Illinois | U132: =VLOOKUP($C132,Sheet2!$A$2:$O$3886,7,FALSE) -> 60096-1632 | V132: =VLOOKUP($C132,Sheet2!$A$2:$O$3886,11,FALSE) -> David Alarcon
A133: =IF(C133=Entry!$B$7,INT(A132)+1,A132+0.00001) -> 0.00132 | B133: SL01 | C133: 175 | D133: 12.48 | E133: 11.76 | F133: 10.97 | G133: 0 | H133: 10.97 | I133: 0.04 | J133: 0.13 | K133: 0.62 | L133: 0 | M133: 0 | N133: 18 | O133: =VLOOKUP($C133,Sheet2!$A$2:$O$3886,10,FALSE) -> Village Of Winthrop Harbor | P133: =VLOOKUP($C133,Sheet2!$A$2:$O$3886,2,FALSE) -> 830 Sheridan Rd | Q133: =VLOOKUP($C133,Sheet2!$A$2:$O$3886,3,FALSE) ->  | R133: =VLOOKUP($C133,Sheet2!$A$2:$O$3886,4,FALSE) ->  | S133: =VLOOKUP($C133,Sheet2!$A$2:$O$3886,5,FALSE) -> Winthrop Harbor | T133: =VLOOKUP($C133,Sheet2!$A$2:$O$3886,6,FALSE) -> Illinois | U133: =VLOOKUP($C133,Sheet2!$A$2:$O$3886,7,FALSE) -> 60096-1632 | V133: =VLOOKUP($C133,Sheet2!$A$2:$O$3886,11,FALSE) -> David Alarcon
A134: =IF(C134=Entry!$B$7,INT(A133)+1,A133+0.00001) -> 0.00133 | B134: RG01 | C134: 177 | D134: 7.39 | E134: 7.9 | F134: 4.2 | G134: 2.94 | H134: 7.14 | I134: 0.04 | J134: 0.1 | K134: 0.62 | L134: 0 | N134: 18 | O134: =VLOOKUP($C134,Sheet2!$A$2:$O$3886,10,FALSE) -> Edwardsville Township | P134: =VLOOKUP($C134,Sheet2!$A$2:$O$3886,2,FALSE) -> 300 W Park St | Q134: =VLOOKUP($C134,Sheet2!$A$2:$O$3886,3,FALSE) ->  | R134: =VLOOKUP($C134,Sheet2!$A$2:$O$3886,4,FALSE) ->  | S134: =VLOOKUP($C134,Sheet2!$A$2:$O$3886,5,FALSE) -> Edwardsville | T134: =VLOOKUP($C134,Sheet2!$A$2:$O$3886,6,FALSE) -> Illinois | U134: =VLOOKUP($C134,Sheet2!$A$2:$O$3886,7,FALSE) -> 62025-1930 | V134: =VLOOKUP($C134,Sheet2!$A$2:$O$3886,11,FALSE) -> KEVIN HALL
A135: =IF(C135=Entry!$B$7,INT(A134)+1,A134+0.00001) -> 0.00134 | B135: RG01 | C135: 181 | D135: 6.64 | E135: 4.04 | F135: 4.9 | G135: -1.7 | H135: 3.2 | I135: 0.04 | J135: 0.18 | K135: 0.62 | L135: 0 | N135: 18 | O135: =VLOOKUP($C135,Sheet2!$A$2:$O$3886,10,FALSE) -> Lyons Township | P135: =VLOOKUP($C135,Sheet2!$A$2:$O$3886,2,FALSE) -> 6404 Joliet Rd Fl 1 | Q135: =VLOOKUP($C135,Sheet2!$A$2:$O$3886,3,FALSE) ->  | R135: =VLOOKUP($C135,Sheet2!$A$2:$O$3886,4,FALSE) ->  | S135: =VLOOKUP($C135,Sheet2!$A$2:$O$3886,5,FALSE) -> Countryside | T135: =VLOOKUP($C135,Sheet2!$A$2:$O$3886,6,FALSE) -> Illinois | U135: =VLOOKUP($C135,Sheet2!$A$2:$O$3886,7,FALSE) -> 60525-4689 | V135: =VLOOKUP($C135,Sheet2!$A$2:$O$3886,11,FALSE) -> Christopher Getty
A136: =IF(C136=Entry!$B$7,INT(A135)+1,A135+0.00001) -> 0.00135 | B136: RG01 | C136: 182 | D136: 14.66 | E136: 15.43 | F136: 4.12 | G136: 10.48 | H136: 14.6 | I136: 0.04 | J136: 0.17 | K136: 0.62 | L136: 0 | N136: 18 | O136: =VLOOKUP($C136,Sheet2!$A$2:$O$3886,10,FALSE) -> Pana Township | P136: =VLOOKUP($C136,Sheet2!$A$2:$O$3886,2,FALSE) -> 2295 Illinois Route 16 | Q136: =VLOOKUP($C136,Sheet2!$A$2:$O$3886,3,FALSE) ->  | R136: =VLOOKUP($C136,Sheet2!$A$2:$O$3886,4,FALSE) ->  | S136: =VLOOKUP($C136,Sheet2!$A$2:$O$3886,5,FALSE) -> Pana | T136: =VLOOKUP($C136,Sheet2!$A$2:$O$3886,6,FALSE) -> Illinois | U136: =VLOOKUP($C136,Sheet2!$A$2:$O$3886,7,FALSE) -> 62557-6329 | V136: =VLOOKUP($C136,Sheet2!$A$2:$O$3886,11,FALSE) -> TOM LATONIS
A137: =IF(C137=Entry!$B$7,INT(A136)+1,A136+0.00001) -> 0.00136 | B137: RG01 | C137: 185 | D137: 2.73 | E137: 4.52 | F137: 4.76 | G137: -1.16 | H137: 3.6 | I137: 0.04 | J137: 0.26 | K137: 0.62 | L137: 0 | N137: 18 | O137: =VLOOKUP($C137,Sheet2!$A$2:$O$3886,10,FALSE) -> Wade Township | P137: =VLOOKUP($C137,Sheet2!$A$2:$O$3886,2,FALSE) -> 200 White Oak Dr | Q137: =VLOOKUP($C137,Sheet2!$A$2:$O$3886,3,FALSE) ->  | R137: =VLOOKUP($C137,Sheet2!$A$2:$O$3886,4,FALSE) ->  | S137: =VLOOKUP($C137,Sheet2!$A$2:$O$3886,5,FALSE) -> Newton | T137: =VLOOKUP($C137,Sheet2!$A$2:$O$3886,6,FALSE) -> Illinois | U137: =VLOOKUP($C137,Sheet2!$A$2:$O$3886,7,FALSE) -> 62448-1000 | V137: =VLOOKUP($C137,Sheet2!$A$2:$O$3886,11,FALSE) -> JOE HEMRICH
A138: =IF(C138=Entry!$B$7,INT(A137)+1,A137+0.00001) -> 0.00137 | B138: RG01 | C138: 186 | D138: 1.05 | E138: 0.83 | F138: 3.37 | G138: -35.4 | H138: 0 | I138: 0.04 | J138: 0.17 | K138: 0.62 | L138: 0 | N138: 18 | O138: =VLOOKUP($C138,Sheet2!$A$2:$O$3886,10,FALSE) -> Village Of Cissna Park | P138: =VLOOKUP($C138,Sheet2!$A$2:$O$3886,2,FALSE) -> Po Box 488 | Q138: =VLOOKUP($C138,Sheet2!$A$2:$O$3886,3,FALSE) ->  | R138: =VLOOKUP($C138,Sheet2!$A$2:$O$3886,4,FALSE) ->  | S138: =VLOOKUP($C138,Sheet2!$A$2:$O$3886,5,FALSE) -> Cissna Park | T138: =VLOOKUP($C138,Sheet2!$A$2:$O$3886,6,FALSE) -> Illinois | U138: =VLOOKUP($C138,Sheet2!$A$2:$O$3886,7,FALSE) -> 60924-0488 | V138: =VLOOKUP($C138,Sheet2!$A$2:$O$3886,11,FALSE) -> DOUGLAS BAUER
A139: =IF(C139=Entry!$B$7,INT(A138)+1,A138+0.00001) -> 0.00138 | B139: RG01 | C139: 187 | D139: 0.95 | E139: 0.83 | F139: 3.77 | G139: -6.23 | H139: 0 | I139: 0.04 | J139: 0.17 | K139: 0.62 | L139: 0 | N139: 18 | O139: =VLOOKUP($C139,Sheet2!$A$2:$O$3886,10,FALSE) -> City Of Savanna | P139: =VLOOKUP($C139,Sheet2!$A$2:$O$3886,2,FALSE) -> 333 Chicago Ave | Q139: =VLOOKUP($C139,Sheet2!$A$2:$O$3886,3,FALSE) ->  | R139: =VLOOKUP($C139,Sheet2!$A$2:$O$3886,4,FALSE) ->  | S139: =VLOOKUP($C139,Sheet2!$A$2:$O$3886,5,FALSE) -> Savanna | T139: =VLOOKUP($C139,Sheet2!$A$2:$O$3886,6,FALSE) -> Illinois | U139: =VLOOKUP($C139,Sheet2!$A$2:$O$3886,7,FALSE) -> 61074-1964 | V139: =VLOOKUP($C139,Sheet2!$A$2:$O$3886,11,FALSE) -> Brittany Hatteberg
A140: =IF(C140=Entry!$B$7,INT(A139)+1,A139+0.00001) -> 0.00139 | B140: RG01 | C140: 188 | D140: 5.83 | E140: 6.92 | F140: 4.79 | G140: 1.34 | H140: 6.13 | I140: 0.04 | J140: 0.13 | K140: 0.62 | L140: 0 | N140: 18 | O140: =VLOOKUP($C140,Sheet2!$A$2:$O$3886,10,FALSE) -> Village Of Wauconda | P140: =VLOOKUP($C140,Sheet2!$A$2:$O$3886,2,FALSE) -> 101 N Main St | Q140: =VLOOKUP($C140,Sheet2!$A$2:$O$3886,3,FALSE) ->  | R140: =VLOOKUP($C140,Sheet2!$A$2:$O$3886,4,FALSE) ->  | S140: =VLOOKUP($C140,Sheet2!$A$2:$O$3886,5,FALSE) -> Wauconda | T140: =VLOOKUP($C140,Sheet2!$A$2:$O$3886,6,FALSE) -> Illinois | U140: =VLOOKUP($C140,Sheet2!$A$2:$O$3886,7,FALSE) -> 60084-1888 | V140: =VLOOKUP($C140,Sheet2!$A$2:$O$3886,11,FALSE) -> Julie Mcmanus
A141: =IF(C141=Entry!$B$7,INT(A140)+1,A140+0.00001) -> 0.0014 | B141: RG01 | C141: 191 | D141: 6.86 | E141: 8.4 | F141: 4.68 | G141: 2.9 | H141: 7.58 | I141: 0.04 | J141: 0.16 | K141: 0.62 | L141: 0 | N141: 18 | O141: =VLOOKUP($C141,Sheet2!$A$2:$O$3886,10,FALSE) -> City Of Pittsfield | P141: =VLOOKUP($C141,Sheet2!$A$2:$O$3886,2,FALSE) -> 215 N Monroe St | Q141: =VLOOKUP($C141,Sheet2!$A$2:$O$3886,3,FALSE) ->  | R141: =VLOOKUP($C141,Sheet2!$A$2:$O$3886,4,FALSE) ->  | S141: =VLOOKUP($C141,Sheet2!$A$2:$O$3886,5,FALSE) -> Pittsfield | T141: =VLOOKUP($C141,Sheet2!$A$2:$O$3886,6,FALSE) -> Illinois | U141: =VLOOKUP($C141,Sheet2!$A$2:$O$3886,7,FALSE) -> 62363-1498 | V141: =VLOOKUP($C141,Sheet2!$A$2:$O$3886,11,FALSE) -> Priscilla Moffit
A142: =IF(C142=Entry!$B$7,INT(A141)+1,A141+0.00001) -> 0.00141 | B142: RG01 | C142: 192 | D142: 0.93 | E142: 0.85 | F142: 6.11 | G142: -30.13 | H142: 0 | I142: 0.04 | J142: 0.19 | K142: 0.62 | L142: 0 | N142: 18 | O142: =VLOOKUP($C142,Sheet2!$A$2:$O$3886,10,FALSE) -> Galva Township | P142: =VLOOKUP($C142,Sheet2!$A$2:$O$3886,2,FALSE) -> 540 Se 5Th Ave | Q142: =VLOOKUP($C142,Sheet2!$A$2:$O$3886,3,FALSE) ->  | R142: =VLOOKUP($C142,Sheet2!$A$2:$O$3886,4,FALSE) ->  | S142: =VLOOKUP($C142,Sheet2!$A$2:$O$3886,5,FALSE) -> Galva | T142: =VLOOKUP($C142,Sheet2!$A$2:$O$3886,6,FALSE) -> Illinois | U142: =VLOOKUP($C142,Sheet2!$A$2:$O$3886,7,FALSE) -> 61434-2036 | V142: =VLOOKUP($C142,Sheet2!$A$2:$O$3886,11,FALSE) -> LARRY CHELINE
A143: =IF(C143=Entry!$B$7,INT(A142)+1,A142+0.00001) -> 0.00142 | B143: RG01 | C143: 194 | D143: 11.54 | E143: 10.6 | F143: 5.03 | G143: 4.7 | H143: 9.73 | I143: 0.04 | J143: 0.21 | K143: 0.62 | L143: 0 | N143: 18 | O143: =VLOOKUP($C143,Sheet2!$A$2:$O$3886,10,FALSE) -> City Of Farmer City | P143: =VLOOKUP($C143,Sheet2!$A$2:$O$3886,2,FALSE) -> 105 S Main St | Q143: =VLOOKUP($C143,Sheet2!$A$2:$O$3886,3,FALSE) ->  | R143: =VLOOKUP($C143,Sheet2!$A$2:$O$3886,4,FALSE) ->  | S143: =VLOOKUP($C143,Sheet2!$A$2:$O$3886,5,FALSE) -> Farmer City | T143: =VLOOKUP($C143,Sheet2!$A$2:$O$3886,6,FALSE) -> Illinois | U143: =VLOOKUP($C143,Sheet2!$A$2:$O$3886,7,FALSE) -> 61842-1453 | V143: =VLOOKUP($C143,Sheet2!$A$2:$O$3886,11,FALSE) -> Angela Wanserski
A144: =IF(C144=Entry!$B$7,INT(A143)+1,A143+0.00001) -> 0.00143 | B144: RG01 | C144: 198 | D144: 5.96 | E144: 6.4 | F144: 4.79 | G144: 0.8 | H144: 5.59 | I144: 0.04 | J144: 0.15 | K144: 0.62 | L144: 0 | N144: 18 | O144: =VLOOKUP($C144,Sheet2!$A$2:$O$3886,10,FALSE) -> Village Of Thornton | P144: =VLOOKUP($C144,Sheet2!$A$2:$O$3886,2,FALSE) -> 115 E Margaret St Ste 1 | Q144: =VLOOKUP($C144,Sheet2!$A$2:$O$3886,3,FALSE) ->  | R144: =VLOOKUP($C144,Sheet2!$A$2:$O$3886,4,FALSE) ->  | S144: =VLOOKUP($C144,Sheet2!$A$2:$O$3886,5,FALSE) -> Thornton | T144: =VLOOKUP($C144,Sheet2!$A$2:$O$3886,6,FALSE) -> Illinois | U144: =VLOOKUP($C144,Sheet2!$A$2:$O$3886,7,FALSE) -> 60476-1292 | V144: =VLOOKUP($C144,Sheet2!$A$2:$O$3886,11,FALSE) -> Nikki Kitakis
A145: =IF(C145=Entry!$B$7,INT(A144)+1,A144+0.00001) -> 0.00144 | B145: RG01 | C145: 200 | D145: 10.92 | E145: 10.64 | F145: 5.57 | G145: 4.07 | H145: 9.64 | I145: 0.04 | J145: 0.34 | K145: 0.62 | L145: 0 | N145: 18 | O145: =VLOOKUP($C145,Sheet2!$A$2:$O$3886,10,FALSE) -> Mercer Township | P145: =VLOOKUP($C145,Sheet2!$A$2:$O$3886,2,FALSE) -> 1876 115Th Ave | Q145: =VLOOKUP($C145,Sheet2!$A$2:$O$3886,3,FALSE) ->  | R145: =VLOOKUP($C145,Sheet2!$A$2:$O$3886,4,FALSE) ->  | S145: =VLOOKUP($C145,Sheet2!$A$2:$O$3886,5,FALSE) -> Aledo | T145: =VLOOKUP($C145,Sheet2!$A$2:$O$3886,6,FALSE) -> Illinois | U145: =VLOOKUP($C145,Sheet2!$A$2:$O$3886,7,FALSE) -> 61231-8750 | V145: =VLOOKUP($C145,Sheet2!$A$2:$O$3886,11,FALSE) -> WILLIAM TAYLOR
A146: =IF(C146=Entry!$B$7,INT(A145)+1,A145+0.00001) -> 0.00145 | B146: RG01 | C146: 204 | D146: 0.92 | E146: 0.8 | F146: 4.98 | G146: -7.47 | H146: 0 | I146: 0.04 | J146: 0.14 | K146: 0.62 | L146: 0 | N146: 18 | O146: =VLOOKUP($C146,Sheet2!$A$2:$O$3886,10,FALSE) -> Village Of Orion | P146: =VLOOKUP($C146,Sheet2!$A$2:$O$3886,2,FALSE) -> Po Box 69 | Q146: =VLOOKUP($C146,Sheet2!$A$2:$O$3886,3,FALSE) -> 1202 4Th Street | R146: =VLOOKUP($C146,Sheet2!$A$2:$O$3886,4,FALSE) ->  | S146: =VLOOKUP($C146,Sheet2!$A$2:$O$3886,5,FALSE) -> Orion | T146: =VLOOKUP($C146,Sheet2!$A$2:$O$3886,6,FALSE) -> Illinois | U146: =VLOOKUP($C146,Sheet2!$A$2:$O$3886,7,FALSE) -> 61273-0069 | V146: =VLOOKUP($C146,Sheet2!$A$2:$O$3886,11,FALSE) -> Jennifer Hallas
A147: =IF(C147=Entry!$B$7,INT(A146)+1,A146+0.00001) -> 0.00146 | B147: RG01 | C147: 205 | D147: 5.1 | E147: 5.21 | F147: 5.39 | G147: -0.96 | H147: 4.43 | I147: 0.04 | J147: 0.12 | K147: 0.62 | L147: 0 | N147: 18 | O147: =VLOOKUP($C147,Sheet2!$A$2:$O$3886,10,FALSE) -> Carbondale Township | P147: =VLOOKUP($C147,Sheet2!$A$2:$O$3886,2,FALSE) -> 217 E Main St | Q147: =VLOOKUP($C147,Sheet2!$A$2:$O$3886,3,FALSE) ->  | R147: =VLOOKUP($C147,Sheet2!$A$2:$O$3886,4,FALSE) ->  | S147: =VLOOKUP($C147,Sheet2!$A$2:$O$3886,5,FALSE) -> Carbondale | T147: =VLOOKUP($C147,Sheet2!$A$2:$O$3886,6,FALSE) -> Illinois | U147: =VLOOKUP($C147,Sheet2!$A$2:$O$3886,7,FALSE) -> 62901-3008 | V147: =VLOOKUP($C147,Sheet2!$A$2:$O$3886,11,FALSE) -> Dennis Poshard
A148: =IF(C148=Entry!$B$7,INT(A147)+1,A147+0.00001) -> 0.00147 | B148: RG01 | C148: 208 | D148: 9.92 | E148: 11.47 | F148: 5.25 | G148: 5.45 | H148: 10.7 | I148: 0.04 | J148: 0.11 | K148: 0.62 | L148: 0 | N148: 18 | O148: =VLOOKUP($C148,Sheet2!$A$2:$O$3886,10,FALSE) -> Village Of Northfield | P148: =VLOOKUP($C148,Sheet2!$A$2:$O$3886,2,FALSE) -> 361 Happ Rd | Q148: =VLOOKUP($C148,Sheet2!$A$2:$O$3886,3,FALSE) ->  | R148: =VLOOKUP($C148,Sheet2!$A$2:$O$3886,4,FALSE) ->  | S148: =VLOOKUP($C148,Sheet2!$A$2:$O$3886,5,FALSE) -> Northfield | T148: =VLOOKUP($C148,Sheet2!$A$2:$O$3886,6,FALSE) -> Illinois | U148: =VLOOKUP($C148,Sheet2!$A$2:$O$3886,7,FALSE) -> 60093-3482 | V148: =VLOOKUP($C148,Sheet2!$A$2:$O$3886,11,FALSE) -> Melissa Jewett
A149: =IF(C149=Entry!$B$7,INT(A148)+1,A148+0.00001) -> 0.00148 | B149: RG01 | C149: 209 | D149: 2.69 | E149: 4.21 | F149: 4.63 | G149: -1.2 | H149: 3.43 | I149: 0.04 | J149: 0.12 | K149: 0.62 | L149: 0 | N149: 18 | O149: =VLOOKUP($C149,Sheet2!$A$2:$O$3886,10,FALSE) -> City Of Rock Falls | P149: =VLOOKUP($C149,Sheet2!$A$2:$O$3886,2,FALSE) -> 603 W 10Th St Ste 100 | Q149: =VLOOKUP($C149,Sheet2!$A$2:$O$3886,3,FALSE) ->  | R149: =VLOOKUP($C149,Sheet2!$A$2:$O$3886,4,FALSE) ->  | S149: =VLOOKUP($C149,Sheet2!$A$2:$O$3886,5,FALSE) -> Rock Falls | T149: =VLOOKUP($C149,Sheet2!$A$2:$O$3886,6,FALSE) -> Illinois | U149: =VLOOKUP($C149,Sheet2!$A$2:$O$3886,7,FALSE) -> 61071-2854 | V149: =VLOOKUP($C149,Sheet2!$A$2:$O$3886,11,FALSE) -> Michelle Conklin
A150: =IF(C150=Entry!$B$7,INT(A149)+1,A149+0.00001) -> 0.00149 | B150: RG01 | C150: 210 | D150: 3.83 | E150: 5.16 | F150: 5.57 | G150: -1.17 | H150: 4.4 | I150: 0.04 | J150: 0.1 | K150: 0.62 | L150: 0 | N150: 18 | O150: =VLOOKUP($C150,Sheet2!$A$2:$O$3886,10,FALSE) -> Village Of Sheffield | P150: =VLOOKUP($C150,Sheet2!$A$2:$O$3886,2,FALSE) -> Po Box 218 | Q150: =VLOOKUP($C150,Sheet2!$A$2:$O$3886,3,FALSE) ->  | R150: =VLOOKUP($C150,Sheet2!$A$2:$O$3886,4,FALSE) ->  | S150: =VLOOKUP($C150,Sheet2!$A$2:$O$3886,5,FALSE) -> Sheffield | T150: =VLOOKUP($C150,Sheet2!$A$2:$O$3886,6,FALSE) -> Illinois | U150: =VLOOKUP($C150,Sheet2!$A$2:$O$3886,7,FALSE) -> 61361-0218 | V150: =VLOOKUP($C150,Sheet2!$A$2:$O$3886,11,FALSE) -> Adrienne Ries
A151: =IF(C151=Entry!$B$7,INT(A150)+1,A150+0.00001) -> 0.0015 | B151: RG01 | C151: 215 | D151: 7.99 | E151: 8.52 | F151: 4.38 | G151: 3.42 | H151: 7.8 | I151: 0.04 | J151: 0.06 | K151: 0.62 | L151: 0 | N151: 18 | O151: =VLOOKUP($C151,Sheet2!$A$2:$O$3886,10,FALSE) -> City Of Carlinville | P151: =VLOOKUP($C151,Sheet2!$A$2:$O$3886,2,FALSE) -> 550 N Broad St | Q151: =VLOOKUP($C151,Sheet2!$A$2:$O$3886,3,FALSE) ->  | R151: =VLOOKUP($C151,Sheet2!$A$2:$O$3886,4,FALSE) ->  | S151: =VLOOKUP($C151,Sheet2!$A$2:$O$3886,5,FALSE) -> Carlinville | T151: =VLOOKUP($C151,Sheet2!$A$2:$O$3886,6,FALSE) -> Illinois | U151: =VLOOKUP($C151,Sheet2!$A$2:$O$3886,7,FALSE) -> 62626-1019 | V151: =VLOOKUP($C151,Sheet2!$A$2:$O$3886,11,FALSE) -> Carla Brockmeier
A152: =IF(C152=Entry!$B$7,INT(A151)+1,A151+0.00001) -> 0.00151 | B152: RG01 | C152: 216 | D152: 9.19 | E152: 9.44 | F152: 4.85 | G152: 3.83 | H152: 8.68 | I152: 0.04 | J152: 0.1 | K152: 0.62 | L152: 0 | N152: 18 | O152: =VLOOKUP($C152,Sheet2!$A$2:$O$3886,10,FALSE) -> City Of Charleston | P152: =VLOOKUP($C152,Sheet2!$A$2:$O$3886,2,FALSE) -> 520 Jackson Ave | Q152: =VLOOKUP($C152,Sheet2!$A$2:$O$3886,3,FALSE) ->  | R152: =VLOOKUP($C152,Sheet2!$A$2:$O$3886,4,FALSE) ->  | S152: =VLOOKUP($C152,Sheet2!$A$2:$O$3886,5,FALSE) -> Charleston | T152: =VLOOKUP($C152,Sheet2!$A$2:$O$3886,6,FALSE) -> Illinois | U152: =VLOOKUP($C152,Sheet2!$A$2:$O$3886,7,FALSE) -> 61920-2030 | V152: =VLOOKUP($C152,Sheet2!$A$2:$O$3886,11,FALSE) -> Carrie Gerdes
A153: =IF(C153=Entry!$B$7,INT(A152)+1,A152+0.00001) -> 0.00152 | B153: SL01 | C153: 216 | D153: 12.48 | E153: 11.76 | F153: 10.97 | G153: 0 | H153: 10.97 | I153: 0.04 | J153: 0.13 | K153: 0.62 | L153: 0 | M153: 0 | N153: 18 | O153: =VLOOKUP($C153,Sheet2!$A$2:$O$3886,10,FALSE) -> City Of Charleston | P153: =VLOOKUP($C153,Sheet2!$A$2:$O$3886,2,FALSE) -> 520 Jackson Ave | Q153: =VLOOKUP($C153,Sheet2!$A$2:$O$3886,3,FALSE) ->  | R153: =VLOOKUP($C153,Sheet2!$A$2:$O$3886,4,FALSE) ->  | S153: =VLOOKUP($C153,Sheet2!$A$2:$O$3886,5,FALSE) -> Charleston | T153: =VLOOKUP($C153,Sheet2!$A$2:$O$3886,6,FALSE) -> Illinois | U153: =VLOOKUP($C153,Sheet2!$A$2:$O$3886,7,FALSE) -> 61920-2030 | V153: =VLOOKUP($C153,Sheet2!$A$2:$O$3886,11,FALSE) -> Carrie Gerdes
A154: =IF(C154=Entry!$B$7,INT(A153)+1,A153+0.00001) -> 0.00153 | B154: RG01 | C154: 217 | D154: 6.49 | E154: 6.97 | F154: 3.37 | G154: 2.81 | H154: 6.18 | I154: 0.04 | J154: 0.13 | K154: 0.62 | L154: 0 | N154: 18 | O154: =VLOOKUP($C154,Sheet2!$A$2:$O$3886,10,FALSE) -> Cropsey Township | P154: =VLOOKUP($C154,Sheet2!$A$2:$O$3886,2,FALSE) -> 21196 N 4100 East Rd | Q154: =VLOOKUP($C154,Sheet2!$A$2:$O$3886,3,FALSE) ->  | R154: =VLOOKUP($C154,Sheet2!$A$2:$O$3886,4,FALSE) ->  | S154: =VLOOKUP($C154,Sheet2!$A$2:$O$3886,5,FALSE) -> Cropsey | T154: =VLOOKUP($C154,Sheet2!$A$2:$O$3886,6,FALSE) -> Illinois | U154: =VLOOKUP($C154,Sheet2!$A$2:$O$3886,7,FALSE) -> 61731-9016 | V154: =VLOOKUP($C154,Sheet2!$A$2:$O$3886,11,FALSE) -> DEANNA HANKES
A155: =IF(C155=Entry!$B$7,INT(A154)+1,A154+0.00001) -> 0.00154 | B155: RG01 | C155: 220 | D155: 6.13 | E155: 7.1 | F155: 4.98 | G155: 1.14 | H155: 6.12 | I155: 0.04 | J155: 0.32 | K155: 0.62 | L155: 0 | N155: 18 | O155: =VLOOKUP($C155,Sheet2!$A$2:$O$3886,10,FALSE) -> City Of Atlanta | P155: =VLOOKUP($C155,Sheet2!$A$2:$O$3886,2,FALSE) -> Po Box 385 | Q155: =VLOOKUP($C155,Sheet2!$A$2:$O$3886,3,FALSE) -> 102 Nw Vine | R155: =VLOOKUP($C155,Sheet2!$A$2:$O$3886,4,FALSE) ->  | S155: =VLOOKUP($C155,Sheet2!$A$2:$O$3886,5,FALSE) -> Atlanta | T155: =VLOOKUP($C155,Sheet2!$A$2:$O$3886,6,FALSE) -> Illinois | U155: =VLOOKUP($C155,Sheet2!$A$2:$O$3886,7,FALSE) -> 61723-0385 | V155: =VLOOKUP($C155,Sheet2!$A$2:$O$3886,11,FALSE) -> VICKI MARTIN
A156: =IF(C156=Entry!$B$7,INT(A155)+1,A155+0.00001) -> 0.00155 | B156: RG01 | C156: 223 | D156: 6.59 | E156: 6.45 | F156: 4.67 | G156: 1 | H156: 5.67 | I156: 0.04 | J156: 0.12 | K156: 0.62 | L156: 0 | N156: 18 | O156: =VLOOKUP($C156,Sheet2!$A$2:$O$3886,10,FALSE) -> City Of Edwardsville | P156: =VLOOKUP($C156,Sheet2!$A$2:$O$3886,2,FALSE) -> 118 Hillsboro Ave | Q156: =VLOOKUP($C156,Sheet2!$A$2:$O$3886,3,FALSE) ->  | R156: =VLOOKUP($C156,Sheet2!$A$2:$O$3886,4,FALSE) ->  | S156: =VLOOKUP($C156,Sheet2!$A$2:$O$3886,5,FALSE) -> Edwardsville | T156: =VLOOKUP($C156,Sheet2!$A$2:$O$3886,6,FALSE) -> Illinois | U156: =VLOOKUP($C156,Sheet2!$A$2:$O$3886,7,FALSE) -> 62025-1622 | V156: =VLOOKUP($C156,Sheet2!$A$2:$O$3886,11,FALSE) -> ROBIN DOYLE
A157: =IF(C157=Entry!$B$7,INT(A156)+1,A156+0.00001) -> 0.00156 | B157: SL01 | C157: 223 | D157: 12.48 | E157: 11.76 | F157: 10.97 | G157: 0 | H157: 10.97 | I157: 0.04 | J157: 0.13 | K157: 0.62 | L157: 0 | M157: 0 | N157: 18 | O157: =VLOOKUP($C157,Sheet2!$A$2:$O$3886,10,FALSE) -> City Of Edwardsville | P157: =VLOOKUP($C157,Sheet2!$A$2:$O$3886,2,FALSE) -> 118 Hillsboro Ave | Q157: =VLOOKUP($C157,Sheet2!$A$2:$O$3886,3,FALSE) ->  | R157: =VLOOKUP($C157,Sheet2!$A$2:$O$3886,4,FALSE) ->  | S157: =VLOOKUP($C157,Sheet2!$A$2:$O$3886,5,FALSE) -> Edwardsville | T157: =VLOOKUP($C157,Sheet2!$A$2:$O$3886,6,FALSE) -> Illinois | U157: =VLOOKUP($C157,Sheet2!$A$2:$O$3886,7,FALSE) -> 62025-1622 | V157: =VLOOKUP($C157,Sheet2!$A$2:$O$3886,11,FALSE) -> ROBIN DOYLE
A158: =IF(C158=Entry!$B$7,INT(A157)+1,A157+0.00001) -> 0.00157 | B158: RG01 | C158: 224 | D158: 9.96 | E158: 10.62 | F158: 4.97 | G158: 4.87 | H158: 9.84 | I158: 0.04 | J158: 0.12 | K158: 0.62 | L158: 0 | N158: 18 | O158: =VLOOKUP($C158,Sheet2!$A$2:$O$3886,10,FALSE) -> Village Of Riverton | P158: =VLOOKUP($C158,Sheet2!$A$2:$O$3886,2,FALSE) -> 1200 Riverton Rd | Q158: =VLOOKUP($C158,Sheet2!$A$2:$O$3886,3,FALSE) ->  | R158: =VLOOKUP($C158,Sheet2!$A$2:$O$3886,4,FALSE) ->  | S158: =VLOOKUP($C158,Sheet2!$A$2:$O$3886,5,FALSE) -> Riverton | T158: =VLOOKUP($C158,Sheet2!$A$2:$O$3886,6,FALSE) -> Illinois | U158: =VLOOKUP($C158,Sheet2!$A$2:$O$3886,7,FALSE) -> 62561-8200 | V158: =VLOOKUP($C158,Sheet2!$A$2:$O$3886,11,FALSE) -> Stacy Patterson
A159: =IF(C159=Entry!$B$7,INT(A158)+1,A158+0.00001) -> 0.00158 | B159: RG01 | C159: 225 | D159: 6.35 | E159: 5.16 | F159: 4.66 | G159: -0.85 | H159: 3.81 | I159: 0.04 | J159: 0.69 | K159: 0.62 | L159: 0 | N159: 18 | O159: =VLOOKUP($C159,Sheet2!$A$2:$O$3886,10,FALSE) -> Centralia Township | P159: =VLOOKUP($C159,Sheet2!$A$2:$O$3886,2,FALSE) -> 148 S Poplar St | Q159: =VLOOKUP($C159,Sheet2!$A$2:$O$3886,3,FALSE) ->  | R159: =VLOOKUP($C159,Sheet2!$A$2:$O$3886,4,FALSE) ->  | S159: =VLOOKUP($C159,Sheet2!$A$2:$O$3886,5,FALSE) -> Centralia | T159: =VLOOKUP($C159,Sheet2!$A$2:$O$3886,6,FALSE) -> Illinois | U159: =VLOOKUP($C159,Sheet2!$A$2:$O$3886,7,FALSE) -> 62801-3522 | V159: =VLOOKUP($C159,Sheet2!$A$2:$O$3886,11,FALSE) -> Debra Young
A160: =IF(C160=Entry!$B$7,INT(A159)+1,A159+0.00001) -> 0.00159 | B160: RG01 | C160: 229 | D160: 0.96 | E160: 1 | F160: 3.37 | G160: -3.13 | H160: 0.24 | I160: 0.04 | J160: 0.1 | K160: 0.62 | L160: 0 | N160: 18 | O160: =VLOOKUP($C160,Sheet2!$A$2:$O$3886,10,FALSE) -> Lovington Township | P160: =VLOOKUP($C160,Sheet2!$A$2:$O$3886,2,FALSE) -> Po Box 557 | Q160: =VLOOKUP($C160,Sheet2!$A$2:$O$3886,3,FALSE) ->  | R160: =VLOOKUP($C160,Sheet2!$A$2:$O$3886,4,FALSE) ->  | S160: =VLOOKUP($C160,Sheet2!$A$2:$O$3886,5,FALSE) -> Lovington | T160: =VLOOKUP($C160,Sheet2!$A$2:$O$3886,6,FALSE) -> Illinois | U160: =VLOOKUP($C160,Sheet2!$A$2:$O$3886,7,FALSE) -> 61937-0557 | V160: =VLOOKUP($C160,Sheet2!$A$2:$O$3886,11,FALSE) -> Linda Casteel
A161: =IF(C161=Entry!$B$7,INT(A160)+1,A160+0.00001) -> 0.0016 | B161: RG01 | C161: 232 | D161: 6.58 | E161: 6.86 | F161: 4.96 | G161: 1.11 | H161: 6.07 | I161: 0.04 | J161: 0.13 | K161: 0.62 | L161: 0 | N161: 18 | O161: =VLOOKUP($C161,Sheet2!$A$2:$O$3886,10,FALSE) -> Springfield Airport Authority | P161: =VLOOKUP($C161,Sheet2!$A$2:$O$3886,2,FALSE) -> 1200 Capital Airport Dr | Q161: =VLOOKUP($C161,Sheet2!$A$2:$O$3886,3,FALSE) ->  | R161: =VLOOKUP($C161,Sheet2!$A$2:$O$3886,4,FALSE) ->  | S161: =VLOOKUP($C161,Sheet2!$A$2:$O$3886,5,FALSE) -> Springfield | T161: =VLOOKUP($C161,Sheet2!$A$2:$O$3886,6,FALSE) -> Illinois | U161: =VLOOKUP($C161,Sheet2!$A$2:$O$3886,7,FALSE) -> 62707-8489 | V161: =VLOOKUP($C161,Sheet2!$A$2:$O$3886,11,FALSE) -> Kenneth Boyle
A162: =IF(C162=Entry!$B$7,INT(A161)+1,A161+0.00001) -> 0.00161 | B162: RG01 | C162: 233 | D162: 6.79 | E162: 10.09 | F162: 4.99 | G162: 4.34 | H162: 9.33 | I162: 0.04 | J162: 0.1 | K162: 0.62 | L162: 0 | N162: 18 | O162: =VLOOKUP($C162,Sheet2!$A$2:$O$3886,10,FALSE) -> Village Of Minier | P162: =VLOOKUP($C162,Sheet2!$A$2:$O$3886,2,FALSE) -> 110 W Central Ave | Q162: =VLOOKUP($C162,Sheet2!$A$2:$O$3886,3,FALSE) -> Po Box 350 | R162: =VLOOKUP($C162,Sheet2!$A$2:$O$3886,4,FALSE) ->  | S162: =VLOOKUP($C162,Sheet2!$A$2:$O$3886,5,FALSE) -> Minier | T162: =VLOOKUP($C162,Sheet2!$A$2:$O$3886,6,FALSE) -> Illinois | U162: =VLOOKUP($C162,Sheet2!$A$2:$O$3886,7,FALSE) -> 61759 | V162: =VLOOKUP($C162,Sheet2!$A$2:$O$3886,11,FALSE) -> Sasha Horner
A163: =IF(C163=Entry!$B$7,INT(A162)+1,A162+0.00001) -> 0.00162 | B163: RG01 | C163: 234 | D163: 0.86 | E163: 0.82 | F163: 5.52 | G163: -7 | H163: 0 | I163: 0.04 | J163: 0.16 | K163: 0.62 | L163: 0 | N163: 18 | O163: =VLOOKUP($C163,Sheet2!$A$2:$O$3886,10,FALSE) -> Collinsville Township | P163: =VLOOKUP($C163,Sheet2!$A$2:$O$3886,2,FALSE) -> 305 E Main St | Q163: =VLOOKUP($C163,Sheet2!$A$2:$O$3886,3,FALSE) ->  | R163: =VLOOKUP($C163,Sheet2!$A$2:$O$3886,4,FALSE) ->  | S163: =VLOOKUP($C163,Sheet2!$A$2:$O$3886,5,FALSE) -> Collinsville | T163: =VLOOKUP($C163,Sheet2!$A$2:$O$3886,6,FALSE) -> Illinois | U163: =VLOOKUP($C163,Sheet2!$A$2:$O$3886,7,FALSE) -> 62234-3008 | V163: =VLOOKUP($C163,Sheet2!$A$2:$O$3886,11,FALSE) -> Gabrielle Koonce
A164: =IF(C164=Entry!$B$7,INT(A163)+1,A163+0.00001) -> 0.00163 | B164: RG01 | C164: 237 | D164: 5.96 | E164: 6.45 | F164: 3.37 | G164: 2.14 | H164: 5.51 | I164: 0.04 | J164: 0.28 | K164: 0.62 | L164: 0 | N164: 18 | O164: =VLOOKUP($C164,Sheet2!$A$2:$O$3886,10,FALSE) -> Willow Branch Township | P164: =VLOOKUP($C164,Sheet2!$A$2:$O$3886,2,FALSE) -> 130 E 1500 North Rd | Q164: =VLOOKUP($C164,Sheet2!$A$2:$O$3886,3,FALSE) -> Po Box 153 | R164: =VLOOKUP($C164,Sheet2!$A$2:$O$3886,4,FALSE) ->  | S164: =VLOOKUP($C164,Sheet2!$A$2:$O$3886,5,FALSE) -> Cisco | T164: =VLOOKUP($C164,Sheet2!$A$2:$O$3886,6,FALSE) -> Illinois | U164: =VLOOKUP($C164,Sheet2!$A$2:$O$3886,7,FALSE) -> 61830-6521 | V164: =VLOOKUP($C164,Sheet2!$A$2:$O$3886,11,FALSE) -> ALICE BARNHART
A165: =IF(C165=Entry!$B$7,INT(A164)+1,A164+0.00001) -> 0.00164 | B165: RG01 | C165: 240 | D165: 4.26 | E165: 5.07 | F165: 4.62 | G165: -0.34 | H165: 4.28 | I165: 0.04 | J165: 0.13 | K165: 0.62 | L165: 0 | N165: 18 | O165: =VLOOKUP($C165,Sheet2!$A$2:$O$3886,10,FALSE) -> Warren Township | P165: =VLOOKUP($C165,Sheet2!$A$2:$O$3886,2,FALSE) -> 17801 W Washington St | Q165: =VLOOKUP($C165,Sheet2!$A$2:$O$3886,3,FALSE) ->  | R165: =VLOOKUP($C165,Sheet2!$A$2:$O$3886,4,FALSE) ->  | S165: =VLOOKUP($C165,Sheet2!$A$2:$O$3886,5,FALSE) -> Gurnee | T165: =VLOOKUP($C165,Sheet2!$A$2:$O$3886,6,FALSE) -> Illinois | U165: =VLOOKUP($C165,Sheet2!$A$2:$O$3886,7,FALSE) -> 60031-2598 | V165: =VLOOKUP($C165,Sheet2!$A$2:$O$3886,11,FALSE) -> Nicholas Kron
A166: =IF(C166=Entry!$B$7,INT(A165)+1,A165+0.00001) -> 0.00165 | B166: RG01 | C166: 242 | D166: 8.99 | E166: 7.77 | F166: 4.42 | G166: 2.58 | H166: 7 | I166: 0.04 | J166: 0.11 | K166: 0.62 | L166: 0 | N166: 18 | O166: =VLOOKUP($C166,Sheet2!$A$2:$O$3886,10,FALSE) -> Village Of Rossville | P166: =VLOOKUP($C166,Sheet2!$A$2:$O$3886,2,FALSE) -> 120 E Attica St | Q166: =VLOOKUP($C166,Sheet2!$A$2:$O$3886,3,FALSE) ->  | R166: =VLOOKUP($C166,Sheet2!$A$2:$O$3886,4,FALSE) ->  | S166: =VLOOKUP($C166,Sheet2!$A$2:$O$3886,5,FALSE) -> Rossville | T166: =VLOOKUP($C166,Sheet2!$A$2:$O$3886,6,FALSE) -> Illinois | U166: =VLOOKUP($C166,Sheet2!$A$2:$O$3886,7,FALSE) -> 60963-1106 | V166: =VLOOKUP($C166,Sheet2!$A$2:$O$3886,11,FALSE) -> Christine White
A167: =IF(C167=Entry!$B$7,INT(A166)+1,A166+0.00001) -> 0.00166 | B167: RG01 | C167: 243 | D167: 2.36 | E167: 4.1 | F167: 4.35 | G167: -1.05 | H167: 3.3 | I167: 0.04 | J167: 0.14 | K167: 0.62 | L167: 0 | N167: 18 | O167: =VLOOKUP($C167,Sheet2!$A$2:$O$3886,10,FALSE) -> City Of Rushville | P167: =VLOOKUP($C167,Sheet2!$A$2:$O$3886,2,FALSE) -> 111 E Washington St | Q167: =VLOOKUP($C167,Sheet2!$A$2:$O$3886,3,FALSE) ->  | R167: =VLOOKUP($C167,Sheet2!$A$2:$O$3886,4,FALSE) ->  | S167: =VLOOKUP($C167,Sheet2!$A$2:$O$3886,5,FALSE) -> Rushville | T167: =VLOOKUP($C167,Sheet2!$A$2:$O$3886,6,FALSE) -> Illinois | U167: =VLOOKUP($C167,Sheet2!$A$2:$O$3886,7,FALSE) -> 62681-1428 | V167: =VLOOKUP($C167,Sheet2!$A$2:$O$3886,11,FALSE) -> Stacey Briney
A168: =IF(C168=Entry!$B$7,INT(A167)+1,A167+0.00001) -> 0.00167 | B168: SL01 | C168: 243 | D168: 12.36 | E168: 11.21 | F168: 6.61 | G168: 3.64 | H168: 10.25 | I168: 0.04 | J168: 0.3 | K168: 0.62 | L168: 0 | M168: 0 | N168: 24 | O168: =VLOOKUP($C168,Sheet2!$A$2:$O$3886,10,FALSE) -> City Of Rushville | P168: =VLOOKUP($C168,Sheet2!$A$2:$O$3886,2,FALSE) -> 111 E Washington St | Q168: =VLOOKUP($C168,Sheet2!$A$2:$O$3886,3,FALSE) ->  | R168: =VLOOKUP($C168,Sheet2!$A$2:$O$3886,4,FALSE) ->  | S168: =VLOOKUP($C168,Sheet2!$A$2:$O$3886,5,FALSE) -> Rushville | T168: =VLOOKUP($C168,Sheet2!$A$2:$O$3886,6,FALSE) -> Illinois | U168: =VLOOKUP($C168,Sheet2!$A$2:$O$3886,7,FALSE) -> 62681-1428 | V168: =VLOOKUP($C168,Sheet2!$A$2:$O$3886,11,FALSE) -> Stacey Briney
A169: =IF(C169=Entry!$B$7,INT(A168)+1,A168+0.00001) -> 0.00168 | B169: RG01 | C169: 244 | D169: 3.27 | E169: 4.25 | F169: 4.41 | G169: -0.94 | H169: 3.47 | I169: 0.04 | J169: 0.12 | K169: 0.62 | L169: 0 | N169: 18 | O169: =VLOOKUP($C169,Sheet2!$A$2:$O$3886,10,FALSE) -> City Of Vandalia | P169: =VLOOKUP($C169,Sheet2!$A$2:$O$3886,2,FALSE) -> 431 W Gallatin St | Q169: =VLOOKUP($C169,Sheet2!$A$2:$O$3886,3,FALSE) ->  | R169: =VLOOKUP($C169,Sheet2!$A$2:$O$3886,4,FALSE) ->  | S169: =VLOOKUP($C169,Sheet2!$A$2:$O$3886,5,FALSE) -> Vandalia | T169: =VLOOKUP($C169,Sheet2!$A$2:$O$3886,6,FALSE) -> Illinois | U169: =VLOOKUP($C169,Sheet2!$A$2:$O$3886,7,FALSE) -> 62471-2746 | V169: =VLOOKUP($C169,Sheet2!$A$2:$O$3886,11,FALSE) -> Carla Huhn
A170: =IF(C170=Entry!$B$7,INT(A169)+1,A169+0.00001) -> 0.00169 | B170: RG01 | C170: 247 | D170: 3.15 | E170: 1.98 | F170: 4.52 | G170: -3.31 | H170: 1.21 | I170: 0.04 | J170: 0.11 | K170: 0.62 | L170: 0 | N170: 18 | O170: =VLOOKUP($C170,Sheet2!$A$2:$O$3886,10,FALSE) -> City Of Roodhouse | P170: =VLOOKUP($C170,Sheet2!$A$2:$O$3886,2,FALSE) -> 137 W Palm St | Q170: =VLOOKUP($C170,Sheet2!$A$2:$O$3886,3,FALSE) ->  | R170: =VLOOKUP($C170,Sheet2!$A$2:$O$3886,4,FALSE) ->  | S170: =VLOOKUP($C170,Sheet2!$A$2:$O$3886,5,FALSE) -> Roodhouse | T170: =VLOOKUP($C170,Sheet2!$A$2:$O$3886,6,FALSE) -> Illinois | U170: =VLOOKUP($C170,Sheet2!$A$2:$O$3886,7,FALSE) -> 62082-1033 | V170: =VLOOKUP($C170,Sheet2!$A$2:$O$3886,11,FALSE) -> AMY HACKER
A171: =IF(C171=Entry!$B$7,INT(A170)+1,A170+0.00001) -> 0.0017 | B171: RG01 | C171: 250 | D171: 1.21 | E171: 0.92 | F171: 3.37 | G171: -6.59 | H171: 0 | I171: 0.04 | J171: 0.26 | K171: 0.62 | L171: 0 | N171: 18 | O171: =VLOOKUP($C171,Sheet2!$A$2:$O$3886,10,FALSE) -> Lawrence Township | P171: =VLOOKUP($C171,Sheet2!$A$2:$O$3886,2,FALSE) -> 1205 Adams St | Q171: =VLOOKUP($C171,Sheet2!$A$2:$O$3886,3,FALSE) ->  | R171: =VLOOKUP($C171,Sheet2!$A$2:$O$3886,4,FALSE) ->  | S171: =VLOOKUP($C171,Sheet2!$A$2:$O$3886,5,FALSE) -> Lawrenceville | T171: =VLOOKUP($C171,Sheet2!$A$2:$O$3886,6,FALSE) -> Illinois | U171: =VLOOKUP($C171,Sheet2!$A$2:$O$3886,7,FALSE) -> 62439-2610 | V171: =VLOOKUP($C171,Sheet2!$A$2:$O$3886,11,FALSE) -> Jenny Chapman
A172: =IF(C172=Entry!$B$7,INT(A171)+1,A171+0.00001) -> 0.00171 | B172: RG01 | C172: 253 | D172: 7.68 | E172: 7.14 | F172: 5.37 | G172: 0.86 | H172: 6.23 | I172: 0.04 | J172: 0.25 | K172: 0.62 | L172: 0 | N172: 18 | O172: =VLOOKUP($C172,Sheet2!$A$2:$O$3886,10,FALSE) -> Millstadt Township | P172: =VLOOKUP($C172,Sheet2!$A$2:$O$3886,2,FALSE) -> 820 S Jefferson St | Q172: =VLOOKUP($C172,Sheet2!$A$2:$O$3886,3,FALSE) ->  | R172: =VLOOKUP($C172,Sheet2!$A$2:$O$3886,4,FALSE) ->  | S172: =VLOOKUP($C172,Sheet2!$A$2:$O$3886,5,FALSE) -> Millstadt | T172: =VLOOKUP($C172,Sheet2!$A$2:$O$3886,6,FALSE) -> Illinois | U172: =VLOOKUP($C172,Sheet2!$A$2:$O$3886,7,FALSE) -> 62260-2036 | V172: =VLOOKUP($C172,Sheet2!$A$2:$O$3886,11,FALSE) -> Kevin Juhas
A173: =IF(C173=Entry!$B$7,INT(A172)+1,A172+0.00001) -> 0.00172 | B173: RG01 | C173: 257 | D173: 3.93 | E173: 4.53 | F173: 4.49 | G173: -0.72 | H173: 3.77 | I173: 0.04 | J173: 0.1 | K173: 0.62 | L173: 0 | N173: 18 | O173: =VLOOKUP($C173,Sheet2!$A$2:$O$3886,10,FALSE) -> City Of Greenville | P173: =VLOOKUP($C173,Sheet2!$A$2:$O$3886,2,FALSE) -> 404 S 3Rd St | Q173: =VLOOKUP($C173,Sheet2!$A$2:$O$3886,3,FALSE) ->  | R173: =VLOOKUP($C173,Sheet2!$A$2:$O$3886,4,FALSE) ->  | S173: =VLOOKUP($C173,Sheet2!$A$2:$O$3886,5,FALSE) -> Greenville | T173: =VLOOKUP($C173,Sheet2!$A$2:$O$3886,6,FALSE) -> Illinois | U173: =VLOOKUP($C173,Sheet2!$A$2:$O$3886,7,FALSE) -> 62246-1795 | V173: =VLOOKUP($C173,Sheet2!$A$2:$O$3886,11,FALSE) -> Michelle Liggett
A174: =IF(C174=Entry!$B$7,INT(A173)+1,A173+0.00001) -> 0.00173 | B174: SL01 | C174: 257 | D174: 12.48 | E174: 11.76 | F174: 10.97 | G174: 0 | H174: 10.97 | I174: 0.04 | J174: 0.13 | K174: 0.62 | L174: 0 | M174: 0 | N174: 23 | O174: =VLOOKUP($C174,Sheet2!$A$2:$O$3886,10,FALSE) -> City Of Greenville | P174: =VLOOKUP($C174,Sheet2!$A$2:$O$3886,2,FALSE) -> 404 S 3Rd St | Q174: =VLOOKUP($C174,Sheet2!$A$2:$O$3886,3,FALSE) ->  | R174: =VLOOKUP($C174,Sheet2!$A$2:$O$3886,4,FALSE) ->  | S174: =VLOOKUP($C174,Sheet2!$A$2:$O$3886,5,FALSE) -> Greenville | T174: =VLOOKUP($C174,Sheet2!$A$2:$O$3886,6,FALSE) -> Illinois | U174: =VLOOKUP($C174,Sheet2!$A$2:$O$3886,7,FALSE) -> 62246-1795 | V174: =VLOOKUP($C174,Sheet2!$A$2:$O$3886,11,FALSE) -> Michelle Liggett
A175: =IF(C175=Entry!$B$7,INT(A174)+1,A174+0.00001) -> 0.00174 | B175: RG01 | C175: 259 | D175: 6.55 | E175: 8.42 | F175: 5.43 | G175: 2.19 | H175: 7.62 | I175: 0.04 | J175: 0.14 | K175: 0.62 | L175: 0 | N175: 18 | O175: =VLOOKUP($C175,Sheet2!$A$2:$O$3886,10,FALSE) -> City Of Vienna | P175: =VLOOKUP($C175,Sheet2!$A$2:$O$3886,2,FALSE) -> Po Box 1442 | Q175: =VLOOKUP($C175,Sheet2!$A$2:$O$3886,3,FALSE) ->  | R175: =VLOOKUP($C175,Sheet2!$A$2:$O$3886,4,FALSE) ->  | S175: =VLOOKUP($C175,Sheet2!$A$2:$O$3886,5,FALSE) -> Vienna | T175: =VLOOKUP($C175,Sheet2!$A$2:$O$3886,6,FALSE) -> Illinois | U175: =VLOOKUP($C175,Sheet2!$A$2:$O$3886,7,FALSE) -> 62995-1442 | V175: =VLOOKUP($C175,Sheet2!$A$2:$O$3886,11,FALSE) -> Aleatha Wright
A176: =IF(C176=Entry!$B$7,INT(A175)+1,A175+0.00001) -> 0.00175 | B176: RG01 | C176: 260 | D176: 4.47 | E176: 3.71 | F176: 4.83 | G176: -1.95 | H176: 2.88 | I176: 0.04 | J176: 0.17 | K176: 0.62 | L176: 0 | N176: 18 | O176: =VLOOKUP($C176,Sheet2!$A$2:$O$3886,10,FALSE) -> Sycamore Township | P176: =VLOOKUP($C176,Sheet2!$A$2:$O$3886,2,FALSE) -> 545 Brickville Rd | Q176: =VLOOKUP($C176,Sheet2!$A$2:$O$3886,3,FALSE) ->  | R176: =VLOOKUP($C176,Sheet2!$A$2:$O$3886,4,FALSE) ->  | S176: =VLOOKUP($C176,Sheet2!$A$2:$O$3886,5,FALSE) -> Sycamore | T176: =VLOOKUP($C176,Sheet2!$A$2:$O$3886,6,FALSE) -> Illinois | U176: =VLOOKUP($C176,Sheet2!$A$2:$O$3886,7,FALSE) -> 60178-1201 | V176: =VLOOKUP($C176,Sheet2!$A$2:$O$3886,11,FALSE) -> Amy Mathey
A177: =IF(C177=Entry!$B$7,INT(A176)+1,A176+0.00001) -> 0.00176 | B177: RG01 | C177: 264 | D177: 6.7 | E177: 6.86 | F177: 4.47 | G177: 1.56 | H177: 6.03 | I177: 0.04 | J177: 0.17 | K177: 0.62 | L177: 0 | N177: 18 | O177: =VLOOKUP($C177,Sheet2!$A$2:$O$3886,10,FALSE) -> Village Of Moweaqua | P177: =VLOOKUP($C177,Sheet2!$A$2:$O$3886,2,FALSE) -> 122 N Main St Ste A | Q177: =VLOOKUP($C177,Sheet2!$A$2:$O$3886,3,FALSE) ->  | R177: =VLOOKUP($C177,Sheet2!$A$2:$O$3886,4,FALSE) ->  | S177: =VLOOKUP($C177,Sheet2!$A$2:$O$3886,5,FALSE) -> Moweaqua | T177: =VLOOKUP($C177,Sheet2!$A$2:$O$3886,6,FALSE) -> Illinois | U177: =VLOOKUP($C177,Sheet2!$A$2:$O$3886,7,FALSE) -> 62550-1183 | V177: =VLOOKUP($C177,Sheet2!$A$2:$O$3886,11,FALSE) -> Mischelle Davis
A178: =IF(C178=Entry!$B$7,INT(A177)+1,A177+0.00001) -> 0.00177 | B178: RG01 | C178: 265 | D178: 0.91 | E178: 0.82 | F178: 5.64 | G178: -10.39 | H178: 0 | I178: 0.04 | J178: 0.16 | K178: 0.62 | L178: 0 | N178: 18 | O178: =VLOOKUP($C178,Sheet2!$A$2:$O$3886,10,FALSE) -> Village Of Oblong | P178: =VLOOKUP($C178,Sheet2!$A$2:$O$3886,2,FALSE) -> 202 S Range St | Q178: =VLOOKUP($C178,Sheet2!$A$2:$O$3886,3,FALSE) ->  | R178: =VLOOKUP($C178,Sheet2!$A$2:$O$3886,4,FALSE) ->  | S178: =VLOOKUP($C178,Sheet2!$A$2:$O$3886,5,FALSE) -> Oblong | T178: =VLOOKUP($C178,Sheet2!$A$2:$O$3886,6,FALSE) -> Illinois | U178: =VLOOKUP($C178,Sheet2!$A$2:$O$3886,7,FALSE) -> 62449-1225 | V178: =VLOOKUP($C178,Sheet2!$A$2:$O$3886,11,FALSE) -> Jan Miller
A179: =IF(C179=Entry!$B$7,INT(A178)+1,A178+0.00001) -> 0.00178 | B179: RG01 | C179: 266 | D179: 1.14 | E179: 1.37 | F179: 4.14 | G179: -3.56 | H179: 0.58 | I179: 0.04 | J179: 0.13 | K179: 0.62 | L179: 0 | N179: 18 | O179: =VLOOKUP($C179,Sheet2!$A$2:$O$3886,10,FALSE) -> Village Of Odin | P179: =VLOOKUP($C179,Sheet2!$A$2:$O$3886,2,FALSE) -> Po Box 246 | Q179: =VLOOKUP($C179,Sheet2!$A$2:$O$3886,3,FALSE) -> 314 Kirkwood | R179: =VLOOKUP($C179,Sheet2!$A$2:$O$3886,4,FALSE) ->  | S179: =VLOOKUP($C179,Sheet2!$A$2:$O$3886,5,FALSE) -> Odin | T179: =VLOOKUP($C179,Sheet2!$A$2:$O$3886,6,FALSE) -> Illinois | U179: =VLOOKUP($C179,Sheet2!$A$2:$O$3886,7,FALSE) -> 62870-0246 | V179: =VLOOKUP($C179,Sheet2!$A$2:$O$3886,11,FALSE) -> Pamela Blue
A180: =IF(C180=Entry!$B$7,INT(A179)+1,A179+0.00001) -> 0.00179 | B180: RG01 | C180: 272 | D180: 13.5 | E180: 13.39 | F180: 3.37 | G180: 9.24 | H180: 12.61 | I180: 0.04 | J180: 0.12 | K180: 0.62 | L180: 0 | N180: 18 | O180: =VLOOKUP($C180,Sheet2!$A$2:$O$3886,10,FALSE) -> Pittsfield Township | P180: =VLOOKUP($C180,Sheet2!$A$2:$O$3886,2,FALSE) -> 1407 W Washington St | Q180: =VLOOKUP($C180,Sheet2!$A$2:$O$3886,3,FALSE) ->  | R180: =VLOOKUP($C180,Sheet2!$A$2:$O$3886,4,FALSE) ->  | S180: =VLOOKUP($C180,Sheet2!$A$2:$O$3886,5,FALSE) -> Pittsfield | T180: =VLOOKUP($C180,Sheet2!$A$2:$O$3886,6,FALSE) -> Illinois | U180: =VLOOKUP($C180,Sheet2!$A$2:$O$3886,7,FALSE) -> 62363-9584 | V180: =VLOOKUP($C180,Sheet2!$A$2:$O$3886,11,FALSE) -> NICOLE FISH
A181: =IF(C181=Entry!$B$7,INT(A180)+1,A180+0.00001) -> 0.0018 | B181: RG01 | C181: 274 | D181: 11.32 | E181: 11.87 | F181: 4.22 | G181: 6.82 | H181: 11.04 | I181: 0.04 | J181: 0.17 | K181: 0.62 | L181: 0 | N181: 18 | O181: =VLOOKUP($C181,Sheet2!$A$2:$O$3886,10,FALSE) -> City Of Auburn | P181: =VLOOKUP($C181,Sheet2!$A$2:$O$3886,2,FALSE) -> 324 W Jefferson St | Q181: =VLOOKUP($C181,Sheet2!$A$2:$O$3886,3,FALSE) ->  | R181: =VLOOKUP($C181,Sheet2!$A$2:$O$3886,4,FALSE) ->  | S181: =VLOOKUP($C181,Sheet2!$A$2:$O$3886,5,FALSE) -> Auburn | T181: =VLOOKUP($C181,Sheet2!$A$2:$O$3886,6,FALSE) -> Illinois | U181: =VLOOKUP($C181,Sheet2!$A$2:$O$3886,7,FALSE) -> 62615-1424 | V181: =VLOOKUP($C181,Sheet2!$A$2:$O$3886,11,FALSE) -> Thomas Henson
A182: =IF(C182=Entry!$B$7,INT(A181)+1,A181+0.00001) -> 0.00181 | B182: RG01 | C182: 276 | D182: 0.92 | E182: 0.79 | F182: 4.88 | G182: -7.25 | H182: 0 | I182: 0.04 | J182: 0.13 | K182: 0.62 | L182: 0 | N182: 18 | O182: =VLOOKUP($C182,Sheet2!$A$2:$O$3886,10,FALSE) -> Granite City Township | P182: =VLOOKUP($C182,Sheet2!$A$2:$O$3886,2,FALSE) -> 2060 Delmar Ave Ste A | Q182: =VLOOKUP($C182,Sheet2!$A$2:$O$3886,3,FALSE) ->  | R182: =VLOOKUP($C182,Sheet2!$A$2:$O$3886,4,FALSE) ->  | S182: =VLOOKUP($C182,Sheet2!$A$2:$O$3886,5,FALSE) -> Granite City | T182: =VLOOKUP($C182,Sheet2!$A$2:$O$3886,6,FALSE) -> Illinois | U182: =VLOOKUP($C182,Sheet2!$A$2:$O$3886,7,FALSE) -> 62040-4589 | V182: =VLOOKUP($C182,Sheet2!$A$2:$O$3886,11,FALSE) -> Deidre Cave
A183: =IF(C183=Entry!$B$7,INT(A182)+1,A182+0.00001) -> 0.00182 | B183: RG01 | C183: 279 | D183: 7.87 | E183: 8.27 | F183: 4.73 | G183: 2.63 | H183: 7.36 | I183: 0.04 | J183: 0.25 | K183: 0.62 | L183: 0 | N183: 18 | O183: =VLOOKUP($C183,Sheet2!$A$2:$O$3886,10,FALSE) -> City Of Mount Carroll | P183: =VLOOKUP($C183,Sheet2!$A$2:$O$3886,2,FALSE) -> 302 N Main St | Q183: =VLOOKUP($C183,Sheet2!$A$2:$O$3886,3,FALSE) ->  | R183: =VLOOKUP($C183,Sheet2!$A$2:$O$3886,4,FALSE) ->  | S183: =VLOOKUP($C183,Sheet2!$A$2:$O$3886,5,FALSE) -> Mount Carroll | T183: =VLOOKUP($C183,Sheet2!$A$2:$O$3886,6,FALSE) -> Illinois | U183: =VLOOKUP($C183,Sheet2!$A$2:$O$3886,7,FALSE) -> 61053-1024 | V183: =VLOOKUP($C183,Sheet2!$A$2:$O$3886,11,FALSE) -> Lisa Dauphin
A184: =IF(C184=Entry!$B$7,INT(A183)+1,A183+0.00001) -> 0.00183 | B184: RG01 | C184: 280 | D184: 0.83 | E184: 0.75 | F184: 4.51 | G184: -5.74 | H184: 0 | I184: 0.04 | J184: 0.09 | K184: 0.62 | L184: 0 | N184: 18 | O184: =VLOOKUP($C184,Sheet2!$A$2:$O$3886,10,FALSE) -> Village Of Steeleville | P184: =VLOOKUP($C184,Sheet2!$A$2:$O$3886,2,FALSE) -> 107 W Broadway | Q184: =VLOOKUP($C184,Sheet2!$A$2:$O$3886,3,FALSE) ->  | R184: =VLOOKUP($C184,Sheet2!$A$2:$O$3886,4,FALSE) ->  | S184: =VLOOKUP($C184,Sheet2!$A$2:$O$3886,5,FALSE) -> Steeleville | T184: =VLOOKUP($C184,Sheet2!$A$2:$O$3886,6,FALSE) -> Illinois | U184: =VLOOKUP($C184,Sheet2!$A$2:$O$3886,7,FALSE) -> 62288-1414 | V184: =VLOOKUP($C184,Sheet2!$A$2:$O$3886,11,FALSE) -> Kendi Klingeman
A185: =IF(C185=Entry!$B$7,INT(A184)+1,A184+0.00001) -> 0.00184 | B185: RG01 | C185: 283 | D185: 5.35 | E185: 5.47 | F185: 4.29 | G185: 0.39 | H185: 4.68 | I185: 0.04 | J185: 0.13 | K185: 0.62 | L185: 0 | N185: 18 | O185: =VLOOKUP($C185,Sheet2!$A$2:$O$3886,10,FALSE) -> Village Of Berkeley | P185: =VLOOKUP($C185,Sheet2!$A$2:$O$3886,2,FALSE) -> 5819 Electric Ave | Q185: =VLOOKUP($C185,Sheet2!$A$2:$O$3886,3,FALSE) ->  | R185: =VLOOKUP($C185,Sheet2!$A$2:$O$3886,4,FALSE) ->  | S185: =VLOOKUP($C185,Sheet2!$A$2:$O$3886,5,FALSE) -> Berkeley | T185: =VLOOKUP($C185,Sheet2!$A$2:$O$3886,6,FALSE) -> Illinois | U185: =VLOOKUP($C185,Sheet2!$A$2:$O$3886,7,FALSE) -> 60163-1599 | V185: =VLOOKUP($C185,Sheet2!$A$2:$O$3886,11,FALSE) -> Melissa Santiago
A186: =IF(C186=Entry!$B$7,INT(A185)+1,A185+0.00001) -> 0.00185 | B186: RG01 | C186: 284 | D186: 7.54 | E186: 8.17 | F186: 4.48 | G186: 2.89 | H186: 7.37 | I186: 0.04 | J186: 0.14 | K186: 0.62 | L186: 0 | N186: 18 | O186: =VLOOKUP($C186,Sheet2!$A$2:$O$3886,10,FALSE) -> Village Of Mt Morris | P186: =VLOOKUP($C186,Sheet2!$A$2:$O$3886,2,FALSE) -> 105 W Lincoln St | Q186: =VLOOKUP($C186,Sheet2!$A$2:$O$3886,3,FALSE) ->  | R186: =VLOOKUP($C186,Sheet2!$A$2:$O$3886,4,FALSE) ->  | S186: =VLOOKUP($C186,Sheet2!$A$2:$O$3886,5,FALSE) -> Mount Morris | T186: =VLOOKUP($C186,Sheet2!$A$2:$O$3886,6,FALSE) -> Illinois | U186: =VLOOKUP($C186,Sheet2!$A$2:$O$3886,7,FALSE) -> 61054-1400 | V186: =VLOOKUP($C186,Sheet2!$A$2:$O$3886,11,FALSE) -> Brooke Duffy
A187: =IF(C187=Entry!$B$7,INT(A186)+1,A186+0.00001) -> 0.00186 | B187: RG01 | C187: 285 | D187: 8.31 | E187: 8.91 | F187: 5.03 | G187: 3.11 | H187: 8.14 | I187: 0.04 | J187: 0.11 | K187: 0.62 | L187: 0 | N187: 18 | O187: =VLOOKUP($C187,Sheet2!$A$2:$O$3886,10,FALSE) -> Village Of Plainfield | P187: =VLOOKUP($C187,Sheet2!$A$2:$O$3886,2,FALSE) -> 24401 W Lockport St | Q187: =VLOOKUP($C187,Sheet2!$A$2:$O$3886,3,FALSE) ->  | R187: =VLOOKUP($C187,Sheet2!$A$2:$O$3886,4,FALSE) ->  | S187: =VLOOKUP($C187,Sheet2!$A$2:$O$3886,5,FALSE) -> Plainfield | T187: =VLOOKUP($C187,Sheet2!$A$2:$O$3886,6,FALSE) -> Illinois | U187: =VLOOKUP($C187,Sheet2!$A$2:$O$3886,7,FALSE) -> 60544-2313 | V187: =VLOOKUP($C187,Sheet2!$A$2:$O$3886,11,FALSE) -> Traci Pleckham
A188: =IF(C188=Entry!$B$7,INT(A187)+1,A187+0.00001) -> 0.00187 | B188: SL01 | C188: 285 | D188: 12.48 | E188: 11.76 | F188: 10.97 | G188: 0 | H188: 10.97 | I188: 0.04 | J188: 0.13 | K188: 0.62 | L188: 0 | M188: 0 | N188: 18 | O188: =VLOOKUP($C188,Sheet2!$A$2:$O$3886,10,FALSE) -> Village Of Plainfield | P188: =VLOOKUP($C188,Sheet2!$A$2:$O$3886,2,FALSE) -> 24401 W Lockport St | Q188: =VLOOKUP($C188,Sheet2!$A$2:$O$3886,3,FALSE) ->  | R188: =VLOOKUP($C188,Sheet2!$A$2:$O$3886,4,FALSE) ->  | S188: =VLOOKUP($C188,Sheet2!$A$2:$O$3886,5,FALSE) -> Plainfield | T188: =VLOOKUP($C188,Sheet2!$A$2:$O$3886,6,FALSE) -> Illinois | U188: =VLOOKUP($C188,Sheet2!$A$2:$O$3886,7,FALSE) -> 60544-2313 | V188: =VLOOKUP($C188,Sheet2!$A$2:$O$3886,11,FALSE) -> Traci Pleckham
A189: =IF(C189=Entry!$B$7,INT(A188)+1,A188+0.00001) -> 0.00188 | B189: RG01 | C189: 286 | D189: 10.46 | E189: 11.45 | F189: 5.15 | G189: 5.49 | H189: 10.64 | I189: 0.04 | J189: 0.15 | K189: 0.62 | L189: 0 | N189: 18 | O189: =VLOOKUP($C189,Sheet2!$A$2:$O$3886,10,FALSE) -> Village Of Ridge Farm | P189: =VLOOKUP($C189,Sheet2!$A$2:$O$3886,2,FALSE) -> Po Box 350 | Q189: =VLOOKUP($C189,Sheet2!$A$2:$O$3886,3,FALSE) ->  | R189: =VLOOKUP($C189,Sheet2!$A$2:$O$3886,4,FALSE) ->  | S189: =VLOOKUP($C189,Sheet2!$A$2:$O$3886,5,FALSE) -> Ridge Farm | T189: =VLOOKUP($C189,Sheet2!$A$2:$O$3886,6,FALSE) -> Illinois | U189: =VLOOKUP($C189,Sheet2!$A$2:$O$3886,7,FALSE) -> 61870-0350 | V189: =VLOOKUP($C189,Sheet2!$A$2:$O$3886,11,FALSE) -> Jennifer Berck
A190: =IF(C190=Entry!$B$7,INT(A189)+1,A189+0.00001) -> 0.00189 | B190: RG01 | C190: 287 | D190: 11.48 | E190: 12.11 | F190: 4.64 | G190: 6.68 | H190: 11.32 | I190: 0.04 | J190: 0.13 | K190: 0.62 | L190: 0 | N190: 18 | O190: =VLOOKUP($C190,Sheet2!$A$2:$O$3886,10,FALSE) -> Village Of Stockton | P190: =VLOOKUP($C190,Sheet2!$A$2:$O$3886,2,FALSE) -> 155 W Front Ave Uppr 1 | Q190: =VLOOKUP($C190,Sheet2!$A$2:$O$3886,3,FALSE) -> Po Box 186 | R190: =VLOOKUP($C190,Sheet2!$A$2:$O$3886,4,FALSE) ->  | S190: =VLOOKUP($C190,Sheet2!$A$2:$O$3886,5,FALSE) -> Stockton | T190: =VLOOKUP($C190,Sheet2!$A$2:$O$3886,6,FALSE) -> Illinois | U190: =VLOOKUP($C190,Sheet2!$A$2:$O$3886,7,FALSE) -> 61085-1351 | V190: =VLOOKUP($C190,Sheet2!$A$2:$O$3886,11,FALSE) -> Stefanie Hatley
A191: =IF(C191=Entry!$B$7,INT(A190)+1,A190+0.00001) -> 0.0019 | B191: RG01 | C191: 290 | D191: 7.87 | E191: 7.86 | F191: 4.9 | G191: 2.22 | H191: 7.12 | I191: 0.04 | J191: 0.08 | K191: 0.62 | L191: 0 | N191: 18 | O191: =VLOOKUP($C191,Sheet2!$A$2:$O$3886,10,FALSE) -> City Of Herrin | P191: =VLOOKUP($C191,Sheet2!$A$2:$O$3886,2,FALSE) -> 300 N Park Ave Ste B | Q191: =VLOOKUP($C191,Sheet2!$A$2:$O$3886,3,FALSE) ->  | R191: =VLOOKUP($C191,Sheet2!$A$2:$O$3886,4,FALSE) ->  | S191: =VLOOKUP($C191,Sheet2!$A$2:$O$3886,5,FALSE) -> Herrin | T191: =VLOOKUP($C191,Sheet2!$A$2:$O$3886,6,FALSE) -> Illinois | U191: =VLOOKUP($C191,Sheet2!$A$2:$O$3886,7,FALSE) -> 62948-3199 | V191: =VLOOKUP($C191,Sheet2!$A$2:$O$3886,11,FALSE) -> Carrie Cravens
A192: =IF(C192=Entry!$B$7,INT(A191)+1,A191+0.00001) -> 0.00191 | B192: SL01 | C192: 290 | D192: 12.48 | E192: 11.76 | F192: 10.97 | G192: 0 | H192: 10.97 | I192: 0.04 | J192: 0.13 | K192: 0.62 | L192: 0 | M192: 0 | N192: 18 | O192: =VLOOKUP($C192,Sheet2!$A$2:$O$3886,10,FALSE) -> City Of Herrin | P192: =VLOOKUP($C192,Sheet2!$A$2:$O$3886,2,FALSE) -> 300 N Park Ave Ste B | Q192: =VLOOKUP($C192,Sheet2!$A$2:$O$3886,3,FALSE) ->  | R192: =VLOOKUP($C192,Sheet2!$A$2:$O$3886,4,FALSE) ->  | S192: =VLOOKUP($C192,Sheet2!$A$2:$O$3886,5,FALSE) -> Herrin | T192: =VLOOKUP($C192,Sheet2!$A$2:$O$3886,6,FALSE) -> Illinois | U192: =VLOOKUP($C192,Sheet2!$A$2:$O$3886,7,FALSE) -> 62948-3199 | V192: =VLOOKUP($C192,Sheet2!$A$2:$O$3886,11,FALSE) -> Carrie Cravens
A193: =IF(C193=Entry!$B$7,INT(A192)+1,A192+0.00001) -> 0.00192 | B193: RG01 | C193: 292 | D193: 5.68 | E193: 6.9 | F193: 4.9 | G193: 1.16 | H193: 6.06 | I193: 0.04 | J193: 0.18 | K193: 0.62 | L193: 0 | N193: 18 | O193: =VLOOKUP($C193,Sheet2!$A$2:$O$3886,10,FALSE) -> City Of Elmwood | P193: =VLOOKUP($C193,Sheet2!$A$2:$O$3886,2,FALSE) -> 201 W Main St | Q193: =VLOOKUP($C193,Sheet2!$A$2:$O$3886,3,FALSE) -> Po Box 439 | R193: =VLOOKUP($C193,Sheet2!$A$2:$O$3886,4,FALSE) ->  | S193: =VLOOKUP($C193,Sheet2!$A$2:$O$3886,5,FALSE) -> Elmwood | T193: =VLOOKUP($C193,Sheet2!$A$2:$O$3886,6,FALSE) -> Illinois | U193: =VLOOKUP($C193,Sheet2!$A$2:$O$3886,7,FALSE) -> 61529-9111 | V193: =VLOOKUP($C193,Sheet2!$A$2:$O$3886,11,FALSE) -> Bethany Lovingood
A194: =IF(C194=Entry!$B$7,INT(A193)+1,A193+0.00001) -> 0.00193 | B194: RG01 | C194: 293 | D194: 9.84 | E194: 11.35 | F194: 3.98 | G194: 6.63 | H194: 10.61 | I194: 0.04 | J194: 0.08 | K194: 0.62 | L194: 0 | N194: 18 | O194: =VLOOKUP($C194,Sheet2!$A$2:$O$3886,10,FALSE) -> City Of Marseilles | P194: =VLOOKUP($C194,Sheet2!$A$2:$O$3886,2,FALSE) -> 209 Lincoln St Ste 2 | Q194: =VLOOKUP($C194,Sheet2!$A$2:$O$3886,3,FALSE) -> Ste 2 | R194: =VLOOKUP($C194,Sheet2!$A$2:$O$3886,4,FALSE) ->  | S194: =VLOOKUP($C194,Sheet2!$A$2:$O$3886,5,FALSE) -> Marseilles | T194: =VLOOKUP($C194,Sheet2!$A$2:$O$3886,6,FALSE) -> Illinois | U194: =VLOOKUP($C194,Sheet2!$A$2:$O$3886,7,FALSE) -> 61341-1995 | V194: =VLOOKUP($C194,Sheet2!$A$2:$O$3886,11,FALSE) -> Lesley Hart
A195: =IF(C195=Entry!$B$7,INT(A194)+1,A194+0.00001) -> 0.00194 | B195: RG01 | C195: 294 | D195: 0.96 | E195: 0.87 | F195: 4.31 | G195: -5.6 | H195: 0 | I195: 0.04 | J195: 0.21 | K195: 0.62 | L195: 0 | N195: 18 | O195: =VLOOKUP($C195,Sheet2!$A$2:$O$3886,10,FALSE) -> Village Of Milford | P195: =VLOOKUP($C195,Sheet2!$A$2:$O$3886,2,FALSE) -> 15 S West Ave | Q195: =VLOOKUP($C195,Sheet2!$A$2:$O$3886,3,FALSE) -> P O Box 137 | R195: =VLOOKUP($C195,Sheet2!$A$2:$O$3886,4,FALSE) ->  | S195: =VLOOKUP($C195,Sheet2!$A$2:$O$3886,5,FALSE) -> Milford | T195: =VLOOKUP($C195,Sheet2!$A$2:$O$3886,6,FALSE) -> Illinois | U195: =VLOOKUP($C195,Sheet2!$A$2:$O$3886,7,FALSE) -> 60953-1340 | V195: =VLOOKUP($C195,Sheet2!$A$2:$O$3886,11,FALSE) -> Robin Rogers
A196: =IF(C196=Entry!$B$7,INT(A195)+1,A195+0.00001) -> 0.00195 | B196: RG01 | C196: 296 | D196: 0.85 | E196: 0.78 | F196: 6.11 | G196: -17.15 | H196: 0 | I196: 0.04 | J196: 0.12 | K196: 0.62 | L196: 0 | N196: 18 | O196: =VLOOKUP($C196,Sheet2!$A$2:$O$3886,10,FALSE) -> Freeburg Township | P196: =VLOOKUP($C196,Sheet2!$A$2:$O$3886,2,FALSE) -> 203 S Richland St | Q196: =VLOOKUP($C196,Sheet2!$A$2:$O$3886,3,FALSE) ->  | R196: =VLOOKUP($C196,Sheet2!$A$2:$O$3886,4,FALSE) ->  | S196: =VLOOKUP($C196,Sheet2!$A$2:$O$3886,5,FALSE) -> Freeburg | T196: =VLOOKUP($C196,Sheet2!$A$2:$O$3886,6,FALSE) -> Illinois | U196: =VLOOKUP($C196,Sheet2!$A$2:$O$3886,7,FALSE) -> 62243-1391 | V196: =VLOOKUP($C196,Sheet2!$A$2:$O$3886,11,FALSE) -> Charles Hill
A197: =IF(C197=Entry!$B$7,INT(A196)+1,A196+0.00001) -> 0.00196 | B197: RG01 | C197: 297 | D197: 4.2 | E197: 3.23 | F197: 4.57 | G197: -2.33 | H197: 2.24 | I197: 0.04 | J197: 0.33 | K197: 0.62 | L197: 0 | N197: 18 | O197: =VLOOKUP($C197,Sheet2!$A$2:$O$3886,10,FALSE) -> Morton Township | P197: =VLOOKUP($C197,Sheet2!$A$2:$O$3886,2,FALSE) -> 300 W Jefferson St | Q197: =VLOOKUP($C197,Sheet2!$A$2:$O$3886,3,FALSE) ->  | R197: =VLOOKUP($C197,Sheet2!$A$2:$O$3886,4,FALSE) ->  | S197: =VLOOKUP($C197,Sheet2!$A$2:$O$3886,5,FALSE) -> Morton | T197: =VLOOKUP($C197,Sheet2!$A$2:$O$3886,6,FALSE) -> Illinois | U197: =VLOOKUP($C197,Sheet2!$A$2:$O$3886,7,FALSE) -> 61550-1816 | V197: =VLOOKUP($C197,Sheet2!$A$2:$O$3886,11,FALSE) -> Jennifer Roche
A198: =IF(C198=Entry!$B$7,INT(A197)+1,A197+0.00001) -> 0.00197 | B198: RG01 | C198: 304 | D198: 1.28 | E198: 2.9 | F198: 4.81 | G198: -2.78 | H198: 2.03 | I198: 0.04 | J198: 0.21 | K198: 0.62 | L198: 0 | N198: 18 | O198: =VLOOKUP($C198,Sheet2!$A$2:$O$3886,10,FALSE) -> City Of Lawrenceville | P198: =VLOOKUP($C198,Sheet2!$A$2:$O$3886,2,FALSE) -> 700 State St | Q198: =VLOOKUP($C198,Sheet2!$A$2:$O$3886,3,FALSE) -> P O Box 557 | R198: =VLOOKUP($C198,Sheet2!$A$2:$O$3886,4,FALSE) ->  | S198: =VLOOKUP($C198,Sheet2!$A$2:$O$3886,5,FALSE) -> Lawrenceville | T198: =VLOOKUP($C198,Sheet2!$A$2:$O$3886,6,FALSE) -> Illinois | U198: =VLOOKUP($C198,Sheet2!$A$2:$O$3886,7,FALSE) -> 62439-2754 | V198: =VLOOKUP($C198,Sheet2!$A$2:$O$3886,11,FALSE) -> James Nolan
A199: =IF(C199=Entry!$B$7,INT(A198)+1,A198+0.00001) -> 0.00198 | B199: RG01 | C199: 306 | D199: 6.7 | E199: 6.97 | F199: 4.6 | G199: 1.59 | H199: 6.19 | I199: 0.04 | J199: 0.12 | K199: 0.62 | L199: 0 | N199: 18 | O199: =VLOOKUP($C199,Sheet2!$A$2:$O$3886,10,FALSE) -> City Of Sparta | P199: =VLOOKUP($C199,Sheet2!$A$2:$O$3886,2,FALSE) -> 114 W Jackson St | Q199: =VLOOKUP($C199,Sheet2!$A$2:$O$3886,3,FALSE) ->  | R199: =VLOOKUP($C199,Sheet2!$A$2:$O$3886,4,FALSE) ->  | S199: =VLOOKUP($C199,Sheet2!$A$2:$O$3886,5,FALSE) -> Sparta | T199: =VLOOKUP($C199,Sheet2!$A$2:$O$3886,6,FALSE) -> Illinois | U199: =VLOOKUP($C199,Sheet2!$A$2:$O$3886,7,FALSE) -> 62286-1666 | V199: =VLOOKUP($C199,Sheet2!$A$2:$O$3886,11,FALSE) -> Angela Peters
A200: =IF(C200=Entry!$B$7,INT(A199)+1,A199+0.00001) -> 0.00199 | B200: RG01 | C200: 307 | D200: 13.68 | E200: 13.61 | F200: 5.05 | G200: 7.82 | H200: 12.87 | I200: 0.04 | J200: 0.08 | K200: 0.62 | L200: 0 | N200: 18 | O200: =VLOOKUP($C200,Sheet2!$A$2:$O$3886,10,FALSE) -> Village Of Bethalto | P200: =VLOOKUP($C200,Sheet2!$A$2:$O$3886,2,FALSE) -> 213 N Prairie St Ste A | Q200: =VLOOKUP($C200,Sheet2!$A$2:$O$3886,3,FALSE) ->  | R200: =VLOOKUP($C200,Sheet2!$A$2:$O$3886,4,FALSE) ->  | S200: =VLOOKUP($C200,Sheet2!$A$2:$O$3886,5,FALSE) -> Bethalto | T200: =VLOOKUP($C200,Sheet2!$A$2:$O$3886,6,FALSE) -> Illinois | U200: =VLOOKUP($C200,Sheet2!$A$2:$O$3886,7,FALSE) -> 62010-1398 | V200: =VLOOKUP($C200,Sheet2!$A$2:$O$3886,11,FALSE) -> Sue Lowrance
... 3202 more rows

Sheet Sheet2 (hidden)
A1: Account Number (Parent) (Account) | B1: Line 1 | C1: Line 2 | D1: Line 3 | E1: City | F1: State/Province | G1: ZIP/Postal Code | H1: Country/Region | I1: In error | J1: Account Name (Parent) (Account) | K1: Primary Contact (Parent) (Account) | L1: County | M1: Main Phone | N1: E-mail (Parent) (Account) | O1: Status (Parent) (Account)
A2: 2 | B2: 116 E Mulberry St | E2: Chatham | F2: Illinois | G2: 62629-1358 | H2: United States | I2: No | J2: Village Of Chatham | K2: Jill Butler | L2: SANGAMON | N2: jbutler@chathamil.gov | O2: Active
A3: 10 | B3: 120 N College Ave | E3: Aledo | F3: Illinois | G3: 61231-1519 | H3: United States | I3: No | J3: City Of Aledo | K3: Jarod Dale | L3: MERCER | N3: cityclerk@aledoil.gov | O3: Active
A4: 12 | B4: Po Box 467 | C4: 208 South Rapp Avenue | E4: Columbia | F4: Illinois | G4: 62236-0467 | H4: United States | I4: No | J4: City Of Columbia | K4: Emily Voellinger | L4: MONROE | N4: evoellinger@columbiail.gov | O4: Active
A5: 16 | B5: 238 S Congress St | E5: Rushville | F5: Illinois | G5: 62681-1465 | H5: United States | I5: No | J5: Schuyler Co Hospital Dist | K5: Tiffany Maxwell | L5: SCHUYLER | N5: tmaxwell@sdcmh.org | O5: Active
A6: 17 | B6: 100 W 4Th St | E6: Waterloo | F6: Illinois | G6: 62298 | H6: United States | I6: No | J6: City Of Waterloo | K6: Sarah Craig | L6: MONROE | N6: scraig@waterloo.il.us | O6: Active
A7: 19 | B7: 3720 Greenleaf Ave | E7: Island Lake | F7: Illinois | G7: 60042-9506 | H7: United States | I7: No | J7: Village Of Island Lake | K7: Dennis Murray | L7: LAKE | N7: dennis.murray@voislk.com | O7: Active
A8: 21 | B8: 1790 S 74Th St | E8: Belleville | F8: Illinois | G8: 62223-3363 | H8: United States | I8: No | J8: St Clair Co Housing Authority | K8: Shanae Golliday-anderson | L8: SAINT CLAIR | N8: shanaeg@sccha.org | O8: Active
A9: 22 | B9: 6701 S Archer Rd | E9: Bedford Park | F9: Illinois | G9: 60501-1936 | H9: United States | I9: No | J9: Village Of Bedford Park | K9: DYANE JOINER | L9: COOK | N9: dyane@villageofbedfordpark.com | O9: Active
A10: 23 | B10: Po Box 425 | C10: 108 E Main St | E10: Casey | F10: Illinois | G10: 62420-0425 | H10: United States | I10: No | J10: City Of Casey | K10: Jeremy Mumford | L10: CLARK | N10: clerk@cityofcaseyil.org | O10: Active
A11: 24 | B11: 14 Southgate Ctr | E11: Freeburg | F11: Illinois | G11: 62243-1563 | H11: United States | I11: No | J11: Village Of Freeburg | K11: Mary Downen | L11: SAINT CLAIR | N11: mdownen@freeburg.com | O11: Active
A12: 25 | B12: 415 11Th Ave | E12: Fulton | F12: Illinois | G12: 61252-1727 | H12: United States | I12: No | J12: City Of Fulton | K12: Tammy Garibay | L12: WHITESIDE | N12: tammy.garibay@cityoffulton.us | O12: Active
A13: 26 | B13: 3 W Main St | E13: Mascoutah | F13: Illinois | G13: 62258-2044 | H13: United States | I13: No | J13: City Of Mascoutah | K13: Melissa Schanz | L13: SAINT CLAIR | N13: mschanz@mascoutah.com | O13: Active
A14: 27 | B14: 106 W 5Th St | E14: Metropolis | F14: Illinois | G14: 62960-0682 | H14: United States | I14: No | J14: City Of Metropolis | K14: Rebecca Reed | L14: MASSAC | O14: Active
A15: 28 | B15: Po Box 165 | E15: Newton | F15: Illinois | G15: 62448-0165 | H15: United States | I15: No | J15: City Of Newton | K15: Melissa Brooks | L15: JASPER | N15: citytreasurer1@cityofnewtonil.com | O15: Active
A16: 29 | B16: 17 E Main St | E16: Plano | F16: Illinois | G16: 60545-1521 | H16: United States | I16: No | J16: City Of Plano | K16: Zoila Gomez | L16: KENDALL | N16: zgomez@cityofplanoil.org | O16: Active
A17: 30 | B17: 4330 11Th St | E17: Rock Island | F17: Illinois | G17: 61201-6747 | H17: United States | I17: No | J17: South Rock Island Township | K17: Grace Shirk | L17: ROCK ISLAND | N17: gshirk@sritownship.net | O17: Active
A18: 31 | B18: 115 N Main St Ste 3 | E18: Taylorville | F18: Illinois | G18: 62568-2273 | H18: United States | I18: No | J18: City Of Taylorville | K18: Traci Bentley | L18: CHRISTIAN | N18: hrtaylorville@ctitech.com | O18: Active
A19: 34 | B19: 44 Golfview Dr | E19: Northlake | F19: Illinois | G19: 60164-1613 | H19: United States | I19: No | J19: Veterans Park Dist | K19: Margaret Stabile | L19: COOK | N19: mstabile@veteransparkdistrict.org | O19: Active
A20: 35 | B20: 2400 Dowie Memorial Dr | E20: Zion | F20: Illinois | G20: 60099-2593 | H20: United States | I20: No | J20: Zion Park District | K20: Eric Bradley | L20: LAKE | N20: ebradley@zionparkdistrict.org | O20: Active
A21: 37 | B21: 2827 7Th Ave Ste 1 | E21: Rock Island | F21: Illinois | G21: 61201-1904 | H21: United States | I21: No | J21: Rock Island Township | K21: JOHN BRANDMEYER**JR | L21: ROCK ISLAND | N21: ritownsupervisor@gmail.com | O21: Active
A22: 38 | B22: 11 Uptown Cir | E22: Normal | F22: Illinois | G22: 61761-8700 | H22: United States | I22: No | J22: Town Of Normal | K22: Jennifer Keigher | L22: MCLEAN | N22: jkeigher@normal.org | O22: Active
A23: 40 | B23: 901 4Th St | E23: Eldorado | F23: Illinois | G23: 62930-1243 | H23: United States | I23: No | J23: City Of Eldorado | K23: Stacy James | L23: SALINE | N23: eldclerk@eldoradoil.gov | O23: Active
A24: 41 | B24: 304 W Main St | E24: Staunton | F24: Illinois | G24: 62088-1476 | H24: United States | I24: No | J24: City Of Staunton | K24: Dennis Stiegemeier | L24: MACOUPIN | N24: cityclerk@stauntonil.com | O24: Active
A25: 42 | B25: 109 Ne 2Nd St | E25: Fairfield | F25: Illinois | G25: 62837-2029 | H25: United States | I25: No | J25: City Of Fairfield | K25: GARY MOORE | L25: WAYNE | N25: mayor@fairfieldilcitygov.us | O25: Active
A26: 43 | B26: 103 Market St | E26: Anna | F26: Illinois | G26: 62906-1299 | H26: United States | I26: No | J26: City Of Anna | K26: Dori Bigler | L26: UNION | N26: dbigler@cityofanna.org | O26: Active
A27: 44 | B27: Po Box 218 | E27: Highland | F27: Illinois | G27: 62249-0218 | H27: United States | I27: No | J27: City Of Highland | K27: Megan Von hatten | L27: MADISON | N27: mvonhatten@highlandil.gov | O27: Active
A28: 45 | B28: 100 W Broadway Blvd | E28: Johnston City | F28: Illinois | G28: 62951-1424 | H28: United States | I28: No | J28: City Of Johnston City | K28: JADE WEST | L28: WILLIAMSON | N28: 2011clerk@gmail.com | O28: Active
A29: 46 | B29: 615 Madison Ave | E29: Madison | F29: Illinois | G29: 62060-1415 | H29: United States | I29: No | J29: City Of Madison | K29: SCOTT ONEY | L29: MADISON | N29: oneycpa@yahoo.com | O29: Active
A30: 47 | B30: 102 W Main St | E30: Mc Leansboro | F30: Illinois | G30: 62859-1195 | H30: United States | I30: No | J30: City Of Mcleansboro | K30: Jodi Brockett | L30: HAMILTON | N30: cityclerk@mcleansboro.us | O30: Active
A31: 48 | B31: 200 W Main St | E31: Morrison | F31: Illinois | G31: 61270-2400 | H31: United States | I31: No | J31: City Of Morrison | K31: Barbara King | L31: WHITESIDE | N31: bking@morrisonil.org | O31: Active
A32: 50 | B32: 101 S Broadway Ave | E32: Salem | F32: Illinois | G32: 62881-1699 | H32: United States | I32: No | J32: City Of Salem | K32: Terri Gowler | L32: MARION | N32: acctg@salemil.us | O32: Active
A33: 51 | B33: Po Box 279 | C33: 102 N Cherry | E33: Sandoval | F33: Illinois | G33: 62882-0279 | H33: United States | I33: No | J33: Village Of Sandoval | K33: LISA HOOD | L33: MARION | N33: villageofsandoval@gmail.com | O33: Active
A34: 52 | B34: 170 E Main St | E34: Shelbyville | F34: Illinois | G34: 62565-1654 | H34: United States | I34: No | J34: City Of Shelbyville | K34: Rachel Wallace | L34: SHELBY | N34: cityclerk@shelbyvilleil.net | O34: Active
A35: 54 | B35: 301 Walnut St | E35: Washington | F35: Illinois | G35: 61571-2649 | H35: United States | I35: No | J35: City Of Washington | K35: Maureen Chambers | L35: TAZEWELL | N35: mchambers@ci.washington.il.us | O35: Active
A36: 55 | B36: 117 Northfield Rd | E36: Northfield | F36: Illinois | G36: 60093-3309 | H36: United States | I36: No | J36: North Shore Mosq Abat Dist | K36: Jennifer Zimmer | L36: COOK | N36: jzimmer@nsmad.com | O36: Active
A37: 61 | B37: 1330 Swanwick St | E37: Chester | F37: Illinois | G37: 62233-1314 | H37: United States | I37: No | J37: City Of Chester | K37: Bethany Berner | L37: RANDOLPH | N37: cityhall@powrup.net | O37: Active
A38: 62 | B38: 124 S Railroad | E38: Buckley | F38: Illinois | G38: 60918 | H38: United States | I38: No | J38: Village Of Buckley | K38: JULIE SCHULDT | L38: IROQUOIS | N38: jschuldt.buckley@gmail.com | O38: Active
A39: 64 | B39: 1110 Mulliken St | E39: Carlyle | F39: Illinois | G39: 62231 | H39: United States | I39: No | J39: City Of Carlyle | K39: Kayla Heimann | N39: kayla@carlylelake.com | O39: Active
A40: 64 | B40: 850 Franklin St | E40: Carlyle | F40: Illinois | G40: 62231-1898 | H40: United States | I40: No | J40: City Of Carlyle | K40: Kayla Heimann | N40: kayla@carlylelake.com | O40: Active
A41: 65 | B41: 538 Wabash Ave | E41: Carthage | F41: Illinois | G41: 62321-1360 | H41: United States | I41: No | J41: City Of Carthage | K41: Scott Roberts | L41: HANCOCK | N41: clerk@carthage-il.com | O41: Active
A42: 66 | B42: 447 S Main St Ste 1 | E42: Hillsboro | F42: Illinois | G42: 62049-1454 | H42: United States | I42: No | J42: City Of Hillsboro | K42: Bonnie Hefley | L42: MONTGOMERY | N42: treasurer@hillsboroillinois.net | O42: Active
A43: 67 | B43: Po Box 330 | E43: Jonesboro | F43: Illinois | G43: 62952-0330 | H43: United States | I43: No | J43: City Of Jonesboro | K43: Brandi Boyd | L43: UNION | N43: cojboro@gmail.com | O43: Active
A44: 68 | B44: 6900 N Lincoln Ave | E44: Lincolnwood | F44: Illinois | G44: 60712-2692 | H44: United States | I44: No | J44: Village Of Lincolnwood | K44: MADELINE FARRELL | L44: COOK | N44: mfarrell@lwd.org | O44: Active
A45: 72 | B45: 893 W Station St | E45: Kankakee | F45: Illinois | G45: 60901-3443 | H45: United States | I45: No | J45: Kankakee Valley Park Dist | K45: Ross Bruni | L45: KANKAKEE | N45: rbruni@kupd.com | O45: Active
A46: 73 | B46: 511 12Th Street | E46: Wood River | F46: Illinois | G46: 62095 | H46: United States | I46: No | J46: Wood River Township Hospital | K46: Christopher Slusser | O46: Active
A47: 75 | B47: 202 N 2Nd St | E47: Altamont | F47: Illinois | G47: 62411-1494 | H47: United States | I47: No | J47: City Of Altamont | K47: Ellie Buennemeyer | L47: EFFINGHAM | N47: ebuennemeyer@altamontil.net | O47: Active
A48: 77 | B48: 200 S Hough St | E48: Barrington | F48: Illinois | G48: 60010-4322 | H48: United States | I48: No | J48: Village Of Barrington | L48: COOK | N48: hneu@barrington-il.gov | O48: Active
A49: 78 | B49: 235 Washington St | E49: Bridgeport | F49: Illinois | G49: 62417-1562 | H49: United States | I49: No | J49: City Of Bridgeport | K49: JESSICA ZELLARS | L49: LAWRENCE | N49: bridgeport.clerk@gmail.com | O49: Active
A50: 79 | B50: 101 N Mill St | E50: Carrier Mills | F50: Illinois | G50: 62917-1182 | H50: United States | I50: No | J50: Village Of Carrier Mills | K50: DAVID EDMISTER | L50: SALINE | N50: carriermillstreasurer@gmail.com | O50: Active
A51: 80 | B51: 219 S Locust St | E51: Delavan | F51: Illinois | G51: 61734-7566 | H51: United States | I51: No | J51: City Of Delavan | K51: Tammy Hintz | L51: TAZEWELL | N51: thintz@delavanil.org | O51: Active
A52: 81 | B52: 209 S Prairie Ave | E52: Dwight | F52: Illinois | G52: 60420-1377 | H52: United States | I52: No | J52: Village Of Dwight | K52: Carissa Livingston | L52: LIVINGSTON | N52: clivingston@dwightillinois.com | O52: Active
A53: 82 | B53: 311 Nw 4Th Ave | C53: P.O. Box 171 | E53: Galva | F53: Illinois | G53: 61434-1238 | H53: United States | I53: No | J53: City Of Galva | K53: Melissa Halsall | L53: HENRY | N53: citysecretary@galvail.gov | O53: Active
A54: 83 | B54: Po Box 545 | C54: Attn: Peg Stalter | E54: Gibson City | F54: Illinois | G54: 60936-0545 | H54: United States | I54: No | J54: City Of Gibson City | K54: DANIEL DICKEY | L54: FORD | N54: sshull@gcpd.net | O54: Active
A55: 85 | B55: Po Box 246 | E55: Greenup | F55: Illinois | G55: 62428-0246 | H55: United States | I55: No | J55: Village Of Greenup | K55: Jill Kimble | L55: CUMBERLAND | N55: clerk@villageofgreenup.com | O55: Active
A56: 86 | B56: 1010 Broadway St | E56: Hamilton | F56: Illinois | G56: 62341-1594 | H56: United States | I56: No | J56: City Of Hamilton | K56: Cindy Dupree | L56: HANCOCK | N56: cindydupree1010@gmail.com | O56: Active
A57: 88 | B57: 312 W Saint Louis St | E57: Lebanon | F57: Illinois | G57: 62254-1592 | H57: United States | I57: No | J57: City Of Lebanon | K57: Trisha Beckwith | L57: SAINT CLAIR | N57: water@lebanonil.org | O57: Active
A58: 89 | B58: Po Box 298 | C58: 201 S. Michigan Ave. | E58: Marshall | F58: Illinois | G58: 62441-0298 | H58: United States | I58: No | J58: City Of Marshall | K58: Nancy Smitley | L58: CLARK | N58: nsmitley@marshall-il.com | O58: Active
A59: 91 | B59: 800 Washington St | E59: Mendota | F59: Illinois | G59: 61342-1629 | H59: United States | I59: No | J59: City Of Mendota | K59: Emily Cronin mcconville | L59: LA SALLE | N59: emcconville@mendotacity.com | O59: Active
A60: 92 | B60: 102 N Davenport St | C60: Po Box 1070 | E60: Metamora | F60: Illinois | G60: 61548 | H60: United States | I60: No | J60: Village Of Metamora | K60: Monica Camper | L60: WOODFORD | N60: mcamper@villageofmetamora.com | O60: Active
A61: 93 | B61: 2897 Falling Springs Rd | E61: Sauget | F61: Illinois | G61: 62206-1123 | H61: United States | I61: No | J61: Village Of Sauget | K61: Lauren Kerperien | L61: SAINT CLAIR | N61: office@villageofsauget.org | O61: Active
A62: 94 | B62: 210 N Hamilton St | E62: Monticello | F62: Illinois | G62: 61856-1664 | H62: United States | I62: No | J62: City Of Monticello | K62: Maura Metcalf | L62: PIATT | N62: mam@cityofmonticello.net | O62: Active
A63: 96 | B63: 304 S Front St | C63: P O Box 483 | E63: Okawville | F63: Illinois | G63: 62271-2114 | H63: United States | I63: No | J63: Village Of Okawville | K63: Dawn Moyer | L63: WASHINGTON | N63: villageofokawville@gmail.com | O63: Active
A64: 97 | B64: 200 E Wood St | E64: Palatine | F64: Illinois | G64: 60067-5339 | H64: United States | I64: No | J64: Village Of Palatine | K64: Monika Pandya | L64: COOK | N64: pjackson@palatine.il.us | O64: Active
A65: 98 | B65: 8999 W 123Rd St | E65: Palos Park | F65: Illinois | G65: 60464-1756 | H65: United States | I65: No | J65: Village Of Palos Park | K65: Richard Boehm | L65: COOK | N65: rboehm@palospark.org | O65: Active
A66: 99 | B66: 104 S Walnut St | E66: Pinckneyville | F66: Illinois | G66: 62274-1340 | H66: United States | I66: No | J66: City Of Pinckneyville | K66: Melissa Kellerman | L66: PERRY | N66: cityclerk@pinckneyvillecity.com | O66: Active
A67: 100 | B67: 200 E Market St Ste 1 | C67: City Hall | E67: Red Bud | F67: Illinois | G67: 62278-1597 | H67: United States | I67: No | J67: City Of Red Bud | K67: Elizabeth Cowell | L67: RANDOLPH | N67: financeclerk@cityofredbud.org | O67: Active
A68: 102 | B68: 206 S Blackhawk St, Box 263 | E68: Shabbona | F68: Illinois | G68: 60550-0263 | H68: United States | I68: No | J68: Village Of Shabbona | K68: Jennifer Morrison | O68: Active
A69: 103 | B69: Po Box 227 | E69: Shawneetown | F69: Illinois | G69: 62984-0227 | H69: United States | I69: No | J69: City Of Shawneetown | K69: MATT MARTIN | L69: GALLATIN | N69: cityofshawneetown@gmail.com | O69: Active
A70: 105 | B70: 20 S Ardmore Ave | E70: Villa Park | F70: Illinois | G70: 60181-2696 | H70: United States | I70: No | J70: Village Of Villa Park | K70: CHUCK HOWARD | L70: DUPAGE | N70: choward@invillapark.com | O70: Active
A71: 106 | B71: 475 Main St | E71: West Chicago | F71: Illinois | G71: 60185-2840 | H71: United States | I71: No | J71: City Of West Chicago | K71: Nikki Giles | L71: DUPAGE | N71: ngiles@westchicago.org | O71: Active
A72: 110 | B72: 6340 N 2Nd St | E72: Loves Park | F72: Illinois | G72: 61111-4166 | H72: United States | I72: No | J72: North Suburban Library Dist | K72: Mary Petro | L72: WINNEBAGO | N72: marype@northsld.org | O72: Active
A73: 111 | B73: 227 W Parkside Ave | C73: Administrative Service Center | E73: Lombard | F73: Illinois | G73: 60148-2592 | H73: United States | I73: No | J73: Lombard Park District | K73: Jessica Ramirez | L73: DUPAGE | N73: jramirez@lombardparks.com | O73: Active
A74: 112 | B74: 375 W 1St St | E74: Elmhurst | F74: Illinois | G74: 60126-2662 | H74: United States | I74: No | J74: Elmhurst Park Dist | K74: Julie Bruns | L74: DUPAGE | N74: jbruns@epd.org | O74: Active
A75: 115 | B75: 600 N College Ave Ofc | E75: Geneseo | F75: Illinois | G75: 61254-1099 | H75: United States | I75: No | J75: Henry Hospital Dist | K75: Hazel Butter | L75: HENRY | N75: hazelbutter@hammondhenry.com | O75: Active
A76: 116 | B76: 105 W 3Rd St | C76: Po Box 467 | E76: Beardstown | F76: Illinois | G76: 62618-1142 | H76: United States | I76: No | J76: City Of Beardstown | K76: Brian Ruch | L76: CASS | N76: beardstown@casscomm.com | O76: Active
A77: 118 | B77: 103 S Division St | E77: Carterville | F77: Illinois | G77: 62918-1358 | H77: United States | I77: No | J77: City Of Carterville | K77: Khristina Hollister | L77: WILLIAMSON | N77: khollister@visitcarterville.com | O77: Active
A78: 119 | B78: 1412 U.S. 45 North | E78: Eldorado | F78: Illinois | G78: 62930 | H78: United States | I78: No | J78: Egyptian Health Dept | K78: Tammy Karnes | L78: SALINE | N78: tkarnes@egyptian.org | O78: Active
A79: 120 | B79: 201 E Jefferson Ave | C79: P.O Box 648 | E79: Effingham | F79: Illinois | G79: 62401-3450 | H79: United States | I79: No | J79: City Of Effingham | K79: Dennis Presley | L79: EFFINGHAM | N79: dpresley@effinghamil.com | O79: Active
A80: 122 | B80: 120 E 3Rd St | E80: Pana | F80: Illinois | G80: 62557-1646 | H80: United States | I80: No | J80: City Of Pana | K80: Kimberly Toberman | L80: CHRISTIAN | N80: cityclerk@cityofpana.org | O80: Active
A81: 126 | B81: 4900 Village Cmns | E81: Matteson | F81: Illinois | G81: 60443-2666 | H81: United States | I81: No | J81: Village Of Matteson | K81: Rasheed Jones | L81: COOK | N81: rjones@villageofmatteson.org | O81: Active
A82: 128 | B82: 4821 Bond Ave | E82: Alorton | F82: Illinois | G82: 62207-2529 | H82: United States | I82: No | J82: Village Of Alorton | L82: SAINT CLAIR | N82: lamardgent@gmail.com | O82: Active
A83: 130 | B83: 101 Green St | C83: Po Box 310 | E83: Galena | F83: Illinois | G83: 61036-2246 | H83: United States | I83: No | J83: City Of Galena | K83: Jennifer Schmidt | L83: JO DAVIESS | N83: jschmidt@cityofgalena.org | O83: Active
A84: 131 | B84: 115 E Prairie St | E84: Jerseyville | F84: Illinois | G84: 62052-1842 | H84: United States | I84: No | J84: City Of Jerseyville | K84: Denise Hayes | L84: JERSEY | N84: denisehayes@jerseyville-il.us | O84: Active
A85: 132 | B85: 40 E Center Ave | E85: Lake Bluff | F85: Illinois | G85: 60044-2597 | H85: United States | I85: No | J85: Village Of Lake Bluff | K85: BETTINA O'CONNELL | L85: LAKE | N85: boconnell@lakebluff.org | O85: Active
A86: 133 | B86: 120 N Main St | C86: P O Box 28 | E86: Morton | F86: Illinois | G86: 61550-2024 | H86: United States | I86: No | J86: Village Of Morton | K86: Julie Smick | L86: TAZEWELL | N86: jsmick@morton-il.gov | O86: Active
A87: 134 | B87: 300 Plaza Cir | E87: Mundelein | F87: Illinois | G87: 60060-2495 | H87: United States | I87: No | J87: Village Of Mundelein | K87: Tameika Jones | L87: LAKE | N87: tjones@mundelein.org | O87: Active
A88: 135 | B88: 145 S Market St Ste A | C88: P O Box 59 Ste A | E88: Paxton | F88: Illinois | G88: 60957-1289 | H88: United States | I88: No | J88: City Of Paxton | K88: Tammy Jensen | L88: FORD | N88: tjensen@cityofpaxton.com | O88: Active
A89: 136 | B89: 144 E Railroad St | E89: Sandwich | F89: Illinois | G89: 60548-2192 | H89: United States | I89: No | J89: City Of Sandwich | K89: DENISE LI | L89: DEKALB | N89: city.clerk@sandwich.il.us | O89: Active
A90: 137 | B90: 2828 Sheridan Rd | E90: Zion | F90: Illinois | G90: 60099-2674 | H90: United States | I90: No | J90: City Of Zion | K90: Kris Conway | L90: LAKE | N90: krisc@zion.il.us | O90: Active
A91: 138 | B91: 5924 Revere Rd | C91: Po Box 518 | E91: Clinton | F91: Illinois | G91: 61727-2914 | H91: United States | I91: No | J91: Dewitt Piatt Co Health Unit | K91: Michael Schroeder | L91: DEWITT | N91: mschroeder@dewittpiatthealth.com | O91: Active
A92: 141 | B92: Po Box 169 | C92: 222 S. Railroad St | E92: Lovington | F92: Illinois | G92: 61937-0169 | H92: United States | I92: No | J92: Village Of Lovington | K92: ALMA FAIR | L92: MOULTRIE | N92: clerk@lovingtonil.com | O92: Active
A93: 142 | B93: Po Box 234 | C93: 514 Main | E93: Augusta | F93: Illinois | G93: 62311-0234 | H93: United States | I93: No | J93: Village Of Augusta | K93: Stacy Swanger | L93: HANCOCK | N93: augusta@adams.net | O93: Active
A94: 143 | B94: Po Box 500 | E94: Depue | F94: Illinois | G94: 61322-0500 | H94: United States | I94: No | J94: Village Of Depue | K94: Janeann Vickers | L94: BUREAU | N94: vildepue@yahoo.com | O94: Active
A95: 144 | B95: 131 E 2Nd St | E95: Flora | F95: Illinois | G95: 62839-2002 | H95: United States | I95: No | J95: City Of Flora | K95: Kaci O'dell | L95: CLAY | N95: kodell@florail.us | O95: Active
A96: 145 | B96: 333 S Green St | E96: Mchenry | F96: Illinois | G96: 60050-5495 | H96: United States | I96: No | J96: City Of Mchenry | K96: Carolyn Lynch | L96: MCHENRY | N96: clynch@cityofmchenry.org | O96: Active
A97: 146 | B97: 111 E. Thomas St | E97: Toulon | F97: Illinois | G97: 61483 | H97: United States | I97: No | J97: City Of Toulon | K97: Barbara Cantwell | N97: tlncityclerk@gmail.com | O97: Active
A98: 146 | B98: Po Box 597 | C98: 122 N. Franklin | E98: Toulon | F98: Illinois | G98: 61483-0597 | H98: United States | I98: No | J98: City Of Toulon | K98: Barbara Cantwell | L98: STARK | N98: tlncityclerk@gmail.com | O98: Active
A99: 148 | B99: 6700 S 78Th Ave | E99: Bedford Park | F99: Illinois | G99: 60501-1998 | H99: United States | I99: No | J99: Bedford Park Dist | K99: Kathryn Mcmullin | L99: COOK | N99: kmcmullin@bedfordparkdistrict.org | O99: Active
A100: 149 | B100: Po Box 467 | E100: Fairfield | F100: Illinois | G100: 62837-0467 | H100: United States | I100: No | J100: Fairfield Park Dist | K100: ELISA TAYLOR | L100: WAYNE | N100: etaylor.fpd@gmail.com | O100: Active
A101: 150 | B101: 1095 Cambridge Rd | E101: Kewanee | F101: Illinois | G101: 61443-1286 | H101: United States | I101: No | J101: Kewanee Park Dist | K101: Andrew Dwyer | L101: HENRY | N101: adwyer@kewaneeparkdistrict.org | O101: Active
A102: 151 | B102: 215 N Central St | C102: P O Box 215 | E102: Gilman | F102: Illinois | G102: 60938-1218 | H102: United States | I102: No | J102: City Of Gilman | K102: Wendy Kraft | L102: IROQUOIS | N102: cityofgilman_04@sbcglobal.net | O102: Active
A103: 155 | B103: Po Box 580 | E103: Granville | F103: Illinois | G103: 61326-0580 | H103: United States | I103: No | J103: Village Of Granville | K103: Kari Moore | L103: PUTNAM | N103: granville.clerk@mchsi.com | O103: Active
A104: 157 | B104: 70 E Main St | E104: Lake Zurich | F104: Illinois | G104: 60047-3226 | H104: United States | I104: No | J104: Village Of Lake Zurich | K104: Michael Duebner | L104: LAKE | N104: michael.duebner@lakezurich.org | O104: Active
A105: 158 | B105: 190 N East Court St | E105: Nashville | F105: Illinois | G105: 62263-1112 | H105: United States | I105: No | J105: City Of Nashville | K105: Theresa Kurwicki | L105: WASHINGTON | N105: nashvillech@sbcglobal.net | O105: Active
A106: 162 | B106: 1400 Chicago Rd | E106: Chicago Heights | F106: Illinois | G106: 60411-3478 | H106: United States | I106: No | J106: Chicago Heights Park Dist | K106: Michael DeButch | L106: COOK | N106: mdebutch@chparkdistrict.net | O106: Active
A107: 163 | B107: 121 N Main Ave | C107: Po Box 305 | E107: Ladd | F107: Illinois | G107: 61329 | H107: United States | I107: No | J107: Village Of Ladd | K107: Rhonda Bezely | L107: BUREAU | N107: info@villageofladd.com | O107: Active
A108: 164 | B108: 909 S Main St | E108: Caseyville | F108: Illinois | G108: 62232-1831 | H108: United States | I108: No | J108: Village Of Caseyville | K108: Tamara Ammann | L108: SAINT CLAIR | N108: tammann@caseyville.org | O108: Active
A109: 165 | B109: 651 Prairie Pointe Dr | E109: Yorkville | F109: Illinois | G109: 60560-0901 | H109: United States | I109: No | J109: City Of Yorkville | K109: David Fredrickson | L109: KENDALL | N109: rfredrickson@yorkville.il.us | O109: Active
A110: 167 | B110: 874 Main St | E110: Antioch | F110: Illinois | G110: 60002-1577 | H110: United States | I110: No | J110: Village Of Antioch | K110: Zaida Torres | L110: LAKE | N110: ztorres@antioch.il.gov | O110: Active
A111: 168 | B111: 115 S Oakwood Ave | E111: Geneseo | F111: Illinois | G111: 61254-2128 | H111: United States | I111: No | J111: City Of Geneseo | K111: Brandon Maeglin | L111: HENRY | N111: bmaeglin@cityofgeneseo.com | O111: Active
A112: 169 | B112: 222 E 9Th St Fl 2 | E112: Lockport | F112: Illinois | G112: 60441-3497 | H112: United States | I112: No | J112: City Of Lockport | K112: Margaret Hickey | L112: WILL | N112: mhickey@lockport.org | O112: Active
A113: 171 | B113: 115 W Howard St | E113: Pontiac | F113: Illinois | G113: 61764-1819 | H113: United States | I113: No | J113: City Of Pontiac | K113: JAMES WOOLFORD | L113: LIVINGSTON | N113: jim.woolford@pontiac.org | O113: Active
A114: 172 | B114: Po Box 604 | C114: 114 Jackson | E114: Walnut | F114: Illinois | G114: 61376-0604 | H114: United States | I114: No | J114: Village Of Walnut | K114: Autumn Wolf | L114: BUREAU | N114: vlgwalnut@gmail.com | O114: Active
A115: 173 | B115: 116 E Sherman St | E115: White Hall | F115: Illinois | G115: 62092-1397 | H115: United States | I115: No | J115: City Of White Hall | K115: Vicky Cox | L115: GREENE | N115: cityofwh.vickycox1@gmail.com | O115: Active
A116: 174 | B116: 1 E Market St | E116: Winchester | F116: Illinois | G116: 62694-1259 | H116: United States | I116: No | J116: City Of Winchester | K116: Amanda Howerton | L116: SCOTT | N116: cityhall@winchesteril.com | O116: Active
A117: 175 | B117: 830 Sheridan Rd | E117: Winthrop Harbor | F117: Illinois | G117: 60096-1632 | H117: United States | I117: No | J117: Village Of Winthrop Harbor | K117: David Alarcon | L117: LAKE | N117: dalarcon@whpd.org | O117: Active
A118: 177 | B118: 300 W Park St | E118: Edwardsville | F118: Illinois | G118: 62025-1930 | H118: United States | I118: No | J118: Edwardsville Township | K118: KEVIN HALL | L118: MADISON | O118: Active
A119: 181 | B119: 6404 Joliet Rd Fl 1 | E119: Countryside | F119: Illinois | G119: 60525-4689 | H119: United States | I119: No | J119: Lyons Township | K119: Christopher Getty | L119: COOK | N119: cgetty@lyonsts.com | O119: Active
A120: 182 | B120: 2295 Illinois Route 16 | E120: Pana | F120: Illinois | G120: 62557-6329 | H120: United States | I120: No | J120: Pana Township | K120: TOM LATONIS | L120: CHRISTIAN | N120: twpsuper@consolidated.net | O120: Active
A121: 185 | B121: 200 White Oak Dr | E121: Newton | F121: Illinois | G121: 62448-1000 | H121: United States | I121: No | J121: Wade Township | K121: JOE HEMRICH | L121: JASPER | N121: johem99@yahoo.com | O121: Active
A122: 186 | B122: Po Box 488 | E122: Cissna Park | F122: Illinois | G122: 60924-0488 | H122: United States | I122: No | J122: Village Of Cissna Park | K122: DOUGLAS BAUER | L122: IROQUOIS | N122: dabn1976@gmail.com | O122: Active
A123: 187 | B123: 333 Chicago Ave | E123: Savanna | F123: Illinois | G123: 61074-1964 | H123: United States | I123: No | J123: City Of Savanna | K123: Brittany Hatteberg | L123: CARROLL | N123: b.hatteberg@savanna-il.us | O123: Active
A124: 188 | B124: 101 N Main St | E124: Wauconda | F124: Illinois | G124: 60084-1888 | H124: United States | I124: No | J124: Village Of Wauconda | K124: Julie Mcmanus | L124: LAKE | N124: jmcmanus@wauconda-il.gov | O124: Active
A125: 191 | B125: 215 N Monroe St | E125: Pittsfield | F125: Illinois | G125: 62363-1498 | H125: United States | I125: No | J125: City Of Pittsfield | K125: Priscilla Moffit | L125: PIKE | N125: amoffit@pittsfieldil.org | O125: Active
A126: 192 | B126: 540 Se 5Th Ave | E126: Galva | F126: Illinois | G126: 61434-2036 | H126: United States | I126: No | J126: Galva Township | K126: LARRY CHELINE | L126: HENRY | N126: lcmc92@frontier.com | O126: Active
A127: 194 | B127: 105 S Main St | E127: Farmer City | F127: Illinois | G127: 61842-1453 | H127: United States | I127: No | J127: City Of Farmer City | K127: Angela Wanserski | L127: DEWITT | O127: Active
A128: 198 | B128: 115 E Margaret St Ste 1 | E128: Thornton | F128: Illinois | G128: 60476-1292 | H128: United States | I128: No | J128: Village Of Thornton | K128: Nikki Kitakis | L128: COOK | N128: nkitakis@thorntonil.us | O128: Active
A129: 200 | B129: 1876 115Th Ave | E129: Aledo | F129: Illinois | G129: 61231-8750 | H129: United States | I129: No | J129: Mercer Township | K129: WILLIAM TAYLOR | L129: MERCER | N129: wkatay@frontiernet.net | O129: Active
A130: 204 | B130: Po Box 69 | C130: 1202 4Th Street | E130: Orion | F130: Illinois | G130: 61273-0069 | H130: United States | I130: No | J130: Village Of Orion | K130: Jennifer Hallas | L130: HENRY | N130: vclerk@orionil.org | O130: Active
A131: 205 | B131: 217 E Main St | E131: Carbondale | F131: Illinois | G131: 62901-3008 | H131: United States | I131: No | J131: Carbondale Township | K131: Dennis Poshard | L131: JACKSON | N131: supervisor@carbondaletownship.org | O131: Active
A132: 208 | B132: 361 Happ Rd | E132: Northfield | F132: Illinois | G132: 60093-3482 | H132: United States | I132: No | J132: Village Of Northfield | K132: Melissa Jewett | L132: COOK | N132: mjewett@northfieldil.org | O132: Active
A133: 209 | B133: 603 W 10Th St Ste 100 | E133: Rock Falls | F133: Illinois | G133: 61071-2854 | H133: United States | I133: No | J133: City Of Rock Falls | K133: Michelle Conklin | L133: WHITESIDE | N133: mconklin@rockfalls61071.com | O133: Active
A134: 210 | B134: Po Box 218 | E134: Sheffield | F134: Illinois | G134: 61361-0218 | H134: United States | I134: No | J134: Village Of Sheffield | K134: Adrienne Ries | L134: BUREAU | N134: sheffofcmgr@gmail.com | O134: Active
A135: 215 | B135: 550 N Broad St | E135: Carlinville | F135: Illinois | G135: 62626-1019 | H135: United States | I135: No | J135: City Of Carlinville | K135: Carla Brockmeier | L135: MACOUPIN | N135: cbrockmeier@cityofcarlinville.com | O135: Active
A136: 216 | B136: 520 Jackson Ave | E136: Charleston | F136: Illinois | G136: 61920-2030 | H136: United States | I136: No | J136: City Of Charleston | K136: Carrie Gerdes | L136: COLES | N136: hrdirector@co.coles.il.us | O136: Active
A137: 217 | B137: 21196 N 4100 East Rd | E137: Cropsey | F137: Illinois | G137: 61731-9016 | H137: United States | I137: No | J137: Cropsey Township | K137: DEANNA HANKES | L137: MCLEAN | N137: dhankes9@hotmail.com | O137: Active
A138: 220 | B138: Po Box 385 | C138: 102 Nw Vine | E138: Atlanta | F138: Illinois | G138: 61723-0385 | H138: United States | I138: No | J138: City Of Atlanta | K138: VICKI MARTIN | L138: LOGAN | N138: atlantailcityhall@gmail.com | O138: Active
A139: 223 | B139: 118 Hillsboro Ave | E139: Edwardsville | F139: Illinois | G139: 62025-1622 | H139: United States | I139: No | J139: City Of Edwardsville | K139: ROBIN DOYLE | L139: MADISON | N139: rdoyle@cityofedwardsville.com | O139: Active
A140: 224 | B140: 1200 Riverton Rd | E140: Riverton | F140: Illinois | G140: 62561-8200 | H140: United States | I140: No | J140: Village Of Riverton | K140: Stacy Patterson | L140: SANGAMON | N140: pattersonstacy11@yahoo.com | O140: Active
A141: 225 | B141: 148 S Poplar St | E141: Centralia | F141: Illinois | G141: 62801-3522 | H141: United States | I141: No | J141: Centralia Township | K141: Debra Young | L141: MARION | N141: debra@centtwnship.org | O141: Active
A142: 229 | B142: Po Box 557 | E142: Lovington | F142: Illinois | G142: 61937-0557 | H142: United States | I142: No | J142: Lovington Township | K142: Linda Casteel | L142: MOULTRIE | N142: lcasteel75@gmail.com | O142: Active
A143: 232 | B143: 1200 Capital Airport Dr | E143: Springfield | F143: Illinois | G143: 62707-8489 | H143: United States | I143: No | J143: Springfield Airport Authority | K143: Kenneth Boyle | L143: SANGAMON | N143: kboyle@flyspi.com | O143: Active
A144: 233 | B144: 110 W Central Ave | C144: Po Box 350 | E144: Minier | F144: Illinois | G144: 61759 | H144: United States | I144: No | J144: Village Of Minier | K144: Sasha Horner | L144: TAZEWELL | N144: minier@minier.com | O144: Active
A145: 234 | B145: 305 E Main St | E145: Collinsville | F145: Illinois | G145: 62234-3008 | H145: United States | I145: No | J145: Collinsville Township | K145: Gabrielle Koonce | L145: MADISON | N145: ga@collinsvilletownship.org | O145: Active
A146: 237 | B146: 130 E 1500 North Rd | C146: Po Box 153 | E146: Cisco | F146: Illinois | G146: 61830-6521 | H146: United States | I146: No | J146: Willow Branch Township | K146: ALICE BARNHART | L146: PIATT | N146: willowbranchtwp@yahoo.com | O146: Active
A147: 240 | B147: 17801 W Washington St | E147: Gurnee | F147: Illinois | G147: 60031-2598 | H147: United States | I147: No | J147: Warren Township | K147: Nicholas Kron | L147: LAKE | N147: nickk@warrentownship.net | O147: Active
A148: 242 | B148: 120 E Attica St | E148: Rossville | F148: Illinois | G148: 60963-1106 | H148: United States | I148: No | J148: Village Of Rossville | K148: Christine White | L148: VERMILION | N148: cpears97@hotmail.com | O148: Active
A149: 243 | B149: 111 E Washington St | E149: Rushville | F149: Illinois | G149: 62681-1428 | H149: United States | I149: No | J149: City Of Rushville | K149: Stacey Briney | L149: SCHUYLER | O149: Active
A150: 244 | B150: 431 W Gallatin St | E150: Vandalia | F150: Illinois | G150: 62471-2746 | H150: United States | I150: No | J150: City Of Vandalia | K150: Carla Huhn | L150: FAYETTE | N150: clerk@vandaliaillinois.com | O150: Active
A151: 247 | B151: 137 W Palm St | E151: Roodhouse | F151: Illinois | G151: 62082-1033 | H151: United States | I151: No | J151: City Of Roodhouse | K151: AMY HACKER | L151: GREENE | N151: roodhousefinance@gmail.com | O151: Active
A152: 250 | B152: 1205 Adams St | E152: Lawrenceville | F152: Illinois | G152: 62439-2610 | H152: United States | I152: No | J152: Lawrence Township | K152: Jenny Chapman | L152: LAWRENCE | N152: jchapman@cusd20.net | O152: Active
A153: 253 | B153: 820 S Jefferson St | E153: Millstadt | F153: Illinois | G153: 62260-2036 | H153: United States | I153: No | J153: Millstadt Township | K153: Kevin Juhas | L153: SAINT CLAIR | N153: townshipmillstadt@gmail.com | O153: Active
A154: 257 | B154: 404 S 3Rd St | E154: Greenville | F154: Illinois | G154: 62246-1795 | H154: United States | I154: No | J154: City Of Greenville | K154: Michelle Liggett | L154: BOND | N154: mliggett@greenvilleillinois.com | O154: Active
A155: 259 | B155: Po Box 1442 | E155: Vienna | F155: Illinois | G155: 62995-1442 | H155: United States | I155: No | J155: City Of Vienna | K155: Aleatha Wright | L155: JOHNSON | N155: awright@cityofviennail.net | O155: Active
A156: 260 | B156: 545 Brickville Rd | E156: Sycamore | F156: Illinois | G156: 60178-1201 | H156: United States | I156: No | J156: Sycamore Township | K156: Amy Mathey | L156: DEKALB | N156: amatheysyctwp@gmail.com | O156: Active
A157: 264 | B157: 122 N Main St Ste A | E157: Moweaqua | F157: Illinois | G157: 62550-1183 | H157: United States | I157: No | J157: Village Of Moweaqua | K157: Mischelle Davis | L157: SHELBY | N157: records@frontier.com | O157: Active
A158: 265 | B158: 202 S Range St | E158: Oblong | F158: Illinois | G158: 62449-1225 | H158: United States | I158: No | J158: Village Of Oblong | K158: Jan Miller | L158: CRAWFORD | N158: jmillertreasurer@hotmail.com | O158: Active
A159: 266 | B159: Po Box 246 | C159: 314 Kirkwood | E159: Odin | F159: Illinois | G159: 62870-0246 | H159: United States | I159: No | J159: Village Of Odin | K159: Pamela Blue | L159: MARION | N159: odinvillagehall@gmail.com | O159: Active
A160: 272 | B160: 1407 W Washington St | E160: Pittsfield | F160: Illinois | G160: 62363-9584 | H160: United States | I160: No | J160: Pittsfield Township | K160: NICOLE FISH | L160: PIKE | N160: nlf@jenningsbs.com | O160: Active
A161: 274 | B161: 324 W Jefferson St | E161: Auburn | F161: Illinois | G161: 62615-1424 | H161: United States | I161: No | J161: City Of Auburn | K161: Thomas Henson | L161: SANGAMON | N161: tj.henson@auburnillinois.us | O161: Active
A162: 276 | B162: 2060 Delmar Ave Ste A | E162: Granite City | F162: Illinois | G162: 62040-4589 | H162: United States | I162: No | J162: Granite City Township | K162: Deidre Cave | L162: MADISON | N162: deidre@granitecitytownship.com | O162: Active
A163: 279 | B163: 302 N Main St | E163: Mount Carroll | F163: Illinois | G163: 61053-1024 | H163: United States | I163: No | J163: City Of Mount Carroll | K163: Lisa Dauphin | L163: CARROLL | N163: mtcarroll@jcwifi.com | O163: Active
A164: 280 | B164: 107 W Broadway | E164: Steeleville | F164: Illinois | G164: 62288-1414 | H164: United States | I164: No | J164: Village Of Steeleville | K164: Kendi Klingeman | L164: RANDOLPH | N164: k.cottom@steeleville.org | O164: Active
A165: 283 | B165: 5819 Electric Ave | E165: Berkeley | F165: Illinois | G165: 60163-1599 | H165: United States | I165: No | J165: Village Of Berkeley | K165: Melissa Santiago | L165: COOK | N165: msantiago@berkeley.il.us | O165: Active
A166: 284 | B166: 105 W Lincoln St | E166: Mount Morris | F166: Illinois | G166: 61054-1400 | H166: United States | I166: No | J166: Village Of Mt Morris | K166: Brooke Duffy | L166: OGLE | N166: villageclerk@mtmorrisil.net | O166: Active
A167: 285 | B167: 24401 W Lockport St | E167: Plainfield | F167: Illinois | G167: 60544-2313 | H167: United States | I167: No | J167: Village Of Plainfield | K167: Traci Pleckham | L167: WILL | N167: tpleckham@goplainfield.com | O167: Active
A168: 286 | B168: Po Box 350 | E168: Ridge Farm | F168: Illinois | G168: 61870-0350 | H168: United States | I168: No | J168: Village Of Ridge Farm | K168: Jennifer Berck | L168: VERMILION | N168: villageofridgefarm@gmail.com | O168: Active
A169: 287 | B169: 155 W Front Ave Uppr 1 | C169: Po Box 186 | E169: Stockton | F169: Illinois | G169: 61085-1351 | H169: United States | I169: No | J169: Village Of Stockton | K169: Stefanie Hatley | L169: JO DAVIESS | N169: clerk@villageofstockton.com | O169: Active
A170: 290 | B170: 300 N Park Ave Ste B | E170: Herrin | F170: Illinois | G170: 62948-3199 | H170: United States | I170: No | J170: City Of Herrin | K170: Carrie Cravens | L170: WILLIAMSON | N170: ccravens@cityofherrin.com | O170: Active
A171: 292 | B171: 201 W Main St | C171: Po Box 439 | E171: Elmwood | F171: Illinois | G171: 61529-9111 | H171: United States | I171: No | J171: City Of Elmwood | K171: Bethany Lovingood | L171: PEORIA | N171: elmwood61529cityclerk@gmail.com | O171: Active
A172: 293 | B172: 209 Lincoln St Ste 2 | C172: Ste 2 | E172: Marseilles | F172: Illinois | G172: 61341-1995 | H172: United States | I172: No | J172: City Of Marseilles | K172: Lesley Hart | L172: LA SALLE | N172: cityclerk@mtco.com | O172: Active
A173: 294 | B173: 15 S West Ave | C173: P O Box 137 | E173: Milford | F173: Illinois | G173: 60953-1340 | H173: United States | I173: No | J173: Village Of Milford | K173: Robin Rogers | L173: IROQUOIS | N173: bookkeeper@milfordillinois.org | O173: Active
A174: 296 | B174: 203 S Richland St | E174: Freeburg | F174: Illinois | G174: 62243-1391 | H174: United States | I174: No | J174: Freeburg Township | K174: Charles Hill | L174: SAINT CLAIR | N174: freeburgtownship@sbcglobal.net | O174: Active
A175: 297 | B175: 300 W Jefferson St | E175: Morton | F175: Illinois | G175: 61550-1816 | H175: United States | I175: No | J175: Morton Township | K175: Jennifer Roche | L175: TAZEWELL | N175: jenny@mortontownship.net | O175: Active
A176: 304 | B176: 700 State St | C176: P O Box 557 | E176: Lawrenceville | F176: Illinois | G176: 62439-2754 | H176: United States | I176: No | J176: City Of Lawrenceville | K176: James Nolan | L176: LAWRENCE | N176: rodney.nolan@lawrencevilleil.org | O176: Active
A177: 306 | B177: 114 W Jackson St | E177: Sparta | F177: Illinois | G177: 62286-1666 | H177: United States | I177: No | J177: City Of Sparta | K177: Angela Peters | L177: RANDOLPH | N177: angiep@spartaillinois.us | O177: Active
A178: 307 | B178: 213 N Prairie St Ste A | E178: Bethalto | F178: Illinois | G178: 62010-1398 | H178: United States | I178: No | J178: Village Of Bethalto | K178: Sue Lowrance | L178: MADISON | N178: slowrance@bethalto.com | O178: Active
A179: 308 | B179: Po Box 310 | E179: Harvard | F179: Illinois | G179: 60033-0310 | H179: United States | I179: No | J179: City Of Harvard | K179: Debra Bejot | L179: MCHENRY | N179: bookkeeper@cityofharvard.org | O179: Active
A180: 309 | B180: 425 N Hillside Ave | E180: Hillside | F180: Illinois | G180: 60162-1695 | H180: United States | I180: No | J180: Village Of Hillside | K180: Sandy Lozano | L180: COOK | N180: slozano@hillside-il.org | O180: Active
A181: 310 | B181: 10300 W Roosevelt Rd | E181: Westchester | F181: Illinois | G181: 60154-2596 | H181: United States | I181: No | J181: Village Of Westchester | K181: John Schwarz | L181: COOK | N181: jschwarz@westchester-il.gov | O181: Active
A182: 313 | B182: 222 W Madison Ave | E182: Chrisman | F182: Illinois | G182: 61924-1048 | H182: United States | I182: No | J182: City Of Chrisman | K182: Kristy Johnson | L182: EDGAR | N182: cityofchrisman@gmail.com | O182: Active
A183: 314 | B183: 208 S Walnut St | E183: Georgetown | F183: Illinois | G183: 61846-1956 | H183: United States | I183: No | J183: City Of Georgetown | K183: Tonya Hundley | L183: VERMILION | N183: tonyah@georgetownil.net | O183: Active
A184: 315 | B184: 406 5Th St | E184: Lacon | F184: Illinois | G184: 61540-1212 | H184: United States | I184: No | J184: City Of Lacon | K184: Connie Anderle | L184: MARSHALL | N184: cityclerk@grics.net | O184: Active
A185: 316 | B185: 115 S Franklin Ave | E185: Polo | F185: Illinois | G185: 61064-1798 | H185: United States | I185: No | J185: City Of Polo | K185: Sydney Bartelt | L185: OGLE | N185: cityclerk@poloil.gov | O185: Active
A186: 317 | B186: 2621 Thatcher Ave | E186: River Grove | F186: Illinois | G186: 60171-1698 | H186: United States | I186: No | J186: Village Of River Grove | K186: Shawn Campbell | L186: COOK | N186: scampbell@rivergroveil.gov | O186: Active
A187: 320 | B187: 8 Terminal Dr Ste 1 | E187: East Alton | F187: Illinois | G187: 62024-2254 | H187: United States | I187: No | J187: St Louis Regional Airport Auth | K187: Crystal Geisen | L187: MADISON | N187: crystal@stlouisregional.com | O187: Active
A188: 323 | B188: 1231 Bonansinga Dr | E188: Quincy | F188: Illinois | G188: 62301-5200 | H188: United States | I188: No | J188: Quincy Park Dist | K188: Brian Earnest | L188: ADAMS | N188: bearnest@quincyparkdistrict.com | O188: Active
A189: 326 | B189: 120 E Progress St | C189: Po Box 139 | E189: Arthur | F189: Illinois | G189: 61911-1301 | H189: United States | I189: No | J189: Village Of Arthur | K189: Erica Carter | L189: DOUGLAS | N189: admin@arthur-il.gov | O189: Active
A190: 327 | B190: 108 S Buchanan St | C190: P.O. Box 439 | E190: Heyworth | F190: Illinois | G190: 61745-8950 | H190: United States | I190: No | J190: Village Of Heyworth | K190: Stacy Shoemaker | L190: MCLEAN | N190: clerk@heyworth-il.gov | O190: Active
A191: 328 | B191: 4200 Lawndale Ave Ste 1 | E191: Lyons | F191: Illinois | G191: 60534-1246 | H191: United States | I191: No | J191: Village Of Lyons | K191: Norberto Cisneros | L191: COOK | N191: kleonard@villageoflyons-il.net | O191: Active
A192: 330 | B192: 25 E State St Ste 2 | E192: North Aurora | F192: Illinois | G192: 60542-1690 | H192: United States | I192: No | J192: Village Of North Aurora | K192: Mandy Flatt | L192: KANE | N192: mflatt@northaurora.org | O192: Active
A193: 340 | B193: 201 W Main St | C193: Po Box 352 | E193: Bethany | F193: Illinois | G193: 61914-7086 | H193: United States | I193: No | J193: Village Of Bethany | K193: Jessica Henderson | L193: MOULTRIE | N193: vofbtreasurer@gmail.com | O193: Active
A194: 341 | B194: 225 E Main St Ste 2 | E194: Carmi | F194: Illinois | G194: 62821-1860 | H194: United States | I194: No | J194: City Of Carmi | K194: Cynthia Attebury | L194: WHITE | N194: clerk@cityofcarmi.com | O194: Active
A195: 343 | B195: 100 Heart Blvd | E195: Loves Park | F195: Illinois | G195: 61111-4797 | H195: United States | I195: No | J195: City Of Loves Park | K195: Robert Burden | L195: WINNEBAGO | N195: bobburden@cityoflovespark.com | O195: Active
A196: 344 | B196: 16226 Wausau Ave | E196: South Holland | F196: Illinois | G196: 60473-2156 | H196: United States | I196: No | J196: Village Of South Holland | K196: Dillon Herman | L196: COOK | N196: bherman@southholland.org | O196: Active
A197: 345 | B197: Po Box 290 | C197: 118 E 4Th Street | E197: Stonington | F197: Illinois | G197: 62567-0290 | H197: United States | I197: No | J197: Village Of Stonington | K197: Deborah Niles | L197: CHRISTIAN | O197: Active
A198: 350 | B198: 201 N State St | E198: Westville | F198: Illinois | G198: 61883-1463 | H198: United States | I198: No | J198: Village Of Westville | K198: Michael Larson | L198: VERMILION | N198: treasurer@villageofwestville.net | O198: Active
A199: 357 | B199: 7501 Harrison St | E199: Forest Park | F199: Illinois | G199: 60130-2091 | H199: United States | I199: No | J199: Park District Of Forest Park | K199: Jackie Iovinelli | L199: COOK | N199: jiovinelli@pdofpstaff.org | O199: Active
A200: 358 | B200: 228 S Main St | E200: Bartlett | F200: Illinois | G200: 60103-4495 | H200: United States | I200: No | J200: Village Of Bartlett | K200: Janelle Terrance | L200: COOK | N200: jterrance@bartlettil.gov | O200: Active
... 3686 more rows

Sheet Entry
A1: Final Rate Notice Generator
A3: This spreadsheet will generate a final rate notice letter. Enter your employer number in the employer number field and hit enter. Then click on the letter tab to view your final rate notice letter.
A7: Employer Number | O7: =IF(Q7<>"",1,0.01) -> 0.01 | P7: Plan | Q7: =IFERROR(VLOOKUP(IFERROR(VLOOKUP(1,Sheet1!$A$2:$U$3402,2,FALSE),""),$V$7:$W$9,2,FALSE),"") ->  | R7: =IFERROR(VLOOKUP(IFERROR(VLOOKUP(2,Sheet1!$A$2:$U$3402,2,FALSE),""),$V$7:$W$9,2,FALSE),"") ->  | S7: =IFERROR(VLOOKUP(IFERROR(VLOOKUP(3,Sheet1!$A$2:$U$3402,2,FALSE),""),$V$7:$W$9,2,FALSE),"") ->  | V7: ECR1 | W7: ECO
O8: =O7+1 -> 1.01 | P8: Member Contributions (tax-deferred) | Q8: =IF(Q7="REGULAR",0.045,IF(Q7="SLEP",0.075,IF(Q7="ECO",0.075,""))) ->  | R8: =IF(R7="REGULAR",0.045,IF(R7="SLEP",0.075,IF(R7="ECO",0.075,""))) ->  | V8: RG01 | W8: REGULAR
A9: Employer | B9: =VLOOKUP($B$7,Sheet1!$C$2:$V$3402,13,FALSE) ->  | O9: =O8+1 -> 2.01 | P9: Total | Q9: =IFERROR(VLOOKUP(1,Sheet1!$A$2:$U$3402,5,FALSE)/100,"") ->  | R9: =IFERROR(VLOOKUP(2,Sheet1!$A$2:$U$3402,5,FALSE)/100,"") ->  | S9: =IFERROR(VLOOKUP(3,Sheet1!$A$2:$U$3402,5,FALSE)/100,"") ->  | V9: SL01 | W9: SLEP
O10: =O9+1 -> 3.01 | P10: Normal Cost | Q10: =IFERROR(VLOOKUP(1,Sheet1!$A$2:$U$3402,6,FALSE)/100,"") ->  | R10: =IFERROR(VLOOKUP(2,Sheet1!$A$2:$U$3402,6,FALSE)/100,"") ->  | S10: =IFERROR(VLOOKUP(3,Sheet1!$A$2:$U$3402,6,FALSE)/100,"") -> 
A11: Address | B11: =VLOOKUP($B$7,Sheet1!$C$2:$V$3402,20,FALSE) ->  | O11: =O10+0.01 -> 3.02 | P11: Funding Adjustment (over) under | Q11: =IFERROR(VLOOKUP(1,Sheet1!$A$2:$U$3402,7,FALSE)/100,"") ->  | R11: =IFERROR(VLOOKUP(2,Sheet1!$A$2:$U$3402,7,FALSE)/100,"") ->  | S11: =IFERROR(VLOOKUP(3,Sheet1!$A$2:$U$3402,7,FALSE)/100,"") -> 
B12: =IFERROR(VLOOKUP(1,$O$24:$P$27,2,FALSE),"") ->  | O12: =INT(O11)+1 -> 4 | P12: Calculated Funding Adjustment | Q12: =IFERROR(IF(AND(Q11<0,ABS(Q11)>ABS(Q10)),-1*Q10,Q11),"") ->  | R12: =IFERROR(IF(AND(R11<0,ABS(R11)>ABS(R10)),-1*R10,R11),"") -> 
B13: =IFERROR(VLOOKUP(2,$O$24:$P$29,2,FALSE),"") ->  | O13: =O12+1 -> 5 | P13: Net Retirement Rate | Q13: =IFERROR(VLOOKUP(1,Sheet1!$A$2:$U$3402,8,FALSE)/100,"") ->  | R13: =IFERROR(VLOOKUP(2,Sheet1!$A$2:$U$3402,8,FALSE)/100,"") ->  | S13: =IFERROR(VLOOKUP(3,Sheet1!$A$2:$U$3402,8,FALSE)/100,"") -> 
B14: =IFERROR(VLOOKUP(3,$O$24:$P$29,2,FALSE),"") ->  | O14: =IF(SUM(Q14:S14)<>0,INT(O13)+1,O13+0.01) -> 5.01 | P14: Disability | Q14: =IFERROR(VLOOKUP(1,Sheet1!$A$2:$U$3402,9,FALSE)/100,"") ->  | R14: =IFERROR(VLOOKUP(2,Sheet1!$A$2:$U$3402,9,FALSE)/100,"") ->  | S14: =IFERROR(VLOOKUP(3,Sheet1!$A$2:$U$3402,9,FALSE)/100,"") -> 
B15: =IFERROR(VLOOKUP(4,$O$24:$P$29,2,FALSE),"") ->  | O15: 5.02 | P15: Death | Q15: =IFERROR(VLOOKUP(1,Sheet1!$A$2:$U$3402,10,FALSE)/100,"") ->  | R15: =IFERROR(VLOOKUP(2,Sheet1!$A$2:$U$3402,10,FALSE)/100,"") ->  | S15: =IFERROR(VLOOKUP(3,Sheet1!$A$2:$U$3402,10,FALSE)/100,"") -> 
B16: =IFERROR(VLOOKUP(3,$O$24:$P$29,2,FALSE),"") ->  | O16: 5.03 | P16: Supplemental Benefit Payment | Q16: =IFERROR(VLOOKUP(1,Sheet1!$A$2:$U$3402,11,FALSE)/100,"") ->  | R16: =IFERROR(VLOOKUP(2,Sheet1!$A$2:$U$3402,11,FALSE)/100,"") ->  | S16: =IFERROR(VLOOKUP(3,Sheet1!$A$2:$U$3402,11,FALSE)/100,"") -> 
A17: Rates | B17: =IFERROR(VLOOKUP($U22,$O$7:$S$18,2,FALSE),"") ->  | C17: =IFERROR(VLOOKUP($U22,$O$7:$S$18,3,FALSE),"") ->  | D17: =IFERROR(VLOOKUP($U22,$O$7:$S$18,4,FALSE),"") ->  | E17: =IFERROR(VLOOKUP($U22,$O$7:$S$18,5,FALSE),"") ->  | O17: 5.04 | P17: Early Retirement Incentive | Q17: =IFERROR(VLOOKUP(1,Sheet1!$A$2:$U$3402,12,FALSE)/100,"") ->  | R17: =IFERROR(VLOOKUP(2,Sheet1!$A$2:$U$3402,12,FALSE)/100,"") ->  | S17: =IFERROR(VLOOKUP(3,Sheet1!$A$2:$U$3402,12,FALSE)/100,"") -> 
O18: 5.05 | P18: SLEP Enhancement | Q18: =IFERROR(VLOOKUP(1,Sheet1!$A$2:$U$3402,13,FALSE)/100,"") ->  | R18: =IFERROR(VLOOKUP(2,Sheet1!$A$2:$U$3402,13,FALSE)/100,"") ->  | S18: =IFERROR(VLOOKUP(3,Sheet1!$A$2:$U$3402,13,FALSE)/100,"") -> 
B20: =IF(B7="","",IFERROR(VLOOKUP($U25,$O$7:$S$18,2,FALSE),"")) -> 
B21: =IF(B7="","",IFERROR(VLOOKUP($U26,$O$7:$S$18,2,FALSE),"")) -> 
U22: 1
U23: 2
O24: =IF(P24<>"",INT(O23)+1,O23+0.001) ->  | P24: =VLOOKUP($B$7,Sheet1!$C$2:$U$3402,14,FALSE) ->  | U24: 3
O25: =IF(P25<>"",INT(O24)+1,O24+0.001) ->  | P25: =VLOOKUP($B$7,Sheet1!$C$2:$U$3402,15,FALSE) ->  | U25: 4
E26: =IFERROR(VLOOKUP($U31,$O$7:$S$18,5,FALSE),"") ->  | P26: =VLOOKUP($B$7,Sheet1!$C$2:$U$3402,16,FALSE) ->  | U26: 5
C27: =IFERROR(VLOOKUP($U32,$O$7:$S$18,3,FALSE),"") ->  | D27: =IFERROR(VLOOKUP($U32,$O$7:$S$18,4,FALSE),"") ->  | P27: =VLOOKUP($B$7,Sheet1!$C$2:$U$3402,17,FALSE)&" "&VLOOKUP($B$7,Sheet1!$C$2:$U$3402,18,FALSE)&" "&VLOOKUP($B$7,Sheet1!$C$2:$U$3402,19,FALSE) ->  | U27: 6
U28: 7
U29: 8
A30: Amortization Years | B30: =VLOOKUP($B$7,Sheet1!$C$2:$U$3402,12,FALSE) ->  | U30: 9
U31: 10
U32: 11

Sheet Letter
Y1: 1
B7: Final Notice of Illinois Municipal Retirement Fund
B8: Contribution Rate for Calendar Year 2025
B10: Date November 2024
B12: Employer Name | D12: =PROPER(Entry!B9) ->  | J12: Employer No. | L12: =Entry!B7 -> 0
B14: ="The employer rate below is based on a "&Entry!B30&" year amortization period for most employers. Overfunded employers will receive a letter outlining options available to accelerate the amortization of their overfunding (which reduces rate) if they so choose." -> 
B18: Your IMRF contribution rates on all earnings paid to IMRF members and employer rate in the 2025 calendar year are as follow:
G21: IMRF Contributions
G23: =Entry!C17 ->  | H23: =Entry!D17 ->  | I23: =Entry!E17 -> 
B24: =Entry!B18 ->  | G24: =Entry!C18 ->  | H24: =Entry!D18 ->  | I24: =Entry!E18 -> 
B26: Employer Contributions
B28: -Retirement Rate
C30: =Entry!B20 ->  | G30: =Entry!C20 ->  | H30: =Entry!D20 ->  | I30: =Entry!E20 -> 
C32: =Entry!B21 ->  | G32: =Entry!C21 ->  | H32: =Entry!D21 ->  | I32: =Entry!E21 -> 
C34: =Entry!B22 ->  | G34: =Entry!C22 ->  | H34: =Entry!D22 ->  | I34: =Entry!E22 -> 
B36: -Other Program Benefits
C38: =Entry!B23 ->  | G38: =Entry!C23 ->  | H38: =Entry!D23 ->  | I38: =Entry!E23 -> 
C40: =Entry!B24 ->  | G40: =Entry!C24 ->  | H40: =Entry!D24 ->  | I40: =Entry!E24 -> 
C42: =Entry!B25 ->  | G42: =Entry!C25 ->  | H42: =Entry!D25 ->  | I42: =Entry!E25 -> 
C44: =Entry!B26 ->  | G44: =Entry!C26 ->  | H44: =Entry!D26 ->  | I44: =Entry!E26 -> 
C46: =Entry!B27 ->  | G46: =Entry!C27 ->  | H46: =Entry!D27 ->  | I46: =Entry!E27 -> 
C48: =Entry!B28 ->  | G48: =Entry!C28 ->  | H48: =Entry!D28 ->  | I48: =Entry!E28 -> 
C50: TOTAL EMPLOYER RATE | G50: =Entry!C19 ->  | H50: =Entry!D19 ->  | I50: =Entry!E19 -> 
B52: You can view employer contribution rates in your Employer Access account. Employer rates for 2025 are final after the November 2024 IMRF Board of Trustees meeting. If you have any questions about employer rates, please call the IMRF Employer Contact Center at 1-800-728-7971.
